{"text_format":"1","workbook":"xlsx","n_sheets":44,"sheets":["modList00","modHTTP","modPreload","modProvGeneralProc","modReestr","modList02","modfrmReestrSource","Инструкция","Лог обновления","Пояснения","Общие сведения","Список территорий","Список объектов","Баланс","Условные метры","et_union","Амортизация (аналог)","ГО","Расчёт тарифа","TEHSHEET","Комментарии","Проверка","REESTR_OBJECT","DICTIONARIES","modfrmDPR","modfrmSelectTemplate","REESTR_MO","REESTR_ORG","REESTR_TARIFF","modfrmRegion","modfrmSelectTariff","modCheckCyan","modfrmActivity","modfrmCheckUpdates","modProv","modUpdTemplMain","modThisWorkbook","modInstruction","AllSheetsInThisWorkbook","modHyp","modfrmReestr","modList01","modList04","modList06"],"not_rendered":{"charts":0,"images":23,"macros":1,"external_links":0,"defined_names":216,"comments":2,"pivot_tables":0},"unopened":[],"bounds":{"document_bytes":16777216,"sheet_cells":100000,"rows_first":2000,"rows_last":500,"rows_between":2000,"halvings":0,"cell_chars":16384,"cell_head_chars":4096},"cells_cut":0,"cells_raw":0,"read":"whole","date_system":"1900"}

{"sheet":"modList00","index":0,"n_rows":0,"n_cols":0,"rows_kept":0,"cut":false,"hidden":true,"merged":[]}

{"sheet":"modHTTP","index":1,"n_rows":0,"n_cols":0,"rows_kept":0,"cut":false,"hidden":true,"merged":[]}

{"sheet":"modPreload","index":2,"n_rows":0,"n_cols":0,"rows_kept":0,"cut":false,"hidden":true,"merged":[]}

{"sheet":"modProvGeneralProc","index":3,"n_rows":0,"n_cols":0,"rows_kept":0,"cut":false,"hidden":true,"merged":[]}

{"sheet":"modReestr","index":4,"n_rows":0,"n_cols":0,"rows_kept":0,"cut":false,"hidden":true,"merged":[]}

{"sheet":"modList02","index":5,"n_rows":0,"n_cols":0,"rows_kept":0,"cut":false,"hidden":true,"merged":[]}

{"sheet":"modfrmReestrSource","index":6,"n_rows":0,"n_cols":0,"rows_kept":0,"cut":false,"hidden":true,"merged":[]}

{"sheet":"Инструкция","index":7,"n_rows":97,"n_cols":27,"rows_kept":97,"cut":false,"hidden":false,"merged":[[69,4,74,24],[21,5,21,12],[21,15,21,23],[1,1,1,6],[2,1,2,2],[4,1,4,24],[6,4,12,23],[13,4,18,23],[20,5,20,12],[20,15,20,23],[34,4,38,23],[39,4,39,23],[57,4,57,6],[57,7,57,23],[40,4,44,23],[45,4,56,23],[80,4,80,15],[80,16,80,22],[58,4,58,23],[96,5,96,23],[92,4,92,23],[94,5,94,18],[76,4,76,21],[77,4,77,10],[77,11,77,22],[60,7,60,23],[75,4,75,6],[78,4,78,10],[78,11,78,22],[59,4,59,6],[59,7,59,23],[75,7,75,23]]}
[null,null,null,null,null,null,null,null,null,null,null,null,null,null,null,null,null,null,null,null,null,null,null,null,null,null," (требуется обновление)"]
[null,{"$f":"\"Код шаблона: \" & GetCode()","v":"Код шаблона: EXPERT.VSVO.ANALOG"}]
[null,{"$f":"\"Версия \" & Getversion()","v":"Версия 4.2"}]
[]
[null,"Экспертное заключение об установлении тарифов в сфере холодного водоснабжения/водоотведения методом сравнения аналогов"]
[]
[null,null,null,null,"• На рабочем месте должен быть установлен MS Office 2007 SP3, 2010, 2013, 2016, 2019 с полной версией MS Excel\n\n• Макросы во время работы должны быть включены (!)\n\n• Для корректной работы отчёта требуется выбрать низкий уровень безопасности\n(В меню MS Excel 2007 и выше: Параметры Excel | Центр управления безопасностью | Параметры центра управления безопасностью | Параметры макросов | Включить все макросы | ОК)\n\n"]
[]
[]
[]
[]
[]
[]
[null,null,null,null,"• Если Вы работаете в табличном процессоре MS Excel 2007 и выше, то можете использовать для работы формат XLSB (Двоичная книга Excel). При работе в формате XLSB заметно быстрее происходит сохранение файла, а также уменьшается размер по сравнению с форматами XLS и XLSM\n\n• Не рекомендуется снимать защиту с листов и каким-либо образом модифицировать защищаемые формулы и расчётные поля, в противном случае, отчёт будет отклонён системой\n\n• При сохранении не следует выбирать формат XLSX (Книга Excel), так как в указанном формате макросы, необходимые для работы отчёта, безвозвратно удаляются"]
[]
[]
[]
[]
[]
[]
[null,null,null,null,"A"," - предназначенные для заполнения",null,null,null,null,null,null,null,null,"A"," - ссылки и автозаполняемые поля"]
[null,null,null,null,"A"," - с формулами и константами",null,null,null,null,null,null,null,null,"A"," - обязательные для заполнения"]
[]
[]
[]
[]
[]
[]
[]
[]
[]
[]
[]
[]
[null,null,null,null,"Если в предложенном Вам списке необходимая организация, МР/МО отсутствуют, обновите реестры с помощью кнопок\n\nВ результате синхронизации с базой данных список организаций (МР/МО) будет заменён актуальным (механизм синхронизации требует подключения к сети Интернет и основан на использовании протокола HTTPS (TCP порт 443))\n"]
[]
[]
[]
[]
[]
[]
[]
[]
[]
[]
[null,null,null,null,"• При сохранении шаблона осуществляется проверка корректности данных, в том числе на наличие значений в ячейках, обязательных для заполнения\n\n• Если какая-то ячейка не удовлетворяет условию проверки, на лист «Проверка» добавляется гиперссылка на данную ячейку и указывается причина ошибки\n\n• В колонке «Статус» для каждого сообщения возможны 2 значения: ошибка и предупреждение\n\n• При наличии сообщений со статусом «Ошибка» шаблон будет отклонён системой и не будет загружен в хранилище данных, сообщения со статусом «Предупреждение» носят информационный характер, и такой шаблон будет принят системой"]
[]
[]
[]
[]
[]
[]
[]
[]
[]
[]
[]
[]
[null,null,null,null,"Обратиться в службу поддержки"]
[]
[]
[]
[]
[]
[]
[]
[]
[]
[]
[null,null,null,null,"Понятия, используемые в Типовом экспертном заключении:\n\"Факт, принятый органом регулирования\" - экономически обоснованные фактические значения расходов на основании данных бухгалтерской и статистической отчетности регулируемой организации за соответствующий период, с учетом данных, полученных по результатам проведенных органом регулирования тарифов мероприятий по контролю, предусмотренных Постановлением Правительства РФ от 27.06.2013 N 543;\n\"Факт по данным организации\" - экономически обоснованные фактические значения расходов в соответствии с данными раздельного учета затрат по видам деятельности организаций, осуществляющих горячее водоснабжение, холодное водоснабжение и (или) водоотведение."]
[]
[]
[]
[]
[]
[]
[]
[]
[]
[]
[]
[]
[]
[]
[]
[]
[]
[]
[]
[]
[]
[]
[null,null,null,null,"При наличии подключения к Интернет, можно автоматически проверять наличие доступных обновлений. Выберите способ оповещения о наличии обновлений для отчёта:"]
[]
[null,null,null,null,null,"проверять доступные обновления (рекомендуется)",null,null,null,null,null,null,null,null,null,null,null,null,null,null,null,null,null,null,null,null,"y"]
[]
[null,null,null,null,null,"никогда не проверять наличие обновлений (не рекомендуется)"]

{"sheet":"Лог обновления","index":8,"n_rows":7,"n_cols":3,"rows_kept":7,"cut":false,"hidden":true,"merged":[]}
["Дата/Время","Сообщение","Статус"]
[]
["2023-11-30T15:01:53","Проверка доступных обновлений...","Информация"]
["2023-11-30T15:01:55","Нет доступных обновлений для отчёта с кодом EXPERT.VSVO.ANALOG!","Информация"]
["2023-11-30T15:03:41","Проверка доступных обновлений...","Информация"]
["2023-12-01T08:51:13","Проверка доступных обновлений...","Информация"]
["2023-12-01T08:54:30","Проверка доступных обновлений...","Информация"]

{"sheet":"Пояснения","index":9,"n_rows":17,"n_cols":14,"rows_kept":17,"cut":false,"hidden":true,"merged":[]}
[]
[]
[]
[]
[]
[]
[]
[]
[]
[]
[]
[null,null,null,null,null,null,null,null,null,null,null,"Понятия, используемые в Типовом экспертном заключении"]
[]
[null,null,null,null,null,null,null,null,null,null,null,"№ п/п","Используемое понятие","Расшифровка (пояснения)"]
[null,null,null,null,null,null,null,null,null,null,null,1,"факт по данным организации","фактические значения расходов в соответствии с данными раздельного учета затрат по видам деятельности организаций, осуществляющих горячее водоснабжение, холодное водоснабжение и (или) водоотведение"]
[null,null,null,null,null,null,null,null,null,null,null,2,"факт, принятый органом регулирования","фактические значения расходов в соответствии с данными бухгалтерской и статистической отчетности регулируемой организации за соответствующий период, с учетом данных, полученных по результатам проведенных органом регулирования тарифов мероприятий по контролю, предусмотренных Постановление Правительства РФ от 27.06.2013 N 543 (ред. от 17.08.2020) \"О государственном контроле (надзоре) в области регулируемых государством цен (тарифов)."]
[null,null,null,null,null,null,null,null,null,null,null,3,"Номер тарифа (идентификатор)","Уникальный идентификатор тарифа в БД ЕИАС ФАС России. Формат:\n[Сфера].[Код региона].[Номер организации в реестре ФАС России].[Порядковый номер тарифа]"]

{"sheet":"Общие сведения","index":10,"n_rows":112,"n_cols":15,"rows_kept":112,"cut":false,"hidden":false,"merged":[[89,3,101,3],[84,4,87,5],[103,4,110,5],[61,4,61,6],[63,4,66,5],[68,4,68,7],[69,4,69,7],[111,4,111,6],[7,4,7,6],[78,4,78,7],[79,4,79,7],[80,4,80,7],[81,4,81,7],[83,4,83,7],[72,4,72,7],[73,4,73,7],[74,4,74,7],[75,4,75,7],[76,4,76,7],[77,4,77,7],[88,4,102,5],[70,4,70,7],[71,4,71,7],[47,4,47,6],[48,4,52,4],[48,5,48,6],[49,5,49,6],[50,5,50,6],[51,5,51,6],[52,5,52,6],[54,4,54,6],[55,4,59,4],[55,5,55,6],[56,5,56,6],[57,5,57,6],[58,5,58,6],[59,5,59,6],[14,4,14,7],[20,4,20,6],[21,4,21,6],[16,11,16,12],[17,4,17,7],[18,4,18,6],[19,4,19,6],[15,4,15,7],[16,4,16,7],[6,4,6,6],[10,4,10,7],[11,4,11,7],[12,4,12,7],[13,4,13,7],[46,4,46,6],[31,4,31,6],[32,4,32,6],[33,4,35,5],[36,4,36,6],[37,4,37,6],[44,4,44,6],[38,4,38,6],[40,4,40,6],[43,4,43,6],[41,4,41,6],[42,4,42,6],[27,4,27,6],[28,4,28,6],[29,4,29,6],[30,4,30,6],[22,4,22,6],[23,4,23,6],[24,4,24,6],[25,4,25,6],[26,4,26,6]]}
[]
[]
[]
[]
[]
[]
[null,null,null,null,"Субъект РФ",null,null,"Кемеровская область",{"$f":"INDEX(TEHSHEET!B1:B86,MATCH(region_name,REGION,0))","v":"RU42"}]
[null,null,null,null,"Период регулирования",null,null,2024]
[]
[]
[null,null,null,null,"Экспертное заключение"]
[null,null,null,null,{"$f":"IF(LEN(region_name)=0,\"<наименование регионального органа регулирования>\",VLOOKUP(region_name,OIV_LIST,2,FALSE))","v":"Региональная энергетическая комиссия Кузбасса"}]
[null,null,null,null,"по результатам экспертизы предложения"]
[null,null,null,26322895,"ОАО «СКЭК»",null,null,null,null,null,null,null,null,null,{"$f":"region_name & \" / \" & god & \" / \" & org& \" (ИНН:\" &inn& \", КПП:\" &kpp&\")\"","v":"Кемеровская область / 2024 / ОАО «СКЭК» (ИНН:4205153492, КПП:420501001)"}]
[null,null,null,null,{"$f":"\"об установлении тарифов в сфере \"&IF(AND(OR(hasVS,hasTranspVS),OR(hasVO,hasTranspVO)),\"холодного водоснабжения / водоотведения\",IF(OR(hasVS,hasTranspVS),\"холодного водоснабжения\",IF(OR(hasVO,hasTranspVO),\"водоотведения\",\"<не указано>\")))&\" методом сравнения аналогов\"","v":"об установлении тарифов в сфере водоотведения методом сравнения аналогов"}]
[null,null,null,null,{"$f":"\"на \" & god & \" год\"","v":"на 2024 год"}]
[]
[null,null,null,null,"1. Сведения о регулируемой организации"]
[null,null,null,null,"Полное наименование юридического лица (индивидуального предпринимателя) в соответствии с данными из ЕГРЮЛ/ЕГРИП",null,null,"ОТКРЫТОЕ АКЦИОНЕРНОЕ ОБЩЕСТВО \"СЕВЕРО-КУЗБАССКАЯ ЭНЕРГЕТИЧЕСКАЯ КОМПАНИЯ\""]
[null,null,null,null,"Сокращенное наименование юридического лица (индивидуального предпринимателя) в соответствии с данными из ЕГРЮЛ/ЕГРИП",null,null,"ОАО \"СКЭК\""]
[null,null,null,null,"Наименование (описание) обособленного подразделения"]
[null,null,null,null,"ОГРН",null,null,"1084205006600"]
[null,null,null,null,"ИНН",null,null,"4205153492"]
[null,null,null,null,"КПП",null,null,"420501001"]
[null,null,null,null,"Код по ОКПО",null,null,null,null,"L2_7"]
[null,null,null,null,"Организационно-правовая форма",null,null,"1 22 67 | Непубличные акционерные общества",null,"L2_8"]
[null,null,null,null,"Юридический адрес",null,null,"650000, Россия, Кемеровская область, г. Кемерово, ул. Кузбасская, 6",null,"L2_9"]
[null,null,null,null,"Фактический адрес",null,null,"650000, Россия, Кемеровская область, г. Кемерово, ул. Кузбасская, 6",null,"L2_10"]
[null,null,null,null,"Телефон организации",null,null,"(384-2)36-26-83",null,"L2_11"]
[null,null,null,null,"e-mail",null,null,"krupov@skek.ru",null,"L2_12"]
[null,null,null,null,"ФИО руководителя",null,null,"Волков Дмитрий Иванович",null,"L2_13"]
[null,null,null,null,"Должность руководителя",null,null,"Генеральный директор",null,"L2_14"]
[null,null,null,null,"Официальный сайт регулируемой организации в сети \"Интернет\"",null,null,"www.skek.ru",null,"L2_15"]
[null,null,null,null,"Государственное и (или) муниципальное участие в юридическом лице",null,"Наличие","нет",null,"L3_1"]
[null,null,null,null,null,null,"Сведения о доле, %","0 %",null,"L3_2"]
[null,null,null,null,null,null,"Преобладающий тип собственности в юридическом лице","частная",null,"L3_3"]
[null,null,null,null,"Наличие раздельного учёта затрат по регулируемым видам деятельности в сфере холодного водоснабжения / водоотведения",null,null,"да",null,"L4_1"]
[null,null,null,null,"Плательщик НДС",null,null,"да",null,"L4_2"]
[null,null,null,null,"Является ли деятельность в сфере холодного водоснабжения / водоотведения профильным видом деятельности",null,null,"да",null,"L4_3"]
[]
[null,null,null,null,"Наименование гарантирующей организации (ГО)",null,null,"АО \"СУЭК-Кузбасс\"",null,"L9_1"]
[null,null,null,null,"ИНН ГО",null,null,"4212024138",null,"L9_2"]
[null,null,null,null,"КПП ГО",null,null,"424950001",null,"L9_3"]
[null,null,null,null,"Реквизиты письма ГО о направлении данных для расчета",null,null,null,null,"L9_4"]
[null,null,null,null,"ГО плательщик НДС",null,null,"да",null,"L9_5"]
[]
[null,null,null,null,"Наличие программы в области энергосбережения и повышения энергетической эффективности",null,null,"да",null,"L4_6"]
["HAS_DOC2",null,null,null,"Наличие программы комплексного развития",null,null,"нет",null,"L4_7"]
[null,null,null,null,"Реквизиты решения","Наименование",null,""]
[null,null,null,null,null,"Вид",null,""]
[null,null,null,null,null,"Номер",null,""]
[null,null,null,null,null,"Дата принятия",null,""]
[null,null,null,null,null,"URL-ссылка на решение",null,""]
["HAS_DOC2",null,null,null,null,null,null,"Добавить"]
["HAS_DOC3",null,null,null,"Наличие схемы холодного водоснабжения / водоотведения",null,null,"да",null,"L4_8"]
[null,null,null,null,"Реквизиты решения","Наименование",null,"Об актуализации схемы водоснабжения и водоотведения на территории Полысаевского городского округа"]
[null,null,null,null,null,"Вид",null,"постановление"]
[null,null,null,null,null,"Номер",null,"1745"]
[null,null,null,null,null,"Дата принятия",null,"2016-11-14"]
[null,null,null,null,null,"URL-ссылка на решение",null,"https://portal.eias.ru/Portal/DownloadPage.aspx?type=12&guid=62b49a45-e77f-4bb4-958a-5048d92dcfa6"]
["HAS_DOC3",null,null,null,null,null,null,"Добавить"]
[null,null,null,null,"Иные сведения",null,null,null,null,"L4_13"]
[null,null,null,null,null,null,null,""]
[null,null,null,null,"Данные об ответственном исполнителе от организации",null,"ФИО исполнителя","Жулега Светлана Михайловна"]
[null,null,null,null,null,null,"Должность исполнителя"]
[null,null,null,null,null,null,"Контактный телефон исполнителя","8 (384-2) 68-18-95"]
[null,null,null,null,null,null,"e-mail исполнителя","julega@skek.ru "]
[]
[null,null,null,null,"Перечень нормативных правовых актов, использованных в процессе проведения экспертизы предложения об установлении тарифов:"]
[null,null,null,null,"1. Гражданский кодекс Российской Федерации;"]
[null,null,null,null,"2. Налоговый кодекс Российской Федерации;"]
[null,null,null,null,"3. Федеральный закон от 17.08.1995 № 147-ФЗ \"О естественных монополиях\";"]
[null,null,null,null,"4. Федеральный закон от 26.07.2006 № 135-ФЗ \"О защите конкуренции\";"]
[null,null,null,null,"5. Федеральный закон от 07.12.2011 № 416-ФЗ \"О водоснабжении и водоотведении\";"]
[null,null,null,null,"6. Федеральный закон от 23.11.2009 № 261-ФЗ \"Об энергосбережении и о повышении энергетической эффективности, и о внесении изменений в отдельные законодательные акты Российской Федерации\";"]
[null,null,null,null,"7. Постановление Правительства Российской Федерации от 13.05.2013 № 406 \"О государственном регулировании тарифов в сфере водоснабжения и водоотведения\";"]
[null,null,null,null,"8. Постановление Правительства Российской Федерации от 29.07.2013 № 641 \"Об инвестиционных и производственных программах организаций, осуществляющих деятельность в сфере водоснабжения и водоотведения\";"]
[null,null,null,null,"9. Методические указания по расчету регулируемых тарифов в сфере водоснабжения и водоотведения, утвержденные приказом ФСТ России от 27.12.2013 № 1746-э;"]
[null,null,null,null,"10. Регламент установления регулируемых тарифов в сфере водоснабжения и водоотведения, утвержденный приказом ФСТ России от 16.07.2014 № 1154-э;"]
[null,null,null,null,"11. Приказ Минстроя России от 25.12.2014 № 22/пр \"Об утверждении Порядка ведения раздельного учета затрат по видам деятельности организаций, осуществляющих горячее водоснабжение, холодное водоснабжение и (или) водоотведение, и единой системы классификации таких затрат\";"]
[null,null,null,null,"12. Приказ Минстроя России от 04.04.2014 № 162/пр \"Об утверждении перечня показателей надежности, качества, энергетической эффективности объектов централизованных систем горячего водоснабжения, холодного водоснабжения и (или) водоотведения, порядка и правил определения плановых значений и фактических значений таких показателей\";"]
[null,null,null,null,"13. Иные нормативные правовые акты Российской Федерации."]
[null,null,null,null,null,null,{"$f":"COUNTIF(H89:H103,\"Водоснабжение\")-COUNTIF(H89:H103,\"Транспортировка воды\")>0","v":false},{"$f":"COUNTIF(H89:H103,\"Водоотведение\")-COUNTIF(H89:H103,\"Транспортировка сточных вод\")>0","v":false},{"$f":"COUNTIF(H89:H103,\"Транспортировка воды\")>0","v":false},{"$f":"COUNTIF(H89:H103,\"Транспортировка сточных вод\")>0","v":true}]
[null,null,null,null,"2. Информация о рассмотрении дела об установлении тарифов"]
[null,null,null,null,"Реквизиты решения, которым установлены действующие тарифы",null,"Организация регулируется впервые","нет",null,"L6_1"]
[null,null,null,null,null,null,"Вид","постановление",null,"L6_2"]
[null,null,null,null,null,null,"Номер","442",null,"L6_3"]
[null,null,null,null,null,null,"Дата принятия","2022-11-24",null,"L6_4"]
[null,null,null,"0",{"$f":"\"Заявление организации\"","v":"Заявление организации"}]
[null,null,null,"1",null,null,{"$f":"\"Тариф \" & D90","v":"Тариф 1"},"Водоотведение","О",{"$f":"G90 & \" (\" &H90& \") - \" &H92 & IF(H96=\"\",\"\",\" (\" & H96 & \")\")","v":"Тариф 1 (Водоотведение) - тариф на транспортировку сточных вод"},{"$f":"H95","v":"без дифференциации"},{"$f":"H92","v":"тариф на транспортировку сточных вод"},{"$f":"H96","v":0},{"$f":"H93","v":"одноставочный"}]
[null,null,null,null,null,null,"Номер тарифа (идентификатор)","ВО.42.26322895.0022"]
[null,null,null,null,null,null,"Вид тарифа","тариф на транспортировку сточных вод"]
[null,null,null,null,null,null,"Тип тарифа","одноставочный"]
[null,null,null,null,null,null,"Вид(-ы) деятельности","Транспортировка сточных вод"]
[null,null,null,null,null,null,{"$f":"IF(H90=\"Водоотведение\",\"Вид сточных вод\",\"Вид воды\")","v":"Вид сточных вод"},"без дифференциации"]
[null,null,null,null,null,null,"Дополнительный признак дифференциации тарифа"]
[null,{"$f":"org_declaration=\"Заявление организации\"","v":true},null,null,null,null,"Номер входящий",2413]
[null,true,null,null,null,null,"Дата регистрации","2023-04-27"]
[null,true,null,null,null,null,"Дополнительные сведения"]
[null,true,null,null,null,null,"Метод регулирования, предложенный организацией","сравнения аналогов"]
[null,true,null,null,null,null,{"$f":"IF(OR(H100=\"экономически обоснованных расходов (затрат)\",H100=\"сравнения аналогов\"),\"Период регулирования\",\"Первый год долгосрочного периода регулирования, предложенный организацией\")","v":"Период регулирования"}]
[null,true,null,null,null,null,"Период долгосрочной индексации (количество лет)"]
[null,null,null,null,null,null,"Добавить тариф"]
[null,null,null,null,"Решение об открытии дела об установлении тарифов",null,"Номер дела (приказа) об установлении тарифа","№ 26-ВО",null,"L7_2"]
[null,null,null,null,null,null,"ФИО уполномоченного по делу","Белоусова Ирина Анатольевна",null,"L7_3"]
[null,null,null,null,null,null,"Должность уполномоченного по делу","Главный консультант",null,"L7_4"]
[null,null,null,null,null,null,"Контактный телефон уполномоченного по делу","8 (384-2) 34-94-52",null,"L7_5"]
[null,null,null,null,null,null,"e-mail уполномоченного по делу","belousova_ia.71@mail.ru",null,"L7_6"]
[null,null,null,null,null,null,"Добавить строку"]
[null,null,null,null,null,null,"Выбранный метод регулирования","сравнения аналогов"]
[null,null,null,null,null,null,"Период регулирования",{"$f":"god","v":2024}]
[null,null,null,null,"Представленные документы и материалы достаточны и предложение регулируемой организации об установлении тарифов соответствует законодательству Российской Федерации",null,null,"да"]

{"sheet":"Список территорий","index":11,"n_rows":17,"n_cols":17,"rows_kept":17,"cut":false,"hidden":false,"merged":[[11,11,11,16]]}
[null,null,null,null,null,null,null,null,null,null,null,null,"MR_NAME","MO_NAME","OKTMO"]
[]
[]
[]
[]
[]
[]
[]
[]
[]
[null,null,null,null,null,null,null,null,null,null,null,null,{"$f":"tpl_title","v":"Кемеровская область / 2024 / ОАО «СКЭК» (ИНН:4205153492, КПП:420501001)"}]
[null,null,null,null,null,null,null,null,null,null,null,"3. Перечень муниципальных образований, на территории которых организация оказывает услуги холодного водоснабжения / водоотведения"]
[]
[null,null,null,null,null,null,null,null,null,null,null,"№ п/п","Муниципальный район","Муниципальное образование","ОКТМО","Тип муниципального образования ","Дополнительные сведения"]
[{"$f":"'Общие сведения'!$D$90","v":"1"},null,null,null,null,null,null,null,null,null,null,{"$f":"INDEX('Общие сведения'!$J$89:$J$103,MATCH($A15,'Общие сведения'!$D$89:$D$103,0))","v":"Тариф 1 (Водоотведение) - тариф на транспортировку сточных вод"}]
[{"$f":"A15","v":"1"},null,null,null,null,null,null,null,null,null,null,"1","город Полысаево","город Полысаево","32732000",null,"В границах ул. Полысаево, ул. Токарева"]
[{"$f":"A15","v":"1"},null,null,null,null,null,null,null,null,null,null,null,"Добавить территорию"]

{"sheet":"Список объектов","index":12,"n_rows":27,"n_cols":18,"rows_kept":27,"cut":false,"hidden":false,"merged":[[11,11,11,16],[13,11,14,11],[22,11,22,16],[13,12,14,12],[13,13,14,13],[13,16,14,16],[20,14,20,16]]}
[null,null,null,null,null,null,null,null,null,null,null,null,null,null,{"$f":"god","v":2024},{"$f":"god","v":2024},{"$f":"god","v":2024}]
[null,null,null,null,null,null,null,null,null,null,null,null,null,null,"Предложение организации","Принято органом регулирования","Не определено"]
[]
[]
[]
[]
[]
[]
[]
[]
[null,null,null,null,null,null,null,null,null,null,null,null,{"$f":"tpl_title","v":"Кемеровская область / 2024 / ОАО «СКЭК» (ИНН:4205153492, КПП:420501001)"}]
[null,null,null,null,null,null,null,null,null,null,null,"4. Перечень объектов организации, с помощью которых организация оказывает услуги холодного водоснабжения/ водоотведения"]
[]
[null,null,null,null,null,null,null,null,null,null,null,"№ п/п","Наименование показателя","Единица измерения",{"$f":"god & \" год\"","v":"2024 год"},{"$f":"god & \" год\"","v":"2024 год"},"Комментарии"]
["t",null,null,null,null,null,null,null,null,null,null,null,null,null,"Предложение организации","Принято органом регулирования"]
[{"$f":"'Общие сведения'!$D$90","v":"1"},null,null,null,null,null,null,null,null,null,null,{"$f":"INDEX('Общие сведения'!$J$89:$J$103,MATCH($A16,'Общие сведения'!$D$89:$D$103,0))","v":"Тариф 1 (Водоотведение) - тариф на транспортировку сточных вод"}]
[{"$f":"A16","v":"1"},"L1","L3",{"$f":"M17&\"::\"&N17","v":"Канализационные насосные станции::ед."},"ЭЭ",null,null,null,null,null,null,1,"Канализационные насосные станции","ед.",0,0]
[{"$f":"A17","v":"1"},"L1","L3",{"$f":"M18&\"::\"&N18","v":"Канализационные сети::км"},null,null,null,null,null,null,null,2,"Канализационные сети","км",{"$f":"SUMIFS('Условные метры'!$U$17:$U$22,'Условные метры'!$A$17:$A$22,$A18,'Условные метры'!$B$17:$B$22,\"Итог\")","v":1.0529999999999999},{"$f":"SUMIFS('Условные метры'!$W$17:$W$22,'Условные метры'!$A$17:$A$22,$A18,'Условные метры'!$B$17:$B$22,\"Итог\")","v":1.0529999999999999}]
[{"$f":"OFFSET(B19,-1,-1)","v":"1"},"L1","L3",{"$f":"M19&\"::\"&N19","v":"Канализационные сети с реестровым номером 101031000847 (кадастровый номер 42:38:0101002:21176)::км"},null,null,null,null,null,null,"О",3,"Канализационные сети с реестровым номером 101031000847 (кадастровый номер 42:38:0101002:21176)","км",1.0529999999999999,1.0529999999999999]
[{"$f":"A18","v":"1"},{"$f":"A20&\"pIns\"","v":"1pIns"},null,null,null,null,null,null,null,null,null,null,"Добавить"]
[{"$f":"A20","v":"1"},"L2","L3",{"$f":"M21","v":"Краткое описание технологического процесса"},null,null,null,null,null,null,null,null,"Краткое описание технологического процесса",null,"Канализационные сети с реестровым номером 101031000847 (кадастровый номер 42:38:0101002:21176, № 60 в Перечне Иного имущества, передаваемого по указанному Концессионному соглашению),  в отношении которых устанавливается тариф на транспортировку сточных вод, расположены в поселке шахты Полысаевская, удаленном от центральной части города Полысаево. \nСети состоят из безнапорных трубопроводов канализации. Сбор канализационных сточных вод производится по разветвленной сети, начиная от выпусков из зданий по внутриквартальным сетям, которые собирают стоки в коллектор. По коллекторам стоки транспортируются на очистные сооружения АО «СУЭК-Кузбасс» (до 2020 г. - Шахтопроходческое управление, Обогатительная фабрика). \nСогласно данным Приложения № 2, суммарная протяженность канализационной сети составляет 1,053 км, величина первоначальной стоимости – 1500,20 тыс. руб.\nСогласно постановлению Администрации Полысаевского городского округа от 02.09.2013 № 1443 «Об определении гарантирующих организаций, осуществляющих водоснабжение и водоотведение на территории Полысаевского городского округа»,  АО «СУЭК-Кузбасс» наделено статусом гарантирующего поставщика услуг водоотведения на территории Полысаевского городского округа  в границах улиц Техническая и Токарева. "]
[]
[null,null,null,null,null,null,null,null,null,null,null,"Правоустанавливающие и подтверждающие документы на объекты коммунальной инфраструктуры"]
[null,null,null,null,null,null,null,null,null,null,null,null,"L1","L2","L3","L4_1","L4_2","L5"]
["t",null,null,null,null,null,null,null,null,null,null,"№ п/п","Объект коммунальной инфраструктуры","Основание эксплуатации","Вид документа","Номер документа","Дата документа","Срок действия"]
[null,null,null,"ВО",null,"сеть","Сети водоотведения (транспортировка)","г Полысаево / г. Полысаево / б/н",null,null,"О",1,{"$f":"F26&\" :: \" &G26&\" :: \" & H26","v":"сеть :: Сети водоотведения (транспортировка) :: г Полысаево / г. Полысаево / б/н"},"концессионное соглашение","соглашение","3","14.11.2019","До 31.12.2028"]
["t",null,null,null,null,null,null,null,null,null,null,null,"Добавить объект"]

{"sheet":"Баланс","index":13,"n_rows":42,"n_cols":21,"rows_kept":42,"cut":false,"hidden":false,"merged":[[41,11,41,12],[14,11,15,11],[18,11,19,11],[35,11,35,20],[36,11,36,20],[14,12,15,12],[14,13,15,13],[14,20,15,20],[18,20,19,20],[18,12,19,12],[18,13,19,13],[37,11,37,20],[38,11,38,20],[39,11,39,20],[40,11,40,20]]}
[null,null,null,null,null,null,null,null,null,null,null,null,null,null,{"$f":"god-2","v":2022},{"$f":"god-2","v":2022},{"$f":"god-2","v":2022},{"$f":"god-1","v":2023},{"$f":"god","v":2024},{"$f":"god","v":2024}]
[null,null,null,null,null,null,null,null,null,null,null,null,null,null,{"$f":"O16","v":"Принято органом регулирования"},"Факт по данным организации","Факт, принятый органом регулирования","Принято органом регулирования","Предложение организации","Принято органом регулирования"]
[null,null,null,null,null,null,null,null,null,null,null,null,null,null,{"$f":"O1&O2","v":"2022Принято органом регулирования"},{"$f":"P1&P2","v":"2022Факт по данным организации"},{"$f":"Q1&Q2","v":"2022Факт, принятый органом регулирования"},{"$f":"R1&R2","v":"2023Принято органом регулирования"}]
[]
[]
[]
[]
[]
[]
[]
[null,null,null,null,null,null,null,null,null,null,null,null,{"$f":"tpl_title","v":"Кемеровская область / 2024 / ОАО «СКЭК» (ИНН:4205153492, КПП:420501001)"}]
[null,null,null,null,null,null,null,null,null,null,null,"5. Баланс водоснабжения / водоотведения"]
[]
[null,null,null,null,null,null,{"$f":"hasTranspVS","v":false},null,null,null,null,"5.1. Баланс водоснабжения (транспортировка воды)"]
[null,null,null,null,null,null,{"$f":"hasTranspVS","v":false},null,null,null,null,"№ п/п","Наименование показателя","Единица измерения",{"$f":"god-2 & \" год\"","v":"2022 год"},{"$f":"god-2 & \" год\"","v":"2022 год"},{"$f":"god-2 & \" год\"","v":"2022 год"},{"$f":"god-1 & \" год\"","v":"2023 год"},{"$f":"god & \" год\"","v":"2024 год"},{"$f":"god & \" год\"","v":"2024 год"},"Ссылка на правовую норму (основание для принятия показателя в расчет тарифа)"]
[null,null,null,null,null,null,{"$f":"hasTranspVS","v":false},null,null,null,null,null,null,null,"Принято органом регулирования","Факт по данным организации","Факт, принятый органом регулирования","Принято органом регулирования","Предложение организации","Принято органом регулирования"]
[null,null,null,null,null,null,{"$f":"hasTranspVS","v":false}]
[null,null,null,null,null,null,{"$f":"hasTranspVO","v":true},null,null,null,null,"5.2. Баланс водоотведения (транспортировка сточных вод)"]
[null,null,null,null,null,null,{"$f":"hasTranspVO","v":true},null,null,null,null,"№ п/п","Наименование показателя","Единица измерения",{"$f":"god-2 & \" год\"","v":"2022 год"},{"$f":"god-2 & \" год\"","v":"2022 год"},{"$f":"god-2 & \" год\"","v":"2022 год"},{"$f":"god-1 & \" год\"","v":"2023 год"},{"$f":"god & \" год\"","v":"2024 год"},{"$f":"god & \" год\"","v":"2024 год"},"Ссылка на правовую норму (основание для принятия показателя в расчет тарифа)"]
[null,null,null,null,null,null,{"$f":"hasTranspVO","v":true},null,null,null,null,null,null,null,"Принято органом регулирования","Факт по данным организации","Факт, принятый органом регулирования","Принято органом регулирования","Предложение организации","Принято органом регулирования"]
[{"$f":"'Общие сведения'!$D$90","v":"1"},null,null,null,null,null,null,null,null,null,null,{"$f":"INDEX('Общие сведения'!$J$89:$J$103,MATCH($A21,'Общие сведения'!$D$89:$D$103,0))","v":"Тариф 1 (Водоотведение) - тариф на транспортировку сточных вод"}]
[{"$f":"A21","v":"1"},null,null,null,null,null,null,null,null,null,null,"1","Вид стоков",null,{"$f":"INDEX('Общие сведения'!$K$89:$K$103,MATCH($A22,'Общие сведения'!$D$89:$D$103,0))","v":"без дифференциации"}]
["1",null,"L2",null,null,null,null,null,null,null,null,"2","Установленная мощность","куб.м/час",null,400,{"$f":"P23/24","v":16.666666666666668},null,null,{"$f":"Q23","v":16.666666666666668}]
["1",null,"L3",null,null,null,null,null,null,null,null,"3","Подключённая (фактическая) нагрузка","куб.м/час",null,220,{"$f":"P24/24","v":9.1666666666666661},null,null,{"$f":"Q24","v":9.1666666666666661}]
["1",null,"L4",null,null,null,null,null,null,null,null,"4","Объём транспортируемых сточных вод","тыс.куб.м",{"$f":"O26+O28+O27","v":38.54},36.84995,36.84995,37.380000000000003,36.799999999999997,36.799999999999997]
["1",null,"L4_1",null,null,null,null,null,null,null,null,"4.1","на собственные очистные сооружения","тыс.куб.м"]
["1",null,"L4_2",null,null,null,null,null,null,null,null,"4.2","другим организациям","тыс.куб.м",{"$f":"O32","v":38.54},{"$f":"P32","v":36.84995},{"$f":"P27","v":36.84995},{"$f":"R32","v":37.380000000000003},{"$f":"S32","v":36.799999999999997},{"$f":"T32","v":36.799999999999997}]
["1",null,"L4_3",null,null,null,null,null,null,null,null,"4.3","Передано на другие территории, дифференцированные по тарифу","тыс.куб.м"]
["1","ПО","L5",null,null,null,null,null,null,null,null,"5","Приём сточных вод, поступающих на очистные сооружения","тыс.куб.м",{"$f":"O30+O31+O34","v":38.54},36.84995,36.84995,37.380000000000003,36.799999999999997,36.799999999999997]
["1",null,"L5_1",null,null,null,null,null,null,null,null,"5.1","от собственных нужд","тыс.куб.м"]
["1",null,"L5_2",null,null,null,null,null,null,null,null,"5.2","от других канализаций или отдельных канализационных сетей","тыс.куб.м",{"$f":"O32+O33","v":38.54},36.84995,36.84995,37.380000000000003,36.799999999999997,36.799999999999997]
["1",null,"L5_2_1",null,null,null,null,null,null,null,null,"5.2.1","по приборам учёта","тыс.куб.м",38.54,{"$f":"36849.95/1000","v":36.84995},{"$f":"P32","v":36.84995},37.380000000000003,36.799999999999997,36.799999999999997,"п. 8 Методических указаний ФСТ № 1746-э."]
["1",null,"L5_2_2",null,null,null,null,null,null,null,null,"5.2.2","по нормативам","тыс.куб.м"]
["1",null,"L5_3",null,null,null,null,null,null,null,null,"5.3","Получено от других территорий, дифференцированных по тарифу","тыс.куб.м"]
[null,null,null,null,null,null,{"$f":"hasTranspVO","v":true}]
[null,null,null,null,null,null,null,null,null,null,null,"Комментарии и обоснования к разделу"]
[null,null,null,null,null,null,null,null,null,null,null,"Фактические объемы реализации услуги транспортировки сточных вод за 2022 год определены на основании материалов, представленных  в  Деле № 60-ВО «Об установлении тарифов на услугу водоотведения на 2024-2028 годы, оказываемую АО «СУЭК-Кузбасс» (г. Полысаево)» (документы представлены на бумажном носителе), а именно:                "]
[null,null,null,null,null,null,null,null,null,null,"О ","1) \"Сведения по транспортировке по договору № 300 ( от 01.01.2020) со \"СКЭК\" за 2022 год\"  (Том № 6,  стр. 115);         2) копии счетов-фактур за 2022 год  - (Т. № 6,  стр. 78 - 112)."]
[null,null,null,null,null,null,null,null,null,null,"О ","Данные АО \"СУЭК-Кузбасс\" совпадают с данными, представленными ОАО \"СКЭК\"   (см. \"Отчеты с суммами по номенклатуре  по оказанию услуг в разрезе номенклатурных номеров\" за периоды выписки: с 01/01/2022 по 30/06/2022, с 01/07/2022 по 30/11/2022, с 01/12/2022 по 31/12/2022)."]
[null,null,null,null,null,null,null,null,null,null,"О ","При расчете плановых объемов  реализации на 2024 год  использованы имеющиеся у регулятора данные о фактических объемах реализации за 2020, 2021 и 2022 г.  (данные за 2019 г. не использованы   в связи с тем, что регулируемая деятельность на данной территории осуществляется ОАО \"СКЭК\" начиная с 01.05.2019). Плановый показатель реализации на 2024 г., определенный в соответствии сФормулами (1), (1.1) Методических указаний, составил 35 235,73 м3. "]
[null,null,null,null,null,null,null,null,null,null,"О ","По итогам проведенной экспертизы плановый объем реализации на 2024 г. принят на уровне величины, предложенной организацией."]
[null,null,null,null,null,null,null,null,null,null,null,"Добавить комментарий"]

{"sheet":"Условные метры","index":14,"n_rows":26,"n_cols":26,"rows_kept":26,"cut":false,"hidden":false,"merged":[[12,11,12,22],[15,20,15,21],[13,17,16,17],[13,18,16,18],[13,20,13,23],[14,20,14,23],[22,11,22,25],[23,11,23,25],[25,11,25,12],[15,22,15,23],[13,19,16,19],[13,25,16,25],[13,11,16,11],[13,12,16,12],[13,13,16,13],[13,14,16,14],[13,15,16,15],[13,16,16,16],[13,24,16,24],[24,11,24,25]]}
[null,null,null,null,null,null,null,null,null,null,null,null,null,null,null,null,null,null,null,null,{"$f":"god","v":2024},null,{"$f":"god","v":2024}]
[]
[]
[null,null,null,null,null,null,null,null,null,null,null,null,"L1","L2","L3","L4","L5","L6","L7","L8","L9_1","L9_2","L9_3","L9_4","L13","L14"]
[]
[]
[]
[]
[]
[]
[null,null,null,null,null,null,null,null,null,null,null,null,{"$f":"tpl_title","v":"Кемеровская область / 2024 / ОАО «СКЭК» (ИНН:4205153492, КПП:420501001)"}]
[null,null,null,null,null,null,null,null,null,null,null,"6. Расчет условных метров водопроводной (канализационной) сети"]
[]
[null,null,null,null,null,null,null,null,null,null,null,"№\nп/п","Размер диаметра трубопровода, мм","Тип материала трубопровода","Тип грунта","Глубина грунта, м","Средняя стоимость строительства 1 км трубопровода, \nтыс. руб.","Средняя стоимость строительства 1 км трубопровода диаметром 500 мм, тыс.руб.","Источник информации по средней стоимости строительства","Kd","Протяженность",null,null,null,"Ссылка на правовую норму (основание для принятия показателя в расчет тарифа)","Комментарии"]
[null,null,null,null,null,null,null,null,null,null,null,null,null,null,null,null,null,null,null,null,{"$f":"god & \" год\"","v":"2024 год"}]
[null,null,null,null,null,null,null,null,null,null,null,null,null,null,null,null,null,null,null,null,"Предложение организации",null,"Принято органом регулирования"]
[null,null,null,null,null,null,null,null,null,null,null,null,null,null,null,null,null,null,null,null,"км","усл.км","км","усл.км"]
[{"$f":"'Общие сведения'!$D$90","v":"1"},"Итог",null,null,null,null,null,null,null,null,null,{"$f":"INDEX('Общие сведения'!$J$89:$J$103,MATCH($A18,'Общие сведения'!$D$89:$D$103,0))","v":"Тариф 1 (Водоотведение) - тариф на транспортировку сточных вод"},null,null,null,null,null,null,null,null,{"$f":"SUM(U19:U21)","v":1.0529999999999999},{"$f":"SUM(V19:V21)","v":0.57099999999999995},{"$f":"SUM(W19:W21)","v":1.0529999999999999},{"$f":"SUM(X19:X21)","v":0.5750630633287499}]
[{"$f":"A18","v":"1"},null,null,null,null,null,null,null,null,null,null,0,null,null,null,null,null,{"$f":"OFFSET(R19,-1,0)","v":0}]
[{"$f":"OFFSET(A20,-1,0)","v":"1"},null,null,null,null,null,null,null,null,null,"О","1","Ду от 150 до 200 мм (включительно)","чугун","мокрый","3",1481.44,2712.67,"Сметные расчёты организации",{"$f":"IF(R20=0,0,Q20/R20)","v":0.54611876859330477},1.0529999999999999,0.57099999999999995,1.0529999999999999,{"$f":"W20*$T20","v":0.5750630633287499},"П. 38 Методических указаний  ФСТ № 1746-э."]
[{"$f":"A19","v":"1"},{"$f":"A21&\"pIns\"","v":"1pIns"},null,null,null,null,null,null,null,null,null,null,"Добавить"]
[]
[null,null,null,null,null,null,null,null,null,null,null,"Комментарии и обоснования к разделу"]
[null,null,null,null,null,null,null,null,null,null,null,"Представленный гарантирующей организацией в целях тарифного регулирования на 2024 год расчет коэффициентов дифференциации стоимости строительства канализационных сетей (имеется в \"Расчете размера удельных текущих расходов\" на стр. 26 в Томе № 3  Дела № 60-ВО)  не подкреплен сметными расчетами.  Регулятором использованы данные имеющихся  дел об установлении тарифов на транспортировку сточных вод на территории г. Полысаево на  2020, 2021, 2022 год, которые были ранее подтверждены сметными расчетами АО \"СУЭК-Кузбасс\". "]
[null,null,null,null,null,null,null,null,null,null,"О ",""]
[null,null,null,null,null,null,null,null,null,null,null,"Добавить комментарий"]

{"sheet":"et_union","index":15,"n_rows":204,"n_cols":24,"rows_kept":204,"cut":false,"hidden":true,"merged":[[39,14,39,16],[45,14,45,16],[2,3,14,3],[17,4,21,4],[17,5,17,6],[18,5,18,6],[19,5,19,6],[20,5,20,6],[21,5,21,6]]}
["Титульный"]
["et_List00_tariff"]
[null,null,null,"1",null,null,{"$f":"\"Тариф \" & D3","v":"Тариф 1"},"Водоснабжение","О",{"$f":"G3 & \" (\" &H3& \") - \" &H5 & IF(H9=\"\",\"\",\" (\" & H9 & \")\")","v":"Тариф 1 (Водоснабжение) - "},{"$f":"H8","v":0},{"$f":"H5","v":0},{"$f":"H9","v":0},{"$f":"H6","v":"одноставочный"}]
[null,null,null,null,null,null,"Номер тарифа (идентификатор)"]
[null,null,null,null,null,null,"Вид тарифа"]
[null,null,null,null,null,null,"Тип тарифа","одноставочный"]
[null,null,null,null,null,null,"Вид(-ы) деятельности"]
[null,null,null,null,null,null,{"$f":"IF(H3=\"Водоотведение\",\"Вид сточных вод\",\"Вид воды\")","v":"Вид воды"}]
[null,null,null,null,null,null,"Дополнительный признак дифференциации тарифа"]
[null,{"$f":"org_declaration=\"Заявление организации\"","v":true},null,null,null,null,"Номер входящий"]
[null,true,null,null,null,null,"Дата регистрации"]
[null,true,null,null,null,null,"Дополнительные сведения"]
[null,true,null,null,null,null,"Метод регулирования, предложенный организацией"]
[null,true,null,null,null,null,{"$f":"IF(OR(H13=\"экономически обоснованных расходов (затрат)\",H13=\"сравнения аналогов\"),\"Период регулирования\",\"Первый год долгосрочного периода регулирования, предложенный организацией\")","v":"Первый год долгосрочного периода регулирования, предложенный организацией"}]
[null,true,null,null,null,null,"Период долгосрочной индексации (количество лет)"]
["et_List00_HAS_DOC2"]
["et_List00_HAS_DOC3"]
[null,null,null,"О","Реквизиты решения","Наименование"]
[null,null,null,null,null,"Вид"]
[null,null,null,null,null,"Номер"]
[null,null,null,null,null,"Дата принятия"]
[null,null,null,null,null,"URL-ссылка на решение"]
["et_List00_fio"]
[null,null,null,null,null,null,null,null,"О"]
[]
["1. Список территорий"]
["et_List01_tariff"]
["1",null,null,null,null,null,null,null,null,null,null,{"$f":"INDEX('Общие сведения'!$J$89:$J$103,MATCH($A28,'Общие сведения'!$D$89:$D$103,0))","v":"Тариф 1 (Водоотведение) - тариф на транспортировку сточных вод"}]
[{"$f":"A28","v":"1"},null,null,null,null,null,null,null,null,null,null,"1"]
[{"$f":"A28","v":"1"},null,null,null,null,null,null,null,null,null,null,null,"Добавить территорию"]
["et_List01_mo"]
[{"$f":"OFFSET(A32,-1,0)","v":"et_List01_mo"},null,null,null,null,null,null,null,null,null,"О","1"]
[]
["2. Список объектов"]
["et_List02_tariff_vs"]
["1",null,null,null,null,null,null,null,null,null,null,{"$f":"INDEX('Общие сведения'!$J$89:$J$103,MATCH($A36,'Общие сведения'!$D$89:$D$103,0))","v":"Тариф 1 (Водоотведение) - тариф на транспортировку сточных вод"}]
[{"$f":"A36","v":"1"},"L1","L3",{"$f":"M37&\"::\"&N37","v":"Подкачивающие насосные станции::ед."},"ЭЭ",null,null,null,null,null,null,1,"Подкачивающие насосные станции","ед."]
[{"$f":"A37","v":"1"},"L1","L3",{"$f":"M38&\"::\"&N38","v":"Водопроводные сети::км"},null,null,null,null,null,null,null,2,"Водопроводные сети","км",{"$f":"SUMIFS('Условные метры'!$U$17:$U$22,'Условные метры'!$A$17:$A$22,$A38,'Условные метры'!$B$17:$B$22,\"Итог\")","v":1.0529999999999999},{"$f":"SUMIFS('Условные метры'!$W$17:$W$22,'Условные метры'!$A$17:$A$22,$A38,'Условные метры'!$B$17:$B$22,\"Итог\")","v":1.0529999999999999}]
[{"$f":"A38","v":"1"},{"$f":"A39&\"pIns\"","v":"1pIns"},null,null,null,null,null,null,null,null,null,null,"Добавить"]
[{"$f":"A39","v":"1"},"L2","L3",{"$f":"M40","v":"Краткое описание технологического процесса"},null,null,null,null,null,null,null,null,"Краткое описание технологического процесса"]
["et_List02_tariff_vo"]
["1",null,null,null,null,null,null,null,null,null,null,{"$f":"INDEX('Общие сведения'!$J$89:$J$103,MATCH($A42,'Общие сведения'!$D$89:$D$103,0))","v":"Тариф 1 (Водоотведение) - тариф на транспортировку сточных вод"}]
[{"$f":"A42","v":"1"},"L1","L3",{"$f":"M43&\"::\"&N43","v":"Канализационные насосные станции::ед."},"ЭЭ",null,null,null,null,null,null,1,"Канализационные насосные станции","ед."]
[{"$f":"A43","v":"1"},"L1","L3",{"$f":"M44&\"::\"&N44","v":"Канализационные сети::км"},null,null,null,null,null,null,null,2,"Канализационные сети","км",{"$f":"SUMIFS('Условные метры'!$U$17:$U$22,'Условные метры'!$A$17:$A$22,$A44,'Условные метры'!$B$17:$B$22,\"Итог\")","v":1.0529999999999999},{"$f":"SUMIFS('Условные метры'!$W$17:$W$22,'Условные метры'!$A$17:$A$22,$A44,'Условные метры'!$B$17:$B$22,\"Итог\")","v":1.0529999999999999}]
[{"$f":"A44","v":"1"},{"$f":"A45&\"pIns\"","v":"1pIns"},null,null,null,null,null,null,null,null,null,null,"Добавить"]
[{"$f":"A45","v":"1"},"L2","L3",{"$f":"M46","v":"Краткое описание технологического процесса"},null,null,null,null,null,null,null,null,"Краткое описание технологического процесса"]
["et_List02_obj"]
[null,null,null,null,null,null,null,null,null,null,"О",null,{"$f":"F48&\" :: \" &G48&\" :: \" & H48","v":" ::  :: "}]
["et_List02_1"]
[{"$f":"OFFSET(B50,-1,-1)","v":"et_List02_1"},"L1","L3",{"$f":"M50&\"::\"&N50","v":"::"},null,null,null,null,null,null,"О",1]
[]
["3. Баланс"]
["et_List03_tariff_vs_transp"]
["1",null,null,null,null,null,null,null,null,null,null,{"$f":"INDEX('Общие сведения'!$J$89:$J$103,MATCH($A54,'Общие сведения'!$D$89:$D$103,0))","v":"Тариф 1 (Водоотведение) - тариф на транспортировку сточных вод"}]
[{"$f":"A54","v":"1"},null,null,null,null,null,null,null,null,null,null,"1","Вид воды",null,{"$f":"INDEX('Общие сведения'!$K$89:$K$103,MATCH($A55,'Общие сведения'!$D$89:$D$103,0))","v":"без дифференциации"}]
["1",null,"L2",null,null,null,null,null,null,null,null,"2","Установленная мощность","куб.м/час"]
["1",null,"L3",null,null,null,null,null,null,null,null,"3","Подключённая (фактическая) нагрузка","куб.м/час"]
["1",null,"L4",null,null,null,null,null,null,null,null,4,"Объём воды, поступившей в сеть","тыс.куб.м",{"$f":"O62+O64+O67+O70","v":0},0,0,0,0,0]
["1",null,"L4_1",null,null,null,null,null,null,null,null,"4.1","из собственных источников","тыс.куб.м"]
["1",null,"L4_2",null,null,null,null,null,null,null,null,"4.2","от других операторов","тыс.куб.м"]
["1",null,"L4_3",null,null,null,null,null,null,null,null,"4.3","получено от других территорий, дифференцированных по тарифу","тыс.куб.м"]
["1",null,"L5",null,null,null,null,null,null,null,null,"5","Потери воды","тыс.куб.м"]
["1",null,"L5_1",null,null,null,null,null,null,null,null,"5.1","Уровень потерь воды","%",{"$f":"IF(O58=0,0,O62/O58*100)","v":0},0,0,0,0,0]
["1",null,"L6",null,null,null,null,null,null,null,null,"6","Расход воды на нужды предприятия","тыс.куб.м",{"$f":"O65+O66","v":0},0,0,0,0,0]
["1",null,"L6_1",null,null,null,null,null,null,null,null,"6.1","хозяйственные нужды","тыс.куб.м"]
["1",null,"L6_2",null,null,null,null,null,null,null,null,"6.2","на основное производство","тыс.куб.м"]
["1","ПО","L7",null,null,null,null,null,null,null,null,"7","Отпущено воды другим водопроводам","тыс.куб.м",{"$f":"O68+O69","v":0},0,0,0,0,0]
["1",null,"L7_1",null,null,null,null,null,null,null,null,"7.1","по приборам учёта","тыс.куб.м"]
["1",null,"L7_2",null,null,null,null,null,null,null,null,"7.2","по нормативам","тыс.куб.м"]
["1",null,"L8",null,null,null,null,null,null,null,null,"8","Передано на другие территории, дифференцированные по тарифу","тыс.куб.м"]
["et_List03_tariff_vo_transp"]
["1",null,null,null,null,null,null,null,null,null,null,{"$f":"INDEX('Общие сведения'!$J$89:$J$103,MATCH($A72,'Общие сведения'!$D$89:$D$103,0))","v":"Тариф 1 (Водоотведение) - тариф на транспортировку сточных вод"}]
[{"$f":"A72","v":"1"},null,null,null,null,null,null,null,null,null,null,"1","Вид стоков",null,{"$f":"INDEX('Общие сведения'!$K$89:$K$103,MATCH($A73,'Общие сведения'!$D$89:$D$103,0))","v":"без дифференциации"}]
["1",null,"L2",null,null,null,null,null,null,null,null,"2","Установленная мощность","куб.м/час"]
["1",null,"L3",null,null,null,null,null,null,null,null,"3","Подключённая (фактическая) нагрузка","куб.м/час"]
["1",null,"L4",null,null,null,null,null,null,null,null,"4","Объём транспортируемых сточных вод","тыс.куб.м",{"$f":"O77+O79+O78","v":0},0,0,0,0,0]
["1",null,"L4_1",null,null,null,null,null,null,null,null,"4.1","на собственные очистные сооружения","тыс.куб.м"]
["1",null,"L4_2",null,null,null,null,null,null,null,null,"4.2","другим организациям","тыс.куб.м"]
["1",null,"L4_3",null,null,null,null,null,null,null,null,"4.3","Передано на другие территории, дифференцированные по тарифу","тыс.куб.м"]
["1","ПО","L5",null,null,null,null,null,null,null,null,"5","Приём сточных вод, поступающих на очистные сооружения","тыс.куб.м",{"$f":"O81+O82+O85","v":0},0,0,0,0,0]
["1",null,"L5_1",null,null,null,null,null,null,null,null,"5.1","от собственных нужд","тыс.куб.м"]
["1",null,"L5_2",null,null,null,null,null,null,null,null,"5.2","от других канализаций или отдельных канализационных сетей","тыс.куб.м",{"$f":"O83+O84","v":0},0,0,0,0,0]
["1",null,"L5_2_1",null,null,null,null,null,null,null,null,"5.2.1","по приборам учёта","тыс.куб.м"]
["1",null,"L5_2_2",null,null,null,null,null,null,null,null,"5.2.2","по нормативам","тыс.куб.м"]
["1",null,"L5_3",null,null,null,null,null,null,null,null,"5.3","Получено от других территорий, дифференцированных по тарифу","тыс.куб.м"]
[]
["4. Условные метры"]
["et_List04_tariff"]
["1","Итог",null,null,null,null,null,null,null,null,null,{"$f":"INDEX('Общие сведения'!$J$89:$J$103,MATCH($A89,'Общие сведения'!$D$89:$D$103,0))","v":"Тариф 1 (Водоотведение) - тариф на транспортировку сточных вод"},null,null,null,null,null,null,null,null,{"$f":"SUM(U90:U91)","v":0},{"$f":"SUM(V90:V91)","v":0},{"$f":"SUM(W90:W91)","v":0},{"$f":"SUM(X90:X91)","v":0}]
[{"$f":"A89","v":"1"},null,null,null,null,null,null,null,null,null,null,0,null,null,null,null,null,{"$f":"OFFSET(R90,-1,0)","v":0}]
[{"$f":"A90","v":"1"},{"$f":"A91&\"pIns\"","v":"1pIns"},null,null,null,null,null,null,null,null,null,null,"Добавить"]
["et_List04_1"]
[{"$f":"OFFSET(A93,-1,0)","v":"et_List04_1"},null,null,null,null,null,null,null,null,null,"О","1",null,null,null,null,null,null,null,{"$f":"IF(R93=0,0,Q93/R93)","v":0},null,{"$f":"U93*$T93","v":0},null,{"$f":"W93*$T93","v":0}]
[]
[]
[]
["5. Амортизация (аналог)"]
["et_List05_tariff"]
["1",null,null,null,null,null,null,null,null,null,null,{"$f":"INDEX('Общие сведения'!$J$89:$J$103,MATCH($A99,'Общие сведения'!$D$89:$D$103,0))","v":"Тариф 1 (Водоотведение) - тариф на транспортировку сточных вод"}]
[{"$f":"A99","v":"1"},"L1",null,null,null,null,null,null,null,null,null,"1","Удельная величина амортизации","тыс.руб./усл.км",{"$f":"IF(O102=0,0,O101/O102)","v":0},{"$f":"IF(P102=0,0,P101/P102)","v":0}]
["1","L1_1",null,null,null,null,null,null,null,null,null,"1.1","Годовая сумма амортизации","тыс.руб."]
["1","L1_2",null,null,null,null,null,null,null,null,null,"1.2","Протяженность водопроводной / канализационной сети в сопоставимых величинах","усл.км",{"$f":"SUMIFS('Условные метры'!$V$17:$V$22,'Условные метры'!$A$17:$A$22,$A102,'Условные метры'!$B$17:$B$22,\"Итог\")","v":0.57099999999999995},{"$f":"SUMIFS('Условные метры'!$X$17:$X$22,'Условные метры'!$A$17:$A$22,$A102,'Условные метры'!$B$17:$B$22,\"Итог\")","v":0.5750630633287499}]
["1","L2",null,null,null,null,null,null,null,null,null,2,"Нормативный уровень расходов на амортизацию в расчете на протяженность сети","тыс.руб./усл.км",{"$f":"MIN(O105,O100)","v":0},{"$f":"MIN(P105,P100)","v":0}]
["1","L3",null,null,null,null,null,null,null,null,null,3,"Удельные текущие расходы гарантирующей организации (ГО) (УТР)","тыс.руб./усл.км",{"$f":"SUMIFS('Расчёт тарифа'!O$15:O$35,'Расчёт тарифа'!$A$15:$A$35,$A104,'Расчёт тарифа'!$B$15:$B$35,\"УТР\")","v":146.37666666666667},{"$f":"SUMIFS('Расчёт тарифа'!P$15:P$35,'Расчёт тарифа'!$A$15:$A$35,$A104,'Расчёт тарифа'!$B$15:$B$35,\"УТР\")","v":148.95511466666667}]
["1","L4",null,null,null,null,null,null,null,null,null,4,"15% УТР","тыс.руб./усл.км",{"$f":"O104*0.15","v":21.956499999999998},{"$f":"P104*0.15","v":22.3432672}]
[]
[]
["6. ГО"]
["et_List06_tariff"]
["1","Итог",null,null,null,null,null,null,null,null,null,{"$f":"INDEX('Общие сведения'!$J$89:$J$103,MATCH($A110,'Общие сведения'!$D$89:$D$103,0))","v":"Тариф 1 (Водоотведение) - тариф на транспортировку сточных вод"},null,null,{"$f":"O111+O161+O180","v":0}]
[{"$f":"A110","v":"1"},null,"L1",null,null,null,null,null,null,null,null,"1","Операционные расходы","тыс.руб.",{"$f":"O112+O130+O138+O158","v":0}]
[{"$f":"A111","v":"1"},null,"L1_1",null,null,null,null,null,null,null,null,"1.1","Производственные расходы:","тыс.руб.",{"$f":"O113+O114+O115+O120+O121+O122","v":0}]
["1",null,"L1_1_1",null,null,null,null,null,null,null,null,"1.1.1","расходы на приобретение сырья и материалов и их хранение","тыс.руб."]
["1",null,"L1_1_2",null,null,null,null,null,null,null,null,"1.1.2","расходы на оплату регулируемыми организациями выполняемых сторонними организациями работ и (или) услуг","тыс.руб."]
["1",null,"L1_1_3",null,null,null,null,null,null,null,null,"1.1.3","расходы на оплату труда и страховые взносы на обязательное социальное страхование основного производственного персонала","тыс.руб.",{"$f":"O116+O119","v":0}]
["1",null,"L1_1_3_1",null,null,null,null,null,null,null,null,"1.1.3.1","расходы на оплату труда основного производственного персонала","тыс.руб."]
["1",null,"L1_1_3_1_1",null,null,null,null,null,null,null,null,"1.1.3.1.1","численность персонала основного производственного персонала","чел"]
["1",null,"L1_1_3_1_2",null,null,null,null,null,null,null,null,"1.1.3.1.2","средняя заработная плата основного производственного персонала","руб./мес"]
["1",null,"L1_1_3_2",null,null,null,null,null,null,null,null,"1.1.3.2","страховые взносы на обязательное социальное страхование основного производственного персонала","тыс.руб."]
["1",null,"L1_1_4",null,null,null,null,null,null,null,null,"1.1.4","расходы на уплату процентов по займам и кредитам","тыс.руб."]
["1",null,"L1_1_5",null,null,null,null,null,null,null,null,"1.1.5","общехозяйственные расходы","тыс.руб."]
["1",null,"L1_1_6",null,null,null,null,null,null,null,null,"1.1.6","прочие производственные расходы:","тыс.руб.",{"$f":"SUM(O123:O129)","v":0}]
["1",null,"L1_1_6_1",null,null,null,null,null,null,null,null,"1.1.6.1","расходы на амортизацию автотранспорта","тыс.руб."]
["1",null,"L1_1_6_2",null,null,null,null,null,null,null,null,"1.1.6.2","расходы на обезвоживание, обезвреживание и захоронение осадка сточных вод","тыс.руб."]
["1",null,"L1_1_6_3",null,null,null,null,null,null,null,null,"1.1.6.3","расходы на приобретение (использование) вспомогательных материалов, запасных частей","тыс.руб."]
["1",null,"L1_1_6_4",null,null,null,null,null,null,null,null,"1.1.6.4","расходы на эксплуатацию, техническое обслуживание и ремонт автотранспорт","тыс.руб."]
["1",null,"L1_1_6_5",null,null,null,null,null,null,null,null,"1.1.6.5","расходы на осуществление производственного контроля качества воды и производственного контроля состава и свойств сточных вод расходы на осуществление производственного контроля качества воды и производственного контроля состава и свойств сточных вод","тыс.руб."]
["1",null,"L1_1_6_6",null,null,null,null,null,null,null,null,"1.1.6.6","расходы на аварийно-диспетчерское обслуживание","тыс.руб."]
["1",null,"L1_1_6_7",null,null,null,null,null,null,null,null,"1.1.6.7","иные расходы","тыс.руб."]
["1",null,"L1_2",null,null,null,null,null,null,null,null,"1.2","Ремонтные расходы","тыс.руб.",{"$f":"O131+O132+O133","v":0}]
["1",null,"L1_2_1",null,null,null,null,null,null,null,null,"1.2.1","расходы на текущий ремонт производственных фондов","тыс.руб."]
["1",null,"L1_2_2",null,null,null,null,null,null,null,null,"1.2.2","расходы на капитальный ремонт производственных фондов","тыс.руб."]
["1",null,"L1_2_3",null,null,null,null,null,null,null,null,"1.2.3","расходы на оплату труда и страховые взносы на обязательное социальное страхование ремонтного персонала","тыс.руб.",{"$f":"O134+O137","v":0}]
["1",null,"L1_2_3_1",null,null,null,null,null,null,null,null,"1.2.3.1","расходы на оплату труда ремонтного персонала","тыс.руб."]
["1",null,"L1_2_3_1_1",null,null,null,null,null,null,null,null,"1.2.3.1.1","численность персонала ремонтного персонала","чел"]
["1",null,"L1_2_3_1_2",null,null,null,null,null,null,null,null,"1.2.3.1.2","средняя заработная плата ремонтного персонала","руб./мес"]
["1",null,"L1_2_3_2",null,null,null,null,null,null,null,null,"1.2.3.2","страховые взносы на обязательное социальное страхование ремонтного персонала","тыс.руб."]
["1",null,"L1_3",null,null,null,null,null,null,null,null,"1.3","Административные расходы","тыс.руб.",{"$f":"O139+O145+O150+O151+O152+O153+O154","v":0}]
["1",null,"L1_3_1",null,null,null,null,null,null,null,null,"1.3.1","Расходы на оплату работ и услуг, выполняемых сторонними организациями","тыс.руб.",{"$f":"SUM(O140:O144)","v":0}]
["1",null,"L1_3_1_1",null,null,null,null,null,null,null,null,"1.3.1.1","услуги связи и интернет","тыс.руб."]
["1",null,"L1_3_1_2",null,null,null,null,null,null,null,null,"1.3.1.2","юридические услуги","тыс.руб."]
["1",null,"L1_3_1_3",null,null,null,null,null,null,null,null,"1.3.1.3","аудиторские услуги","тыс.руб."]
["1",null,"L1_3_1_4",null,null,null,null,null,null,null,null,"1.3.1.4","консультационные услуги","тыс.руб."]
["1",null,"L1_3_1_5",null,null,null,null,null,null,null,null,"1.3.1.5","информационные услуги","тыс.руб."]
["1",null,"L1_3_2",null,null,null,null,null,null,null,null,"1.3.2","расходы на оплату труда и страховые взносы на обязательное социальное страхование административно-управленческого персонала","тыс.руб.",{"$f":"O146+O149","v":0}]
["1",null,"L1_3_2_1",null,null,null,null,null,null,null,null,"1.3.2.1","расходы на оплату труда административно-управленческого персонала","тыс.руб."]
["1",null,"L1_3_2_1_1",null,null,null,null,null,null,null,null,"1.3.2.1.1","численность административно-управленческого персонала","чел"]
["1",null,"L1_3_2_1_2",null,null,null,null,null,null,null,null,"1.3.2.1.2","средняя заработная плата административно-управленческого персонала","руб./мес"]
["1",null,"L1_3_2_2",null,null,null,null,null,null,null,null,"1.3.2.2","страховые взносы на обязательное социальное страхование административно-управленческого персонала","тыс.руб."]
["1",null,"L1_3_3",null,null,null,null,null,null,null,null,"1.3.3","Арендная плата, лизинговые платежи, не связанные с арендой (лизингом) основных производственных фондов","тыс.руб."]
["1",null,"L1_3_4",null,null,null,null,null,null,null,null,"1.3.4","Служебные командировки","тыс.руб."]
["1",null,"L1_3_5",null,null,null,null,null,null,null,null,"1.3.5","Обучение персонала","тыс.руб."]
["1",null,"L1_3_6",null,null,null,null,null,null,null,null,"1.3.6","Страхование производственных\nобъектов","тыс.руб."]
["1",null,"L1_3_7",null,null,null,null,null,null,null,null,"1.3.7","Прочие административные расходы","тыс.руб.",{"$f":"O155+O156+O157","v":0}]
["1",null,"L1_3_7_1",null,null,null,null,null,null,null,null,"1.3.7.1","Расходы на амортизацию непроизводственных активов","тыс.руб."]
["1",null,"L1_3_7_2",null,null,null,null,null,null,null,null,"1.3.7.2","Расходы по охране объектов и территорий","тыс.руб."]
["1",null,"L1_3_7_3",null,null,null,null,null,null,null,null,"1.3.7.3","иные расходы","тыс.руб."]
["1",null,"L1_4",null,null,null,null,null,null,null,null,"1.4","Прочие операционные расходы","тыс.руб.",{"$f":"SUM(O159:O160)","v":0}]
["1",null,null,null,null,null,null,null,null,null,null,"1.4.0"]
["1",{"$f":"A160&\"pIns1\"","v":"1pIns1"},"L1_4",null,null,null,null,null,null,null,null,null,"Добавить"]
["1",null,"L2",null,null,null,null,null,null,null,null,"2","Неподконтрольные расходы","тыс.руб.",{"$f":"O162+O170+O171+O172+O175+O176+O177","v":0}]
["1",null,"L2_2",null,null,null,null,null,null,null,null,"2.2","Налоги и сборы","тыс.руб.",{"$f":"SUM(O163:O169)","v":0}]
["1",null,"L2_2_1",null,null,null,null,null,null,null,null,"2.2.1","Налог на прибыль","тыс.руб."]
["1",null,"L2_2_2",null,null,null,null,null,null,null,null,"2.2.2","Налог на имущество организаций","тыс.руб."]
["1",null,"L2_2_3",null,null,null,null,null,null,null,null,"2.2.3","Земельный налог","тыс.руб."]
["1",null,"L2_2_4",null,null,null,null,null,null,null,null,"2.2.4","Водный налог","тыс.руб."]
["1",null,"L2_2_5",null,null,null,null,null,null,null,null,"2.2.5","Плата за пользование водным объектом","тыс.руб."]
["1",null,"L2_2_6",null,null,null,null,null,null,null,null,"2.2.6","Транспортный налог","тыс.руб."]
["1",null,"L2_2_8",null,null,null,null,null,null,null,null,"2.2.8","Прочие налоги и сборы","тыс.руб."]
["1",null,"L2_3",null,null,null,null,null,null,null,null,"2.3","Аренда земельных участков","тыс.руб."]
["1",null,"L2_6",null,null,null,null,null,null,null,null,"2.6","Расходы на обслуживание бесхозяйных сетей","тыс.руб."]
["1",null,"L2_8",null,null,null,null,null,null,null,null,"2.8","Займы и кредиты (для метода индексации)","тыс.руб.",{"$f":"O173+O174","v":0}]
["1",null,"L2_8_1",null,null,null,null,null,null,null,null,"2.8.1","Возврат займов и кредитов","тыс.руб."]
["1",null,"L2_8_2",null,null,null,null,null,null,null,null,"2.8.2","Проценты по займам и кредитам (на обслуживание займов и кредитов, привлекаемых на пополнение оборотных средств)","тыс.руб."]
["1",null,"L2_10",null,null,null,null,null,null,null,null,"2.10","Расходы на мероприятия по защите централизованных систем водоснабжения и (или) водоотведения и их отдельных объектов от угроз техногенного, природного характера и террористических актов, по предотвращению возникновения аварийных ситуаций, снижению риска и смягчению последствий чрезвычайных ситуаций (за исключением мероприятий, включенных в инвестиционную программу)","тыс.руб."]
["1",null,"L2_12",null,null,null,null,null,null,null,null,"2.12","Расходы на оплату услуг банков","тыс.руб."]
[{"$f":"A176","v":"1"},null,"L2_13",null,null,null,null,null,null,null,null,"2.13","Прочие неподконтрольные расходы","тыс.руб.",{"$f":"SUM(O178:O179)","v":0}]
[{"$f":"A177","v":"1"},null,null,null,null,null,null,null,null,null,null,"2.13.0"]
[{"$f":"A178","v":"1"},{"$f":"A179&\"pIns2\"","v":"1pIns2"},"L2_13",null,null,null,null,null,null,null,null,null,"Добавить"]
[{"$f":"A179","v":"1"},"ЭЭ","L3",null,null,null,null,null,null,null,null,"3","Расходы на электрическую энергию","тыс.руб."]
["et_List06_1"]
[{"$f":"OFFSET(A182,-1,0)","v":"et_List06_1"},null,null,{"$f":"M182","v":0},null,null,null,null,null,null,"О",null,null,"тыс.руб."]
[]
["7. Расчёт тарифа"]
["et_List07_tariff"]
["1",null,null,null,null,null,null,null,null,null,null,{"$f":"INDEX('Общие сведения'!$J$89:$J$103,MATCH($A186,'Общие сведения'!$D$89:$D$103,0))","v":"Тариф 1 (Водоотведение) - тариф на транспортировку сточных вод"}]
[{"$f":"A186","v":"1"},null,"L1",null,null,null,null,null,null,null,null,"1","Необходимая валовая выручка транзитной организации","тыс.руб.",{"$f":"(O188+O196)*O194","v":0},{"$f":"(P188+P196)*P194","v":0}]
[{"$f":"A187","v":"1"},"УТР","L2",null,null,null,null,null,null,null,null,"2","Удельные текущие расходы гарантирующей организации (ГО) (УТР)","тыс.руб./усл.км",{"$f":"IF(O193=0,0,(O189-IF(SUMIFS('Список объектов'!$O$15:$O$22,'Список объектов'!$A$15:$A$22,$A188,'Список объектов'!$E$15:$E$22,\"ЭЭ\")>0,0,O190))/O193)","v":0},{"$f":"IF(P193=0,0,(P189-IF(SUMIFS('Список объектов'!$P$15:$P$22,'Список объектов'!$A$15:$A$22,$A188,'Список объектов'!$E$15:$E$22,\"ЭЭ\")>0,0,P190))/P193)","v":0}]
["1",null,"L2_1",null,null,null,null,null,null,null,null,"2.1","текущие расходы ГО, отнесенные на вид деятельности по транспортировке воды/сточных вод","тыс.руб.",null,{"$f":"SUMIFS(ГО!$O$15:$O$87,ГО!$A$15:$A$87,$A189,ГО!$B$15:$B$87,\"Итог\")*(1+P191/100)*(1+P192/100)","v":394}]
["1",null,"L2_1_1",null,null,null,null,null,null,null,null,"2.1.1","в т.ч. расходы на электрическую энергию* ","тыс.руб.",null,{"$f":"SUMIFS(ГО!$O$15:$O$87,ГО!$A$15:$A$87,$A190,ГО!$B$15:$B$87,\"ЭЭ\")*(1+P191/100)*(1+P192/100)","v":0}]
["1",null,"L2_2",null,null,null,null,null,null,null,null,"2.2",{"$f":"\"индекс потребительских цен на \" & god-1 & \" год\"","v":"индекс потребительских цен на 2023 год"},"%"]
["1",null,"L2_3",null,null,null,null,null,null,null,null,"2.3",{"$f":"\"индекс потребительских цен на \" & god & \" год\"","v":"индекс потребительских цен на 2024 год"},"%"]
[{"$f":"A191","v":"1"},null,"L2_4",null,null,null,null,null,null,null,null,"2.4","протяженность сети ГО, определенная в сопоставимых величинах","усл.км"]
["1",null,"L3",null,null,null,null,null,null,null,null,"3","Протяженность сети транзитной организации","усл.км",{"$f":"SUMIFS('Условные метры'!$V$17:$V$22,'Условные метры'!$A$17:$A$22,$A194,'Условные метры'!$B$17:$B$22,\"Итог\")","v":0.57099999999999995},{"$f":"SUMIFS('Условные метры'!$X$17:$X$22,'Условные метры'!$A$17:$A$22,$A194,'Условные метры'!$B$17:$B$22,\"Итог\")","v":0.5750630633287499}]
["1",null,"L3_1",null,null,null,null,null,null,null,null,"3.1","фактическая протяженность сетей ","км",{"$f":"SUMIFS('Условные метры'!$U$17:$U$22,'Условные метры'!$A$17:$A$22,$A195,'Условные метры'!$B$17:$B$22,\"Итог\")","v":1.0529999999999999},{"$f":"SUMIFS('Условные метры'!$W$17:$W$22,'Условные метры'!$A$17:$A$22,$A195,'Условные метры'!$B$17:$B$22,\"Итог\")","v":1.0529999999999999}]
["1",null,"L4",null,null,null,null,null,null,null,null,"4","Нормативный уровень расходов на амортизацию","тыс.руб./усл.км",{"$f":"SUMIFS('Амортизация (аналог)'!O$15:O$23,'Амортизация (аналог)'!$A$15:$A$23,$A196,'Амортизация (аналог)'!$L$15:$L$23,\"2\")","v":0},{"$f":"SUMIFS('Амортизация (аналог)'!P$15:P$23,'Амортизация (аналог)'!$A$15:$A$23,$A196,'Амортизация (аналог)'!$L$15:$L$23,\"2\")","v":0}]
["1",null,"L4_1",null,null,null,null,null,null,null,null,"4.1","норматив амортизации","%",{"$f":"IF(O188=0,0,O196/O188*100)","v":0},{"$f":"IF(P188=0,0,P196/P188*100)","v":0}]
["1",null,"L5",null,null,null,null,null,null,null,null,"5","Объем транспортируемой холодной воды / сточных вод","тыс.м3",{"$f":"SUMIFS(Баланс!S$16:S$35,Баланс!$A$16:$A$35,$A198,Баланс!$B$16:$B$35,\"ПО\")","v":36.799999999999997},{"$f":"SUMIFS(Баланс!T$16:T$35,Баланс!$A$16:$A$35,$A198,Баланс!$B$16:$B$35,\"ПО\")","v":36.799999999999997}]
["1",null,"L5_1",null,null,null,null,null,null,null,null,"5.1","1 полугодие","тыс.м3"]
["1",null,"L5_2",null,null,null,null,null,null,null,null,"5.2","2 полугодие","тыс.м3",{"$f":"O198-O199","v":36.799999999999997},{"$f":"P198-P199","v":36.799999999999997}]
["1",null,"L6",null,null,null,null,null,null,null,null,"6","Среднегодовой тариф","руб./куб.м",{"$f":"IF(O198=0,0,O187/O198)","v":0},{"$f":"IF(P198=0,0,P187/P198)","v":0}]
["1",null,"L6_1_1",null,null,null,null,null,null,null,null,"6.1.1","Тариф с 1.01 по 30.06","руб./куб.м"]
["1",null,"L6_1_2",null,null,null,null,null,null,null,null,"6.1.2","Тариф с 1.07 по 31.12","руб./куб.м",{"$f":"IF(O200=0,0,(O187-O202*O199)/O200)","v":0},{"$f":"IF(P200=0,0,(P187-P202*P199)/P200)","v":0}]
["1",null,"L6_2",null,null,null,null,null,null,null,null,"6.2","Темп рост тарифа ","%",{"$f":"IF(O202=0,0,O203/O202*100)","v":0},{"$f":"IF(P202=0,0,P203/P202*100)","v":0}]

{"sheet":"Амортизация (аналог)","index":16,"n_rows":27,"n_cols":16,"rows_kept":27,"cut":false,"hidden":false,"merged":[[23,11,23,15],[24,11,24,15],[26,11,26,12],[11,11,11,15],[12,11,12,15],[13,11,14,11],[13,12,14,12],[13,13,14,13],[13,14,13,15],[25,11,25,15]]}
[null,null,null,null,null,null,null,null,null,null,null,null,null,null,{"$f":"god","v":2024},{"$f":"god","v":2024}]
[null,null,null,null,null,null,null,null,null,null,null,null,null,null,{"$f":"O15","v":"Предложение организации"},{"$f":"P15","v":"Принято органом регулирования"}]
[]
[]
[]
[]
[]
[]
[]
[]
[null,null,null,null,null,null,null,null,null,null,null,null,{"$f":"tpl_title","v":"Кемеровская область / 2024 / ОАО «СКЭК» (ИНН:4205153492, КПП:420501001)"}]
[null,null,null,null,null,null,null,null,null,null,null,"7. Нормативный уровень расходов на амортизацию основных средств и нематериальных активов, относимых к объектам централизованой системы водоснабжения / водоотведения, используемым для транспортировки воды / сточных вод"]
[]
[null,null,null,null,null,null,null,null,null,null,null,"№\nп/п","Наименование","Единица измерения",{"$f":"god & \" год\"","v":"2024 год"}]
[null,null,null,null,null,null,null,null,null,null,null,null,null,null,"Предложение организации","Принято органом регулирования"]
[{"$f":"'Общие сведения'!$D$90","v":"1"},null,null,null,null,null,null,null,null,null,null,{"$f":"INDEX('Общие сведения'!$J$89:$J$103,MATCH($A16,'Общие сведения'!$D$89:$D$103,0))","v":"Тариф 1 (Водоотведение) - тариф на транспортировку сточных вод"}]
[{"$f":"A16","v":"1"},"L1",null,null,null,null,null,null,null,null,null,"1","Удельная величина амортизации","тыс.руб./усл.км",{"$f":"IF(O19=0,0,O18/O19)","v":0},{"$f":"IF(P19=0,0,P18/P19)","v":0}]
["1","L1_1",null,null,null,null,null,null,null,null,null,"1.1","Годовая сумма амортизации","тыс.руб.",0,0]
["1","L1_2",null,null,null,null,null,null,null,null,null,"1.2","Протяженность водопроводной / канализационной сети в сопоставимых величинах","усл.км",{"$f":"SUMIFS('Условные метры'!$V$17:$V$22,'Условные метры'!$A$17:$A$22,$A19,'Условные метры'!$B$17:$B$22,\"Итог\")","v":0.57099999999999995},{"$f":"SUMIFS('Условные метры'!$X$17:$X$22,'Условные метры'!$A$17:$A$22,$A19,'Условные метры'!$B$17:$B$22,\"Итог\")","v":0.5750630633287499}]
["1","L2",null,null,null,null,null,null,null,null,null,2,"Нормативный уровень расходов на амортизацию в расчете на протяженность сети","тыс.руб./усл.км",{"$f":"MIN(O22,O17)","v":0},{"$f":"MIN(P22,P17)","v":0}]
["1","L3",null,null,null,null,null,null,null,null,null,3,"Удельные текущие расходы гарантирующей организации (ГО) (УТР)","тыс.руб./усл.км",{"$f":"SUMIFS('Расчёт тарифа'!O$15:O$35,'Расчёт тарифа'!$A$15:$A$35,$A21,'Расчёт тарифа'!$B$15:$B$35,\"УТР\")","v":146.37666666666667},{"$f":"SUMIFS('Расчёт тарифа'!P$15:P$35,'Расчёт тарифа'!$A$15:$A$35,$A21,'Расчёт тарифа'!$B$15:$B$35,\"УТР\")","v":148.95511466666667}]
["1","L4",null,null,null,null,null,null,null,null,null,4,"15% УТР","тыс.руб./усл.км",{"$f":"O21*0.15","v":21.956499999999998},{"$f":"P21*0.15","v":22.3432672}]
[]
[null,null,null,null,null,null,null,null,null,null,null,"Комментарии и обоснования к разделу"]
[null,null,null,null,null,null,null,null,null,null,null,"П. 36 Методических указаний ФСТ № 1746-э определяет, что нормативный уровень расходов на амортизацию основных средств и нематериальных активов, относимых к объектам централизованной системы (централизованных систем) водоснабжения и (или) водоотведения, используемым для транспортировки воды (сточных вод), определяется органом регулирования тарифов в соответствии с формулой (2.2) исходя из величины расходов регулируемой организации на амортизацию основных средств и нематериальных активов, определенной в соответствии с пунктом 28 настоящих Методических указаний, в расчете на километр протяженности водопроводной (канализационной) сети, определенной в сопоставимых величинах, в размере, не превышающем 15 процентов удельных текущих расходов гарантирующей организации."]
[null,null,null,null,null,null,null,null,null,null,"О ","Нормативный уровень расходов на амортизацию основных средств    не учтен  регулятором  в составе необходимой валовой выручки на 2024 год, так как имущество, переданное по концессионному соглашению, учитывается на забалансовых счетах и в бухгалтерском учете амортизационные отчисления по такому имуществу не включаются в расходы по обычной деятельности."]
[null,null,null,null,null,null,null,null,null,null,null,"Добавить комментарий"]

{"sheet":"ГО","index":17,"n_rows":92,"n_cols":15,"rows_kept":92,"cut":false,"hidden":false,"merged":[[87,11,87,14],[88,11,88,14],[91,11,91,12],[12,11,12,14],[13,11,14,11],[13,12,14,12],[13,13,14,13],[89,11,89,14],[90,11,90,14]]}
[null,null,null,null,null,null,null,null,null,null,null,null,null,null,{"$f":"god","v":2024}]
[]
[]
[]
[]
[]
[]
[]
[]
[]
[null,null,null,null,null,null,null,null,null,null,null,null,{"$f":"tpl_title","v":"Кемеровская область / 2024 / ОАО «СКЭК» (ИНН:4205153492, КПП:420501001)"}]
[null,null,null,null,null,null,null,null,null,null,null,{"$f":"\"8. Калькуляция расходов гарантирующей организации (\" & STATUS_GO & \")\"","v":"8. Калькуляция расходов гарантирующей организации (АО \"СУЭК-Кузбасс\")"}]
[]
[null,null,null,null,null,null,null,null,null,null,null,"№\nп/п","Наименование","Единица измерения",{"$f":"god-2 & \" год\"","v":"2022 год"}]
[null,null,null,null,null,null,null,null,null,null,null,null,null,null,"Величина, принятая органом регулирования"]
[{"$f":"'Общие сведения'!$D$90","v":"1"},"Итог",null,null,null,null,null,null,null,null,null,{"$f":"INDEX('Общие сведения'!$J$89:$J$103,MATCH($A16,'Общие сведения'!$D$89:$D$103,0))","v":"Тариф 1 (Водоотведение) - тариф на транспортировку сточных вод"},null,null,{"$f":"O17+O67+O86","v":394}]
[{"$f":"A16","v":"1"},null,"L1",null,null,null,null,null,null,null,null,"1","Операционные расходы","тыс.руб.",{"$f":"O18+O36+O44+O64","v":394}]
[{"$f":"A17","v":"1"},null,"L1_1",null,null,null,null,null,null,null,null,"1.1","Производственные расходы:","тыс.руб.",{"$f":"O19+O20+O21+O26+O27+O28","v":0}]
["1",null,"L1_1_1",null,null,null,null,null,null,null,null,"1.1.1","расходы на приобретение сырья и материалов и их хранение","тыс.руб."]
["1",null,"L1_1_2",null,null,null,null,null,null,null,null,"1.1.2","расходы на оплату регулируемыми организациями выполняемых сторонними организациями работ и (или) услуг","тыс.руб."]
["1",null,"L1_1_3",null,null,null,null,null,null,null,null,"1.1.3","расходы на оплату труда и страховые взносы на обязательное социальное страхование основного производственного персонала","тыс.руб.",{"$f":"O22+O25","v":0}]
["1",null,"L1_1_3_1",null,null,null,null,null,null,null,null,"1.1.3.1","расходы на оплату труда основного производственного персонала","тыс.руб."]
["1",null,"L1_1_3_1_1",null,null,null,null,null,null,null,null,"1.1.3.1.1","численность персонала основного производственного персонала","чел"]
["1",null,"L1_1_3_1_2",null,null,null,null,null,null,null,null,"1.1.3.1.2","средняя заработная плата основного производственного персонала","руб./мес"]
["1",null,"L1_1_3_2",null,null,null,null,null,null,null,null,"1.1.3.2","страховые взносы на обязательное социальное страхование основного производственного персонала","тыс.руб."]
["1",null,"L1_1_4",null,null,null,null,null,null,null,null,"1.1.4","расходы на уплату процентов по займам и кредитам","тыс.руб."]
["1",null,"L1_1_5",null,null,null,null,null,null,null,null,"1.1.5","общехозяйственные расходы","тыс.руб."]
["1",null,"L1_1_6",null,null,null,null,null,null,null,null,"1.1.6","прочие производственные расходы:","тыс.руб.",{"$f":"SUM(O29:O35)","v":0}]
["1",null,"L1_1_6_1",null,null,null,null,null,null,null,null,"1.1.6.1","расходы на амортизацию автотранспорта","тыс.руб."]
["1",null,"L1_1_6_2",null,null,null,null,null,null,null,null,"1.1.6.2","расходы на обезвоживание, обезвреживание и захоронение осадка сточных вод","тыс.руб."]
["1",null,"L1_1_6_3",null,null,null,null,null,null,null,null,"1.1.6.3","расходы на приобретение (использование) вспомогательных материалов, запасных частей","тыс.руб."]
["1",null,"L1_1_6_4",null,null,null,null,null,null,null,null,"1.1.6.4","расходы на эксплуатацию, техническое обслуживание и ремонт автотранспорт","тыс.руб."]
["1",null,"L1_1_6_5",null,null,null,null,null,null,null,null,"1.1.6.5","расходы на осуществление производственного контроля качества воды и производственного контроля состава и свойств сточных вод расходы на осуществление производственного контроля качества воды и производственного контроля состава и свойств сточных вод","тыс.руб."]
["1",null,"L1_1_6_6",null,null,null,null,null,null,null,null,"1.1.6.6","расходы на аварийно-диспетчерское обслуживание","тыс.руб."]
["1",null,"L1_1_6_7",null,null,null,null,null,null,null,null,"1.1.6.7","иные расходы","тыс.руб."]
["1",null,"L1_2",null,null,null,null,null,null,null,null,"1.2","Ремонтные расходы","тыс.руб.",{"$f":"O37+O38+O39","v":394}]
["1",null,"L1_2_1",null,null,null,null,null,null,null,null,"1.2.1","расходы на текущий ремонт производственных фондов","тыс.руб.",394]
["1",null,"L1_2_2",null,null,null,null,null,null,null,null,"1.2.2","расходы на капитальный ремонт производственных фондов","тыс.руб."]
["1",null,"L1_2_3",null,null,null,null,null,null,null,null,"1.2.3","расходы на оплату труда и страховые взносы на обязательное социальное страхование ремонтного персонала","тыс.руб.",{"$f":"O40+O43","v":0}]
["1",null,"L1_2_3_1",null,null,null,null,null,null,null,null,"1.2.3.1","расходы на оплату труда ремонтного персонала","тыс.руб."]
["1",null,"L1_2_3_1_1",null,null,null,null,null,null,null,null,"1.2.3.1.1","численность персонала ремонтного персонала","чел"]
["1",null,"L1_2_3_1_2",null,null,null,null,null,null,null,null,"1.2.3.1.2","средняя заработная плата ремонтного персонала","руб./мес"]
["1",null,"L1_2_3_2",null,null,null,null,null,null,null,null,"1.2.3.2","страховые взносы на обязательное социальное страхование ремонтного персонала","тыс.руб."]
["1",null,"L1_3",null,null,null,null,null,null,null,null,"1.3","Административные расходы","тыс.руб.",{"$f":"O45+O51+O56+O57+O58+O59+O60","v":0}]
["1",null,"L1_3_1",null,null,null,null,null,null,null,null,"1.3.1","Расходы на оплату работ и услуг, выполняемых сторонними организациями","тыс.руб.",{"$f":"SUM(O46:O50)","v":0}]
["1",null,"L1_3_1_1",null,null,null,null,null,null,null,null,"1.3.1.1","услуги связи и интернет","тыс.руб."]
["1",null,"L1_3_1_2",null,null,null,null,null,null,null,null,"1.3.1.2","юридические услуги","тыс.руб."]
["1",null,"L1_3_1_3",null,null,null,null,null,null,null,null,"1.3.1.3","аудиторские услуги","тыс.руб."]
["1",null,"L1_3_1_4",null,null,null,null,null,null,null,null,"1.3.1.4","консультационные услуги","тыс.руб."]
["1",null,"L1_3_1_5",null,null,null,null,null,null,null,null,"1.3.1.5","информационные услуги","тыс.руб."]
["1",null,"L1_3_2",null,null,null,null,null,null,null,null,"1.3.2","расходы на оплату труда и страховые взносы на обязательное социальное страхование административно-управленческого персонала","тыс.руб.",{"$f":"O52+O55","v":0}]
["1",null,"L1_3_2_1",null,null,null,null,null,null,null,null,"1.3.2.1","расходы на оплату труда административно-управленческого персонала","тыс.руб."]
["1",null,"L1_3_2_1_1",null,null,null,null,null,null,null,null,"1.3.2.1.1","численность административно-управленческого персонала","чел"]
["1",null,"L1_3_2_1_2",null,null,null,null,null,null,null,null,"1.3.2.1.2","средняя заработная плата административно-управленческого персонала","руб./мес"]
["1",null,"L1_3_2_2",null,null,null,null,null,null,null,null,"1.3.2.2","страховые взносы на обязательное социальное страхование административно-управленческого персонала","тыс.руб."]
["1",null,"L1_3_3",null,null,null,null,null,null,null,null,"1.3.3","Арендная плата, лизинговые платежи, не связанные с арендой (лизингом) основных производственных фондов","тыс.руб."]
["1",null,"L1_3_4",null,null,null,null,null,null,null,null,"1.3.4","Служебные командировки","тыс.руб."]
["1",null,"L1_3_5",null,null,null,null,null,null,null,null,"1.3.5","Обучение персонала","тыс.руб."]
["1",null,"L1_3_6",null,null,null,null,null,null,null,null,"1.3.6","Страхование производственных\nобъектов","тыс.руб."]
["1",null,"L1_3_7",null,null,null,null,null,null,null,null,"1.3.7","Прочие административные расходы","тыс.руб.",{"$f":"O61+O62+O63","v":0}]
["1",null,"L1_3_7_1",null,null,null,null,null,null,null,null,"1.3.7.1","Расходы на амортизацию непроизводственных активов","тыс.руб."]
["1",null,"L1_3_7_2",null,null,null,null,null,null,null,null,"1.3.7.2","Расходы по охране объектов и территорий","тыс.руб."]
["1",null,"L1_3_7_3",null,null,null,null,null,null,null,null,"1.3.7.3","иные расходы","тыс.руб."]
["1",null,"L1_4",null,null,null,null,null,null,null,null,"1.4","Прочие операционные расходы","тыс.руб.",{"$f":"SUM(O65:O66)","v":0}]
["1",null,null,null,null,null,null,null,null,null,null,"1.4.0"]
["1",{"$f":"A66&\"pIns1\"","v":"1pIns1"},"L1_4",null,null,null,null,null,null,null,null,null,"Добавить"]
["1",null,"L2",null,null,null,null,null,null,null,null,"2","Неподконтрольные расходы","тыс.руб.",{"$f":"O68+O76+O77+O78+O81+O82+O83","v":0}]
["1",null,"L2_2",null,null,null,null,null,null,null,null,"2.2","Налоги и сборы","тыс.руб.",{"$f":"SUM(O69:O75)","v":0}]
["1",null,"L2_2_1",null,null,null,null,null,null,null,null,"2.2.1","Налог на прибыль","тыс.руб."]
["1",null,"L2_2_2",null,null,null,null,null,null,null,null,"2.2.2","Налог на имущество организаций","тыс.руб."]
["1",null,"L2_2_3",null,null,null,null,null,null,null,null,"2.2.3","Земельный налог","тыс.руб."]
["1",null,"L2_2_4",null,null,null,null,null,null,null,null,"2.2.4","Водный налог","тыс.руб."]
["1",null,"L2_2_5",null,null,null,null,null,null,null,null,"2.2.5","Плата за пользование водным объектом","тыс.руб."]
["1",null,"L2_2_6",null,null,null,null,null,null,null,null,"2.2.6","Транспортный налог","тыс.руб."]
["1",null,"L2_2_8",null,null,null,null,null,null,null,null,"2.2.8","Прочие налоги и сборы","тыс.руб."]
["1",null,"L2_3",null,null,null,null,null,null,null,null,"2.3","Аренда земельных участков","тыс.руб."]
["1",null,"L2_6",null,null,null,null,null,null,null,null,"2.6","Расходы на обслуживание бесхозяйных сетей","тыс.руб."]
["1",null,"L2_8",null,null,null,null,null,null,null,null,"2.8","Займы и кредиты (для метода индексации)","тыс.руб.",{"$f":"O79+O80","v":0}]
["1",null,"L2_8_1",null,null,null,null,null,null,null,null,"2.8.1","Возврат займов и кредитов","тыс.руб."]
["1",null,"L2_8_2",null,null,null,null,null,null,null,null,"2.8.2","Проценты по займам и кредитам (на обслуживание займов и кредитов, привлекаемых на пополнение оборотных средств)","тыс.руб."]
["1",null,"L2_10",null,null,null,null,null,null,null,null,"2.10","Расходы на мероприятия по защите централизованных систем водоснабжения и (или) водоотведения и их отдельных объектов от угроз техногенного, природного характера и террористических актов, по предотвращению возникновения аварийных ситуаций, снижению риска и смягчению последствий чрезвычайных ситуаций (за исключением мероприятий, включенных в инвестиционную программу)","тыс.руб."]
[{"$f":"A81","v":"1"},null,"L2_12",null,null,null,null,null,null,null,null,"2.12","Расходы на оплату услуг банков","тыс.руб."]
[{"$f":"A82","v":"1"},null,"L2_13",null,null,null,null,null,null,null,null,"2.13","Прочие неподконтрольные расходы","тыс.руб.",{"$f":"SUM(O84:O85)","v":0}]
[{"$f":"A83","v":"1"},null,null,null,null,null,null,null,null,null,null,"2.13.0"]
[{"$f":"A84","v":"1"},{"$f":"A85&\"pIns2\"","v":"1pIns2"},"L2_13",null,null,null,null,null,null,null,null,null,"Добавить"]
[{"$f":"A85","v":"1"},"ЭЭ","L3",null,null,null,null,null,null,null,null,"3","Расходы на электрическую энергию","тыс.руб."]
[]
[null,null,null,null,null,null,null,null,null,null,null,"Комментарии и обоснования к разделу"]
[null,null,null,null,null,null,null,null,null,null,null,"Текущие расходы гарантирующей организации на транспортировку воды (сточных вод) по соответствующей централизованной системе водоснабжения и (или) водоотведения определяются согласно п. 37, с учетом положений главы VI.I Методических указаний ФСТ № 1746-э. "]
[null,null,null,null,null,null,null,null,null,null,"О ","Расчет текущих расходов гарантирующей организации представлен в  Деле № 60-ВО «Об установлении тарифов на услугу водоотведения на 2024-2028 годы, оказываемую АО «СУЭК-Кузбасс» (г. Полысаево)» (документы представлены на бумажном носителе, см. \"Расчет размера удельных текущих расходов\" на стр. 26 в Томе № 3 )."]
[null,null,null,null,null,null,null,null,null,null,"О ","В связи с отсутствием у  гарантирующей организации (АО «СУЭК-Кузбасс») штатного персонала, обслуживающего сети водоотведения, а также  отсутствием раздельного учета затрат и недостаточным обоснованием величин косвенных (прочих производственных и административных)  расходов, затраты на обслуживание сетей приняты в размере фактических расходов  по регулируемому виду деятельности \"Водоотведение\" за 2022 год по статье \"Ремонтные расходы\" (Текущий ремонт\"). "]
[null,null,null,null,null,null,null,null,null,null,null,"Добавить комментарий"]

{"sheet":"Расчёт тарифа","index":18,"n_rows":41,"n_cols":16,"rows_kept":41,"cut":false,"hidden":false,"merged":[[37,11,37,15],[38,11,38,15],[40,11,40,12],[35,11,35,15],[11,11,11,15],[12,11,12,15],[13,11,14,11],[13,12,14,12],[13,13,14,13],[13,14,13,15],[39,11,39,15]]}
[null,null,null,null,null,null,null,null,null,null,null,null,null,null,{"$f":"god","v":2024},{"$f":"god","v":2024}]
[null,null,null,null,null,null,null,null,null,null,null,null,null,null,{"$f":"O15","v":"Предложение организации"},{"$f":"P15","v":"Принято органом регулирования"}]
[]
[]
[]
[]
[]
[]
[]
[]
[null,null,null,null,null,null,null,null,null,null,null,null,{"$f":"tpl_title","v":"Кемеровская область / 2024 / ОАО «СКЭК» (ИНН:4205153492, КПП:420501001)"}]
[null,null,null,null,null,null,null,null,null,null,null,"9. Расчет тарифа на транспортировку холодной воды / сточных вод методом сравнения аналогов"]
[]
[null,null,null,null,null,null,null,null,null,null,null,"№\nп/п","Наименование","Единица измерения",{"$f":"god & \" год\"","v":"2024 год"}]
[null,null,null,null,null,null,null,null,null,null,null,null,null,null,"Предложение организации","Принято органом регулирования"]
[{"$f":"'Общие сведения'!$D$90","v":"1"},null,null,null,null,null,null,null,null,null,null,{"$f":"INDEX('Общие сведения'!$J$89:$J$103,MATCH($A16,'Общие сведения'!$D$89:$D$103,0))","v":"Тариф 1 (Водоотведение) - тариф на транспортировку сточных вод"}]
[{"$f":"A16","v":"1"},null,"L1",null,null,null,null,null,null,null,null,"1","Необходимая валовая выручка транзитной организации","тыс.руб.",{"$f":"(O18+O26)*O24","v":83.581076666666661},{"$f":"(P18+P26)*P24","v":85.658584538698534}]
[{"$f":"A17","v":"1"},"УТР","L2",null,null,null,null,null,null,null,null,"2","Удельные текущие расходы гарантирующей организации (ГО) (УТР)","тыс.руб./усл.км",{"$f":"IF(O23=0,0,(O19-IF(SUMIFS('Список объектов'!$O$15:$O$22,'Список объектов'!$A$15:$A$22,$A18,'Список объектов'!$E$15:$E$22,\"ЭЭ\")>0,0,O20))/O23)","v":146.37666666666667},{"$f":"IF(P23=0,0,(P19-IF(SUMIFS('Список объектов'!$P$15:$P$22,'Список объектов'!$A$15:$A$22,$A18,'Список объектов'!$E$15:$E$22,\"ЭЭ\")>0,0,P20))/P23)","v":148.95511466666667}]
["1",null,"L2_1",null,null,null,null,null,null,null,null,"2.1","текущие расходы ГО, отнесенные на вид деятельности по транспортировке воды/сточных вод","тыс.руб.",439.13,{"$f":"SUMIFS(ГО!$O$15:$O$87,ГО!$A$15:$A$87,$A19,ГО!$B$15:$B$87,\"Итог\")*(1+P21/100)*(1+P22/100)","v":446.86534400000005}]
["1",null,"L2_1_1",null,null,null,null,null,null,null,null,"2.1.1","в т.ч. расходы на электрическую энергию* ","тыс.руб.",0,{"$f":"SUMIFS(ГО!$O$15:$O$87,ГО!$A$15:$A$87,$A20,ГО!$B$15:$B$87,\"ЭЭ\")*(1+P21/100)*(1+P22/100)","v":0}]
["1",null,"L2_2",null,null,null,null,null,null,null,null,"2.2",{"$f":"\"индекс потребительских цен на \" & god-1 & \" год\"","v":"индекс потребительских цен на 2023 год"},"%",6,5.8]
["1",null,"L2_3",null,null,null,null,null,null,null,null,"2.3",{"$f":"\"индекс потребительских цен на \" & god & \" год\"","v":"индекс потребительских цен на 2024 год"},"%",4.7,7.2]
[{"$f":"A21","v":"1"},null,"L2_4",null,null,null,null,null,null,null,null,"2.4","протяженность сети ГО, определенная в сопоставимых величинах","усл.км",3,3]
["1",null,"L3",null,null,null,null,null,null,null,null,"3","Протяженность сети транзитной организации","усл.км",{"$f":"SUMIFS('Условные метры'!$V$17:$V$22,'Условные метры'!$A$17:$A$22,$A24,'Условные метры'!$B$17:$B$22,\"Итог\")","v":0.57099999999999995},{"$f":"SUMIFS('Условные метры'!$X$17:$X$22,'Условные метры'!$A$17:$A$22,$A24,'Условные метры'!$B$17:$B$22,\"Итог\")","v":0.5750630633287499}]
["1",null,"L3_1",null,null,null,null,null,null,null,null,"3.1","фактическая протяженность сетей ","км",{"$f":"SUMIFS('Условные метры'!$U$17:$U$22,'Условные метры'!$A$17:$A$22,$A25,'Условные метры'!$B$17:$B$22,\"Итог\")","v":1.0529999999999999},{"$f":"SUMIFS('Условные метры'!$W$17:$W$22,'Условные метры'!$A$17:$A$22,$A25,'Условные метры'!$B$17:$B$22,\"Итог\")","v":1.0529999999999999}]
["1",null,"L4",null,null,null,null,null,null,null,null,"4","Нормативный уровень расходов на амортизацию","тыс.руб./усл.км",{"$f":"SUMIFS('Амортизация (аналог)'!O$15:O$23,'Амортизация (аналог)'!$A$15:$A$23,$A26,'Амортизация (аналог)'!$L$15:$L$23,\"2\")","v":0},{"$f":"SUMIFS('Амортизация (аналог)'!P$15:P$23,'Амортизация (аналог)'!$A$15:$A$23,$A26,'Амортизация (аналог)'!$L$15:$L$23,\"2\")","v":0}]
["1",null,"L4_1",null,null,null,null,null,null,null,null,"4.1","норматив амортизации","%",{"$f":"IF(O18=0,0,O26/O18*100)","v":0},{"$f":"IF(P18=0,0,P26/P18*100)","v":0}]
["1",null,"L5",null,null,null,null,null,null,null,null,"5","Объем транспортируемой холодной воды / сточных вод","тыс.м3",{"$f":"SUMIFS(Баланс!S$16:S$35,Баланс!$A$16:$A$35,$A28,Баланс!$B$16:$B$35,\"ПО\")","v":36.799999999999997},{"$f":"SUMIFS(Баланс!T$16:T$35,Баланс!$A$16:$A$35,$A28,Баланс!$B$16:$B$35,\"ПО\")","v":36.799999999999997}]
["1",null,"L5_1",null,null,null,null,null,null,null,null,"5.1","1 полугодие","тыс.м3",18.399999999999999,18.399999999999999]
["1",null,"L5_2",null,null,null,null,null,null,null,null,"5.2","2 полугодие","тыс.м3",{"$f":"O28-O29","v":18.399999999999999},{"$f":"P28-P29","v":18.399999999999999}]
["1",null,"L6",null,null,null,null,null,null,null,null,"6","Среднегодовой тариф","руб./куб.м",{"$f":"IF(O28=0,0,O17/O28)","v":2.2712249094202899},{"$f":"IF(P28=0,0,P17/P28)","v":2.3276789276820256}]
["1",null,"L6_1_1",null,null,null,null,null,null,null,null,"6.1.1","Тариф с 1.01 по 30.06","руб./куб.м",2.27,2.15]
["1",null,"L6_1_2",null,null,null,null,null,null,null,null,"6.1.2","Тариф с 1.07 по 31.12","руб./куб.м",{"$f":"IF(O30=0,0,(O17-O32*O29)/O30)","v":2.2724498188405797},2.5]
["1",null,"L6_2",null,null,null,null,null,null,null,null,"6.2","Темп рост тарифа ","%",{"$f":"IF(O32=0,0,O33/O32*100)","v":100.1079215348273},{"$f":"IF(P32=0,0,P33/P32*100)","v":116.27906976744187}]
[]
[null,null,null,null,null,null,null,null,null,null,null,"* - не учитываются в текущих расходах ГО в случае, если ТО не владеет на законных основаниях насосными станциями, канализационными насосными станциями, насосным оборудованием, иным оборудованием, потребляющим электрическую энергию, затрачиваемую в технологическом процессе транспортировки воды и (или) транспортировки сточных вод"]
[]
[null,null,null,null,null,null,null,null,null,null,null,"Комментарии и обоснования к разделу"]
[null,null,null,null,null,null,null,null,null,null,null,"П. 35 Методических указаний ФСТ № 176-э: При установлении тарифов с применением метода сравнения аналогов величина необходимой валовой выручки регулируемой организации на очередной период регулирования рассчитывается по формулам (2), (2.1), (2.2)."]
[null,null,null,null,null,null,null,null,null,null,"О ","Индексы потребительских цен (ИПЦ) на 2023 и 2024 годы определены в соответствии с основными параметрами базового варианта \"Проноза социально-экономического развития Российской Федерации на 2024 год  и на плановый период 2025 и 2026 годов\", опубликованному на сайте Минэкономразвития России 22.09.2023."]
[null,null,null,null,null,null,null,null,null,null,null,"Добавить комментарий"]

{"sheet":"TEHSHEET","index":19,"n_rows":175,"n_cols":31,"rows_kept":175,"cut":false,"hidden":true,"merged":[]}
["Алтайский край","RU22","Алтайский край",null,null,null,"YES_NO",null,null,null,null,null,"DNS",null,null,null,"YEAR_LIST","MONTH_LIST","period_list","sphere_list","tariff_type_list","COLDVSNA_VTOV","COLDVSNA_VTARIFF","osn_expl_list","VOLTAGE_LEVEL_list","VOLTAGE_LEVEL2_list","ist_info_build_list","diametr_list","material_list","grunt_list","glubina_list"]
["Амурская область","RU28","Амурская область",null,null,null,"да",null,null,null,null,null,"https://eias.ru",null,null,null,2012,"Январь",3,"Водоснабжение","одноставочный","питьевая вода","тариф на питьевую воду","аренда","Без разбивки","Без разбивки","Утверждённые укрупнённые НЦС","100","чугун","сухой","1"]
["Архангельская область","RU29","Архангельская область",null,null,null,"нет",null,null,null,null,null,null,null,null,null,2013,"Февраль",4,"Водоотведение","двухставочный","техническая вода","тариф на техническую воду","безвозмездное пользование","ВН1","ВН1","Сметные расчёты организации","110","сталь","мокрый","2"]
["Астраханская область","RU30","Астраханская область",null,null,null,null,null,null,null,null,null,"NDS",null,null,null,2014,"Март",5,null,null,"горячая вода",null,"концессионное соглашение","ВН","ВН",null,"125","железобетон",null,"3"]
["Белгородская область","RU31","Белгородская область",null,null,null,"STATE_SHARE",null,null,null,null,null,1.2,null,null,null,2015,"Апрель",6,null,null,null,"VOTV_VTARIFF","оперативное управление","СН1","СН1",null,"150","полиэтилен",null,"4"]
["Брянская область","RU32","Брянская область",null,null,null,"VALUABLE_STATE_SHARE",null,null,null,null,null,null,null,null,null,2016,"Май",7,null,null,"VOTV_VTOV","тариф на водоотведение","собственность","СН2","СН2",null,"160",null,null,"5"]
["Владимирская область","RU33","Владимирская область",null,null,null,"менее 50 %",null,null,null,null,null,"PERIOD",null,null,null,2017,"Июнь",8,null,null,"без дифференциации",null,"хозяйственное ведение","НН","НН",null,"200"]
["Волгоградская область","RU34","Волгоградская область",null,null,null,"50 % и более",null,null,null,null,null,2021,null,null,null,2018,"Июль",9,null,null,"жидкие бытовые отходы",null,"договор хранения",null,"Генерация напряжения",null,"250"]
["Вологодская область","RU35","Вологодская область",null,null,null,"100 %",null,null,null,null,null,null,null,null,null,2019,"Август",10,null,null,"поверхностные сточные воды",null,"договор эксплуатации",null,null,null,"300"]
["Воронежская область","RU36","Воронежская область",null,null,null,null,null,null,null,null,null,"Организация",null,null,null,2020,"Сентябрь",null,null,null,"хозяйственно-бытовые сточные воды",null,"договор обслуживания",null,null,null,"315"]
["г. Москва","RU77","Москва",null,null,null,"OWNERSHIP_TYPE",null,null,null,null,null,{"$f":"\"01.01.\" & PERIOD","v":"01.01.2021"},null,null,null,2021,"Октябрь",null,null,null,"сточные воды (нормативы)",null,"бесхозяйный объект",null,null,null,"350"]
["г. Байконур","RU00",null,null,null,null,"NONPRIVATE_OWNERSHIP_TYPE",null,null,null,null,null,{"$f":"\"31.12.\" & PERIOD","v":"31.12.2021"},null,null,null,2022,"Ноябрь",null,null,null,"сточные воды (иные)",null,"договор инвестирования",null,null,null,"355"]
["г. Санкт-Петербург","RU78","Cанкт-Петербург",null,null,null,"федеральная",null,null,null,null,null,null,null,null,null,2023,"Декабрь",null,null,null,null,null,"доверительное управление",null,null,null,"400"]
["г. Севастополь","RU92","Севастополь",null,null,null,"субъект РФ",null,null,null,null,null,"Виды деятельности",null,null,null,2024,null,null,null,null,null,null,"субаренда",null,null,null,"450"]
["Еврейская автономная область","RU79","Еврейская автономная область",null,null,null,"муниципальная",null,null,null,null,null,{"$f":"\"01.01.\" & PERIOD","v":"01.01.2021"},null,null,null,2025,null,null,null,null,null,null,null,null,null,null,"500"]
["Забайкальский край","RU75","Забайкальский край",null,null,null,"частная",null,null,null,null,null,{"$f":"\"31.12.\" & PERIOD","v":"31.12.2021"},null,null,null,2026,null,null,null,null,null,null,"support_docs_list",null,null,null,"600"]
["Ивановская область","RU37","Ивановская область",null,null,null,null,null,null,null,null,null,null,null,null,null,2027,null,null,null,null,null,null,"договор",null,null,null,"630"]
["Иркутская область","RU38","Иркутская область",null,null,null,null,null,null,null,null,null,"Территории",null,null,null,2028,null,null,null,null,null,null,"свидетельство",null,null,null,"700"]
["Кабардино-Балкарская республика","RU07","Республика Кабардино-Балкария",null,null,null,null,null,null,null,null,null,{"$f":"\"01.01.\" & PERIOD","v":"01.01.2021"},null,null,null,2029,null,null,null,null,null,null,"соглашение",null,null,null,"710"]
["Калининградская область","RU39","Калининградская область",null,null,null,null,null,null,null,null,null,{"$f":"\"31.12.\" & PERIOD","v":"31.12.2021"},null,null,null,2030,null,null,null,null,null,null,"постановление",null,null,null,"800"]
["Калужская область","RU40","Калужская область",null,null,null,null,null,null,null,null,null,null,null,null,null,null,null,null,null,null,null,null,"распоряжение",null,null,null,"900"]
["Камчатский край","RU41","Камчатский край",null,null,null,null,null,null,null,null,null,null,null,null,null,null,null,null,null,null,null,null,"решение",null,null,null,"1000"]
["Карачаево-Черкесская республика","RU09","Республика Карачаево-Черкессия",null,null,null,null,null,null,null,null,null,null,null,null,null,null,null,null,null,null,null,null,"приказ"]
["Кемеровская область","RU42","Кемеровская область",null,null,null,null,null,null,null,null,null,null,null,null,null,null,null,null,null,null,null,null,"лицензия"]
["Кировская область","RU43","Кировская область",null,null,null,null,null,null,null,null,null,null,null,null,null,null,null,null,null,null,null,null,"акт приёма-передачи"]
["Костромская область","RU44","Костромская область",null,null,null,null,null,null,null,null,null,null,null,null,null,null,null,null,null,null,null,null,"государственный контракт"]
["Краснодарский край","RU23","Краснодарский край",null,null,null,null,null,null,null,null,null,null,null,null,null,null,null,null,null,null,null,null,"балансовая справка"]
["Красноярский край","RU24","Красноярский край",null,null,null,null,null,null,null,null,null,null,null,null,null,null,null,null,null,null,null,null,"кадастровый паспорт"]
["Курганская область","RU45","Курганская область",null,null,null,null,null,null,null,null,null,null,null,null,null,null,null,null,null,null,null,null,"технический паспорт"]
["Курская область","RU46","Курская область",null,null,null,null,null,null,null,null,null,null,null,null,null,null,null,null,null,null,null,null,"устав"]
["Ленинградская область","RU47","Ленинградская область",null,null,null,null,null,null,null,null,null,null,null,null,null,null,null,null,null,null,null,null,"акт ввода в эксплуатацию"]
["Липецкая область","RU48","Липецкая область",null,null,null,null,null,null,null,null,null,null,null,null,null,null,null,null,null,null,null,null,"план приватизации"]
["Магаданская область","RU49","Магаданская область",null,null,null,null,null,null,null,null,null,null,null,null,null,null,null,null,null,null,null,null,"разрешение на ввод объекта в эксплуатацию"]
["Московская область","RU50","Московская область",null,null,null,null,null,null,null,null,null,null,null,null,null,null,null,null,null,null,null,null,"выписка из ЕГРН"]
["Мурманская область","RU51","Мурманская область",null,null,null,null,null,null,null,null,null,null,null,null,null,null,null,null,null,null,null,null,"выписка из РФИ"]
["Ненецкий автономный округ","RU83","Ненецкий автономный округ",null,null,null,null,null,null,null,null,null,null,null,null,null,null,null,null,null,null,null,null,"документов нет вообще"]
["Нижегородская область","RU52","Нижегородская область"]
["Новгородская область","RU53","Новгородская область",null,null,null,null,null,null,null,"TARIFF_CALC_METHOD"]
["Новосибирская область","RU54","Новосибирская область",null,null,null,null,null,null,null,"экономически обоснованных расходов (затрат)"]
["Омская область","RU55","Омская область",null,null,null,null,null,null,null,"индексации"]
["Оренбургская область","RU56","Оренбургская область",null,null,null,null,null,null,null,"индексации (корректировка)"]
["Орловская область","RU57","Орловская область",null,null,null,null,null,null,null,"сравнения аналогов"]
["Пензенская область","RU58","Пензенская область"]
["Пермский край","RU59","Пермский край"]
["Приморский край","RU25","Приморский край",null,null,null,null,null,null,null,"DOCUMENT_TYPES"]
["Псковская область","RU60","Псковская область",null,null,null,null,null,null,null,"постановление"]
["Республика Адыгея","RU01","Республика Адыгея",null,null,null,null,null,null,null,"распоряжение"]
["Республика Алтай","RU04","Республика Алтай",null,null,null,null,null,null,null,"решение"]
["Республика Башкортостан","RU02","Республика Башкортостан",null,null,null,null,null,null,null,"приказ"]
["Республика Бурятия","RU03","Республика Бурятия",null,null,null,null,null,null,null,"закон"]
["Республика Дагестан","RU05","Республика Дагестан",null,null,null,null,null,null,null,"соглашение"]
["Республика Ингушетия","RU06","Республика Ингушетия",null,null,null,null,null,null,null,"протокол"]
["Республика Калмыкия","RU08","Республика Калмыкия"]
["Республика Карелия","RU10","Республика Карелия"]
["Республика Коми","RU11","Республика Коми"]
["Республика Крым","RU82","Крым"]
["Республика Марий Эл","RU12","Республика Марий Эл"]
["Республика Мордовия","RU13","Республика Мордовия"]
["Республика Саха (Якутия)","RU14","Республика Саха (Якутия)"]
["Республика Северная Осетия-Алания","RU15","Республика Северная Осетия (Алания)"]
["Республика Татарстан","RU16","Республика Татарстан"]
["Республика Тыва","RU17","Республика Тыва (Тува)"]
["Республика Хакасия","RU19","Республика Хакасия"]
["Ростовская область","RU61","Ростовская область"]
["Рязанская область","RU62","Рязанская область"]
["Самарская область","RU63","Самарская область"]
["Саратовская область","RU64","Саратовская область"]
["Сахалинская область","RU65","Сахалинская область"]
["Свердловская область","RU66","Свердловская область"]
["Смоленская область","RU67","Смоленская область"]
["Ставропольский край","RU26","Ставропольский край"]
["Тамбовская область","RU68","Тамбовская область"]
["Тверская область","RU69","Тверская область"]
["Томская область","RU70","Томская область"]
["Тульская область","RU71","Тульская область"]
["Тюменская область","RU72","Тюменская область"]
["Удмуртская республика","RU18","Республика Удмуртия"]
["Ульяновская область","RU73","Ульяновская область"]
["Хабаровский край","RU27","Хабаровский край"]
["Ханты-Мансийский автономный округ","RU86","Ханты-Мансийский автономный округ"]
["Челябинская область","RU74","Челябинская область"]
["Чеченская республика","RU20","Республика Чечня"]
["Чувашская республика","RU21","Республика Чувашия"]
["Чукотский автономный округ","RU87","Чукотский автономный округ"]
["Ямало-Ненецкий автономный округ","RU89","Ямало-Ненецкий автономный округ"]
["Ярославская область","RU76","Ярославская область"]
[null,null,"Нижегородская область"]
[]
[]
["Алтайский край","Управление Алтайского края по государственному регулированию цен и тарифов"]
["Амурская область","Управление государственного регулирования цен и тарифов Амурской области"]
["Архангельская область","Агентство по тарифам Архангельской области"]
["Астраханская область","Служба по тарифам Астраханской области"]
["Белгородская область","Департамент жилищно-коммунального хозяйства Белгородской области"]
["Брянская область","Управление государственного регулирования тарифов Брянской области"]
["Владимирская область","Департамент государственного регулирования цен и тарифов Владимирской области"]
["Волгоградская область","комитет тарифного регулирования Волгоградской области"]
["Вологодская область","Департамент ТЭК и ТР Вологодской области"]
["Воронежская область","Департамент государственного регулирования тарифов Воронежской области"]
["г. Москва","Департамент экономической политики и развития города Москвы"]
["г. Байконур","Управление экономического развития администрации города Байконур"]
["г. Санкт-Петербург","Комитет по тарифам Санкт-Петербурга"]
["г. Севастополь","Управление по тарифам города Севастополя"]
["Еврейская автономная область","Комитет тарифов и цен правительства Еврейской автономной области"]
["Забайкальский край","Региональная служба по тарифам и ценообразованию Забайкальского края"]
["Ивановская область","Департамент энергетики и тарифов Ивановской области"]
["Иркутская область","Служба по тарифам Иркутской области"]
["Кабардино-Балкарская республика","Государственный комитет Кабардино-Балкарский Республики по тарифам и жилищному надзору"]
["Калининградская область","Служба по государственному регулированию цен и тарифов Калининградской области"]
["Калужская область","Министерство конкурентной политики Калужской области"]
["Камчатский край","Региональная служба по тарифам и ценам Камчатского края"]
["Карачаево-Черкесская республика","Главное управление Карачаево-Черкесской Республики по тарифам и ценам"]
["Кемеровская область","Региональная энергетическая комиссия Кузбасса"]
["Кировская область","Региональная служба по тарифам Кировской области"]
["Костромская область","Департамент государственного регулирования цен и тарифов Костромской области"]
["Краснодарский край","Департамент государственного регулирования тарифов Краснодарского края"]
["Красноярский край","Министерство тарифной политики Красноярского края"]
["Курганская область","Департамент государственного регулирования цен и тарифов Курганской области"]
["Курская область","Комитет по тарифам и ценам Курской области"]
["Ленинградская область","Комитет по тарифам и ценовой политике Ленинградской области"]
["Липецкая область","Управление энергетики и тарифов Липецкой области"]
["Магаданская область","Департамент цен и тарифов Магаданской области"]
["Московская область","Комитет по ценам и тарифам Московской области"]
["Мурманская область","Комитет по тарифному регулированию Мурманской области"]
["Ненецкий автономный округ","Управление по государственному регулированию цен (тарифов) Ненецкого автономного округа"]
["Нижегородская область","Региональная служба по тарифам Нижегородской области"]
["Новгородская область","Комитет по тарифной политике Новгородской области"]
["Новосибирская область","Департамент по тарифам Новосибирской области"]
["Омская область","Региональная энергетическая комиссия Омской области"]
["Оренбургская область","Департамент Оренбургской области по ценам и регулированию тарифов"]
["Орловская область","Управление по тарифам и ценовой политике Орловской области"]
["Пензенская область","Департамент по регулированию тарифов и энергосбережению Пензенской области"]
["Пермский край","Министерство тарифного регулирования и энергетики Пермского края"]
["Приморский край","Агентство по тарифам Приморского края"]
["Псковская область","Комитет по тарифам и энергетике Псковской области"]
["Республика Адыгея","Управление государственного регулирования цен и тарифов Республики Адыгея"]
["Республика Алтай","Комитет по тарифам Республики Алтай"]
["Республика Башкортостан","Государственный комитет Республики Башкортостан по тарифам"]
["Республика Бурятия","Республиканская служба по тарифам Республики Бурятия"]
["Республика Дагестан","Республиканская служба по тарифам Республики Дагестан"]
["Республика Ингушетия","Государственная жилищная инспекция Республики Ингушетия"]
["Республика Калмыкия","Региональная служба по тарифам Республики Калмыкия"]
["Республика Карелия","Государственный комитет Республики Карелия по ценам и тарифам"]
["Республика Коми","Комитет Республики Коми по тарифам"]
["Республика Крым","Государственный комитет по ценам и тарифам Республики Крым"]
["Республика Марий Эл","Министерство промышленности, экономического развития и торговли Республики Марий Эл"]
["Республика Мордовия","Республиканская служба по тарифам Республики Мордовия"]
["Республика Саха (Якутия)","Государственный комитет по ценовой политике Республики Саха (Якутия)"]
["Республика Северная Осетия-Алания","Региональная служба по тарифам Республики Северная Осетия-Алания"]
["Республика Татарстан","Государственный комитет Республики Татарстан по тарифам"]
["Республика Тыва","Служба по тарифам Республики Тыва"]
["Республика Хакасия","Государственный комитет энергетики и тарифного регулирования Республики Хакасия"]
["Ростовская область","Региональная служба по тарифам Ростовской области"]
["Рязанская область","Главное управление \"Региональная энергетическая комиссия\" Рязанской области"]
["Самарская область","Департамент ценового и тарифного регулирования Самарской области"]
["Саратовская область","Комитет государственного регулирования тарифов Саратовской области"]
["Сахалинская область","региональная энергетическая комиссии Сахалинской области"]
["Свердловская область","Региональная энергетическая комиссия Свердловской области"]
["Смоленская область","Департамент Смоленской области по энергетике, энергоэффективности, тарифной политике"]
["Ставропольский край","Региональная тарифная комиссия Ставропольского края"]
["Тамбовская область","Управление по регулированию тарифов Тамбовской области"]
["Тверская область","Главное управление \"Региональная энергетическая комиссия\" Тверской области"]
["Томская область","Департамент тарифного регулирования Томской области"]
["Тульская область","Комитет Тульской области по тарифам"]
["Тюменская область","Департамент тарифной и ценовой политики Тюменской области"]
["Удмуртская республика","Министерство строительства, жилищно-коммунального хозяйства и энергетики Удмуртской Республики"]
["Ульяновская область","Агентство по регулированию цен и тарифов Ульяновской области"]
["Хабаровский край","Комитет по ценам и тарифам Правительства Хабаровского края"]
["Ханты-Мансийский автономный округ","Региональная служба по тарифам Ханты-Мансийского автономного округа - Югры"]
["Челябинская область","Министерство тарифного регулирования и энергетики Челябинской области"]
["Чеченская республика","Государственный комитет цен и тарифов Чеченской Республики"]
["Чувашская республика","Государственная служба Чувашской Республики по конкурентной политике и тарифам"]
["Чукотский автономный округ","Комитет государственного регулирования цен и тарифов Чукотского автономного округа"]
["Ямало-Ненецкий автономный округ","Департамент тарифной политики, энергетики и жилищно-коммунального комплекса Ямало-Ненецкого автономного округа"]
["Ярославская область","Департамент жилищно-коммунального хозяйства, энергетики и регулирования тарифов Ярославской области"]

{"sheet":"Комментарии","index":20,"n_rows":7,"n_cols":4,"rows_kept":7,"cut":false,"hidden":false,"merged":[]}
[]
[]
[]
[]
[]
[]
[null,null,null,"Комментарии"]

{"sheet":"Проверка","index":21,"n_rows":4,"n_cols":5,"rows_kept":4,"cut":false,"hidden":false,"merged":[[1,1,1,4]]}
[]
[null,"Результат проверки"]
[]
[null,"Ссылка 1","Ссылка 2","Причина","Статус"]

{"sheet":"REESTR_OBJECT","index":22,"n_rows":424,"n_cols":9,"rows_kept":424,"cut":false,"hidden":true,"merged":[]}
["SPHERE","NMBR","NMOB","STYPE","ADDRESS","L_EXPLOIT_DOC_BASE","L_EXPLOIT_DOC_TYPE","L_EXPLOIT_DOC_NUMBER","L_EXPLOIT_DOC_DATE"]
["ВС",null,"Cети водоснабжения","сеть","пгт Верх-Чебула / пгт Верх-Чебула / _","концессионное соглашение","соглашение","2019/ЧМР","13.11.2019"]
["ВС",null,"Артезианская скважина","НС","п 1-й / ул Школьная / 2\"д\"","концессионное соглашение","соглашение","2019/ЧМР","13.11.2019"]
["ВС",null,"Барзасский водозабор НС 2-го подъема [нет]","сеть","г Кемерово / без адреса / б/н","концессионное соглашение","договор","2","28.12.2018"]
["ВС",null,"Барзасский водоподъем долина р. Барзас (в резерве)","НС","г Березовский / г. Березовский / нет","аренда","договор","б/н","20.06.2002"]
["ВС",null,"Буровая водозаборная разведочно-эксплуатационная скважина","НС","п Новоивановский / ул Садовая / 1\"г\"","концессионное соглашение","соглашение","2019/ЧМР","13.11.2019"]
["ВС",null,"ВНС \"Лесная поляна\" [нет]","НС","г Кемерово / автодорога г. Кемерово-Лесная поляна / б/н","концессионное соглашение","договор","2","28.12.2018"]
["ВС",null,"ВОС Поселкового водозабора","ОС","пгт Яя / ул.Юбилейная / 1","аренда","договор","6-11-23","01.08.2023"]
["ВС",null,"Водозабор- насосная станция 1-го подъема","НС","пгт Крапивинский / пгт. Крапивинский / корпус 1","концессионное соглашение","соглашение","1/Л-К","14.11.2019"]
["ВС",null,"Водопроводные сети пгт Яшкино","сеть","пгт Яшкино / - / -","концессионное соглашение","соглашение","№7/ЯМО","28.09.2021"]
["ВС",null,"Врезки в водопроводну сеть с. Колмогорово","сеть","с Колмогорово / - / -","концессионное соглашение","соглашение","№7/ЯМО","28.09.2021"]
["ВС",null,"Врезки в водопроводну сеть с. Пача","сеть","с Пача / - / -","концессионное соглашение","соглашение","№7/ЯМО","28.09.2021"]
["ВС",null,"Гидроузел \"Рудник\" [нет]","НС","г Кемерово / ул. Мамонтова / б/н","концессионное соглашение","договор","2","28.12.2018"]
["ВС",null,"Гидроузел №4 [нет]","НС","г Кемерово / ул. Мартемьянова / б/н","концессионное соглашение","договор","2","28.12.2018"]
["ВС",null,"Гидроузел №6","НС","г Полысаево / проезд Межквартальный, / д.7, строение 2","концессионное соглашение","соглашение","3","14.11.2019"]
["ВС",null,"Зона А [нет]","НС","г Кемерово / ул. Терешковой / 46","концессионное соглашение","договор","2","28.12.2018"]
["ВС",null,"Зона Б [нет]","НС","г Кемерово / ул. Космическая / нечётная сторона","концессионное соглашение","договор","2","28.12.2018"]
["ВС",null,"Ковшевой водозабор с насосной станцией 1-ого подъема долина р. Барзас","НС","г Березовский / г. Березовский / нет","аренда","договор","б/н","20.06.2002"]
["ВС",null,"НС","НС","пгт Яшкино / ул.Молодежная / 11а","концессионное соглашение","соглашение","№7/ЯМО","28.09.2021"]
["ВС",null,"НС-2","НС","пгт Яшкино / В 150м на север от ж.д. №14 по ул.1-я Осиновка / -","концессионное соглашение","соглашение","№7/ЯМО","28.09.2021"]
["ВС",null,"НС-2 подъема Бердовского водозабора","НС","г Кемерово / без адреса / б/н","концессионное соглашение","договор","2","28.12.2018"]
["ВС",null,"НС-2 подъема НФС-2 [нет]","НС","г Кемерово / ул. Советская / 38","концессионное соглашение","договор","2","28.12.2018"]
["ВС",null,"НС-3","НС","пгт Яшкино / ул.Куйбышева / 9а","концессионное соглашение","соглашение","№7/ЯМО","28.09.2021"]
["ВС",null,"НС-3 Кировского р-на [нет]","НС","г Кемерово / пер. Бакинский / 15 А","концессионное соглашение","договор","2","28.12.2018"]
["ВС",null,"НС-3 Рудничного р-на [нет]","НС","г Кемерово / пер. Бакинский / 15 А","концессионное соглашение","договор","2","28.12.2018"]
["ВС",null,"НС-3 ж.р. Кедровка (подача на ж.р. Кедровка) [нет]","НС","г Кемерово / ж.р. Кедровка, ул. Павленко / б/н","концессионное соглашение","договор","2","28.12.2018"]
["ВС",null,"НС-3 ж.р. Кедровка (подача на ж.р. Промышленновский) [нет]","НС","г Кемерово / ж.р. Кедровка, ул. Павленко / б/н","концессионное соглашение","договор","2","28.12.2018"]
["ВС",null,"НС-3 ж.р. Кедровка [нет]","ОС","г Кемерово / ж.р. Кедровка, ул. Павленко / б/н","концессионное соглашение","договор","2","28.12.2018"]
["ВС",null,"НС-4 ж.р. Промышленновский [нет]","НС","г Кемерово / ж.р. Промышленновский, ул. Промшоссе / б/н","концессионное соглашение","договор","2","28.12.2018"]
["ВС",null,"НФС               Насосная станция 5-го подъема","НС","п Демьяновка / пер. Новый / 18, корпус 8","концессионное соглашение","соглашение","1/Л-К","14.11.2019"]
["ВС",null,"НФС-2 [нет]","ОС","г Кемерово / ул. Советская / 38","концессионное соглашение","договор","2","28.12.2018"]
["ВС",null,"НФС-2 НС Пугачёвского водозабора [нет]","НС","г Кемерово / ул. Советская / 38","концессионное соглашение","договор","2","28.12.2018"]
["ВС",null,"НФС-2 НС ковшевого водозабора [нет]","НС","г Кемерово / ул. Советская / 38","концессионное соглашение","договор","2","28.12.2018"]
["ВС",null,"НФС-2 НС руслового водозабора [нет]","НС","г Кемерово / ул. Советская / 38","концессионное соглашение","договор","2","28.12.2018"]
["ВС",null,"НФС-2, НС-2 подъема (Левый берег)","сеть","г Кемерово / ул. Советская / 38","концессионное соглашение","договор","2","28.12.2018"]
["ВС",null,"НФС-2, НС-2 подъема (Правый берег)","сеть","г Кемерово / ул. Советская / 38","концессионное соглашение","договор","2","28.12.2018"]
["ВС",null,"Наружние сети водоснабжения         с. Колмогорово","сеть","с Колмогорово / пер.Ленинский / От дома№6 до участка №9","концессионное соглашение","соглашение","№7/ЯМО","28.09.2021"]
["ВС",null,"Насосная пос.Красногорский","НС","п Красногорский / ул. Магистральная / строение 1","концессионное соглашение","соглашение","3","14.11.2019"]
["ВС",null,"Насосная станция  Гидроузел №2","НС","г Ленинск-Кузнецкий / проезд Объездная дорога / 13","концессионное соглашение","соглашение","1/Л-К","14.11.2019"]
["ВС",null,"Насосная станция  Гидроузел №4","НС","г Ленинск-Кузнецкий / ул. Суворова / 209","концессионное соглашение","соглашение","1/Л-К","14.11.2019"]
["ВС",null,"Насосная станция 2-го подъема","НС","пгт Крапивинский / 1 км автомобильной дороги Крапивинский-Панфилово / б/н","концессионное соглашение","соглашение","1/Л-К","14.11.2019"]
["ВС",null,"Насосная станция 2-ого подъема долина р. Каменушка","НС","г Березовский / ул. Н.Барзас / нет","аренда","договор","б/н","20.06.2002"]
["ВС",null,"Насосная станция 3-го подъема","НС","пгт Крапивинский / 8 км автомобильной дороги Крапивинский-Панфилово / б/н","концессионное соглашение","соглашение","1/Л-К","14.11.2019"]
["ВС",null,"Насосная станция 3-ого подъема","НС","г Березовский / ул. Строителей / 6","аренда","договор","б/н","20.06.2002"]
["ВС",null,"Насосная станция №1 п.ш. \"Южная\"","НС","г Березовский / ул. Гвардейская / нет","аренда","договор","б/н","20.06.2002"]
["ВС",null,"Насосная станция №12 п.ш. \"Южная\"","НС","г Березовский / ул. Таежная / нет","аренда","договор","б/н","20.06.2002"]
["ВС",null,"Насосная станция №16","НС","г Ленинск-Кузнецкий / пр.Ленина / 82\"б\"","концессионное соглашение","соглашение","1/Л-К","14.11.2019"]
["ВС",null,"Насосная станция №2 п.ш. \"Березовская\"","НС","г Березовский / г. Березовский / нет","аренда","договор","б/н","20.06.2002"]
["ВС",null,"Насосная станция №2 п.ш. \"Южная\"","НС","г Березовский / ул. Калинина / нет","аренда","договор","б/н","20.06.2002"]
["ВС",null,"Насосная станция Демьяновский ГУ Гидроузел №1","НС","п Демьяновка / за придорожной полосой автомобильной дороги Новосибирск-Ленинск-Кузнецкий-Кемерово-Юрга, 259 км+500м(справа) корпус 5 / корпус 5","концессионное соглашение","соглашение","1/Л-К","14.11.2019"]
["ВС",null,"Насосно-фильтровальная станция (НФС)","ОС","г Березовский / г. Березовский / нет","аренда","договор","б/н","20.06.2002"]
["ВС",null,"ПНС 11 ЦТП [нет]","НС","г Кемерово / ул. Аврора / 6","концессионное соглашение","договор","2","28.12.2018"]
["ВС",null,"ПНС 14 [нет]","НС","г Кемерово / пр. Ленина / 132 Б","концессионное соглашение","договор","2","28.12.2018"]
["ВС",null,"ПНС 16 [нет]","НС","г Кемерово / ул. Волгоградская / 8 А","концессионное соглашение","договор","2","28.12.2018"]
["ВС",null,"ПНС 17/1 [нет]","НС","г Кемерово / пр. Московский / 27","концессионное соглашение","договор","2","28.12.2018"]
["ВС",null,"ПНС 17/2 [нет]","НС","г Кемерово / б-р Строителей / 4 А","концессионное соглашение","договор","2","28.12.2018"]
["ВС",null,"ПНС 19 [нет]","НС","г Кемерово / пр. Ленина / 142 А","концессионное соглашение","договор","2","28.12.2018"]
["ВС",null,"ПНС 52 [нет]","НС","г Кемерово / ул. Пролетарская / 22","концессионное соглашение","договор","2","28.12.2018"]
["ВС",null,"ПНС 54 (не работает) [нет]","НС","г Кемерово / ул. Сибиряков-Гвардейцев / 19 А","концессионное соглашение","договор","2","28.12.2018"]
["ВС",null,"ПНС 9 [нет]","НС","г Кемерово / пр. Октябрьский / 61","концессионное соглашение","договор","2","28.12.2018"]
["ВС",null,"ПНС Боровой [нет]","НС","г Кемерово / п-к Боровой, ул. 2-ая Парковая / б/н","концессионное соглашение","договор","2","28.12.2018"]
["ВС",null,"ПНС Греческая деревня [нет]","НС","г Кемерово / ж.р. Кедровка, ул. Греческая деревня / восточнее дома  №118","концессионное соглашение","договор","2","28.12.2018"]
["ВС",null,"ПНС Лапичево [нет]","НС","г Кемерово / п. Лапичево, ул. Гвардейская / возле дома №22","концессионное соглашение","договор","2","28.12.2018"]
["ВС",null,"ПНС ул. Антипова [нет]","НС","г Кемерово / ул. Антипова / б/н","концессионное соглашение","договор","2","28.12.2018"]
["ВС",null,"Петровский водозабор [нет]","НС","г Кемерово / п. Петровский / б/н","концессионное соглашение","договор","2","28.12.2018"]
["ВС",null,"Поселковый водозабор","НС","пгт Яя / ул.Юбилейная / 1","аренда","договор","6-11-23","01.08.2023"]
["ВС",null,"Правобережная НС [нет]","НС","г Кемерово / ул. Терешковой / 14","концессионное соглашение","договор","2","28.12.2018"]
["ВС",null,"Сети водоснабжения     д. Балахнино","сеть","д Балахнино / - / -","концессионное соглашение","соглашение","№7/ЯМО","28.09.2021"]
["ВС",null,"Сети водоснабжения     д. Ботьево","сеть","д Ботьево / - / -","концессионное соглашение","соглашение","№7/ЯМО","28.09.2021"]
["ВС",null,"Сети водоснабжения     д. Власково","сеть","д Власково / - / -","концессионное соглашение","соглашение","№7/ЯМО","28.09.2021"]
["ВС",null,"Сети водоснабжения     д. Дауровка","сеть","д Дауровка / - / -","концессионное соглашение","соглашение","№7/ЯМО","28.09.2021"]
["ВС",null,"Сети водоснабжения     д. Зырянка","сеть","д Зырянка / - / -","концессионное соглашение","соглашение","№7/ЯМО","28.09.2021"]
["ВС",null,"Сети водоснабжения     д. Каленово","сеть","д Каленово / - / -","концессионное соглашение","соглашение","№7/ЯМО","28.09.2021"]
["ВС",null,"Сети водоснабжения     д. Корчуганово","сеть","д Корчуганово / - / -","концессионное соглашение","соглашение","№7/ЯМО","28.09.2021"]
["ВС",null,"Сети водоснабжения     д. Крылово","сеть","д Крылово / - / -","концессионное соглашение","соглашение","№7/ЯМО","28.09.2021"]
["ВС",null,"Сети водоснабжения     д. Кулаково","сеть","д Кулаково / - / -","концессионное соглашение","соглашение","№7/ЯМО","28.09.2021"]
["ВС",null,"Сети водоснабжения     д. Литвиново","сеть","д Литвиново / - / -","концессионное соглашение","соглашение","№7/ЯМО","28.09.2021"]
["ВС",null,"Сети водоснабжения     д. Морковкино","сеть","д Морковкино / - / -","концессионное соглашение","соглашение","№7/ЯМО","28.09.2021"]
["ВС",null,"Сети водоснабжения     д. Нижняя-Тайменка","сеть","д Нижняя Тайменка / - / -","концессионное соглашение","соглашение","№7/ЯМО","28.09.2021"]
["ВС",null,"Сети водоснабжения     д. Саломатово","сеть","д Саломатово / - / -","концессионное соглашение","соглашение","№7/ЯМО","28.09.2021"]
["ВС",null,"Сети водоснабжения     д. Усть-Сосновка","сеть","д Усть-Сосновка / - / -","концессионное соглашение","соглашение","№7/ЯМО","28.09.2021"]
["ВС",null,"Сети водоснабжения     д. Юрты-Константиновы","сеть","д Юрты-Константиновы / - / -","концессионное соглашение","соглашение","№7/ЯМО","28.09.2021"]
["ВС",null,"Сети водоснабжения     п. Акация","сеть","п Акация / - / -","концессионное соглашение","соглашение","№7/ЯМО","28.09.2021"]
["ВС",null,"Сети водоснабжения     п. Дубровка","сеть","п Дубровка / - / -","концессионное соглашение","соглашение","№7/ЯМО","28.09.2021"]
["ВС",null,"Сети водоснабжения     п. Ленинский","сеть","п Ленинский / - / -","концессионное соглашение","соглашение","№7/ЯМО","28.09.2021"]
["ВС",null,"Сети водоснабжения     п. Октябрьский","сеть","п Октябрьский / - / -","концессионное соглашение","соглашение","№7/ЯМО","28.09.2021"]
["ВС",null,"Сети водоснабжения     п. Шахтер","сеть","п Шахтер / - / -","концессионное соглашение","соглашение","№7/ЯМО","28.09.2021"]
["ВС",null,"Сети водоснабжения     п. Яшкинский","сеть","п Яшкинский / - / -","концессионное соглашение","соглашение","№7/ЯМО","28.09.2021"]
["ВС",null,"Сети водоснабжения     п/ст. Литвиново","сеть","п.ст Литвиново / - / -","концессионное соглашение","соглашение","№7/ЯМО","28.09.2021"]
["ВС",null,"Сети водоснабжения     п/ст. Хопкино","сеть","п.ст Хопкино / - / -","концессионное соглашение","соглашение","№7/ЯМО","28.09.2021"]
["ВС",null,"Сети водоснабжения     пгт. Яя","сеть","пгт Яя / - / -","аренда","договор","6-11-23","01.08.2023"]
["ВС",null,"Сети водоснабжения     с. Колмогорово","сеть","с Колмогорово / - / -","концессионное соглашение","соглашение","№7/ЯМО","28.09.2021"]
["ВС",null,"Сети водоснабжения     с. Красноселка","сеть","с Красноселка / - / -","концессионное соглашение","соглашение","№7/ЯМО","28.09.2021"]
["ВС",null,"Сети водоснабжения     с. Нижнеяшкино","сеть","с Нижнеяшкино / - / -","концессионное соглашение","соглашение","№7/ЯМО","28.09.2021"]
["ВС",null,"Сети водоснабжения     с. Пача","сеть","с Пача / - / -","концессионное соглашение","соглашение","№7/ЯМО","28.09.2021"]
["ВС",null,"Сети водоснабжения     с. Пашково","сеть","с Пашково / - / -","концессионное соглашение","соглашение","№7/ЯМО","28.09.2021"]
["ВС",null,"Сети водоснабжения     с. Поломошное","сеть","с Поломошное / - / -","концессионное соглашение","соглашение","№7/ЯМО","28.09.2021"]
["ВС",null,"Сети водоснабжения     с. Таловка","сеть","с Таловка / - / -","концессионное соглашение","соглашение","№7/ЯМО","28.09.2021"]
["ВС",null,"Сети водоснабжения     ст. Тутальская","сеть","ст Тутальская / - / -","концессионное соглашение","соглашение","№7/ЯМО","28.09.2021"]
["ВС",null,"Сети водоснабжения д. Арышево","сеть","д Арышево / - / -","аренда","договор","6-11-23","01.08.2023"]
["ВС",null,"Сети водоснабжения д. Данковка","сеть","д Данковка / - / -","аренда","договор","6-11-23","01.08.2023"]
["ВС",null,"Сети водоснабжения д. Емельяновка","сеть","д Емельяновка / - / -","аренда","договор","6-11-23","01.08.2023"]
["ВС",null,"Сети водоснабжения д. Марьевка","сеть","д Марьевка / - / -","аренда","договор","6-11-23","01.08.2023"]
["ВС",null,"Сети водоснабжения д. Ольговка","сеть","д Ольговка / - / -","аренда","договор","6-11-23","01.08.2023"]
["ВС",null,"Сети водоснабжения д. Сергеевка","сеть","д Сергеевка / - / -","аренда","договор","6-11-23","01.08.2023"]
["ВС",null,"Сети водоснабжения д. Соболинка","сеть","д Соболинка / - / -","аренда","договор","6-11-23","01.08.2023"]
["ВС",null,"Сети водоснабжения п. Безлесный","сеть","п Безлесный / - / -","аренда","договор","6-11-23","01.08.2023"]
["ВС",null,"Сети водоснабжения п. Воскресенка","сеть","п Воскресенка (Суровка) / - / -","аренда","договор","6-11-23","01.08.2023"]
["ВС",null,"Сети водоснабжения п. Майский","сеть","п Майский / входило в состав сельского поселения Безлесное Яйского муниципального района / - / -","аренда","договор","6-11-23","01.08.2023"]
["ВС",null,"Сети водоснабжения п. Новостройка","сеть","п Новостройка / - / -","аренда","договор","6-11-23","01.08.2023"]
["ВС",null,"Сети водоснабжения п. Турат","сеть","п Турат / - / -","аренда","договор","6-11-23","01.08.2023"]
["ВС",null,"Сети водоснабжения п. Чиндатский","сеть","п Чиндатский / - / -","аренда","договор","6-11-23","01.08.2023"]
["ВС",null,"Сети водоснабжения п.ст. Судженка","сеть","п.ст Судженка / - / -","аренда","договор","6-11-23","01.08.2023"]
["ВС",null,"Сети водоснабжения с. Бекет","сеть","с Бекет / - / -","аренда","договор","6-11-23","01.08.2023"]
["ВС",null,"Сети водоснабжения с. Вознесенка","сеть","с Вознесенка / - / -","аренда","договор","6-11-23","01.08.2023"]
["ВС",null,"Сети водоснабжения с. Ишим","сеть","с Ишим / - / -","аренда","договор","6-11-23","01.08.2023"]
["ВС",null,"Сети водоснабжения с. Кайла","сеть","с Кайла / - / -","аренда","договор","6-11-23","01.08.2023"]
["ВС",null,"Сети водоснабжения с. Мальцево","сеть","с Мальцево / - / -","аренда","договор","6-11-23","01.08.2023"]
["ВС",null,"Сети водоснабжения с. Новониколаевка","сеть","с Новониколаевка / - / -","аренда","договор","6-11-23","01.08.2023"]
["ВС",null,"Сети водоснабжения с. Судженка","сеть","с Судженка / - / -","аренда","договор","6-11-23","01.08.2023"]
["ВС",null,"Сети водоснабжения с. Улановка","сеть","с Улановка / - / -","аренда","договор","6-11-23","01.08.2023"]
["ВС",null,"Сети водоснабжения с. Яя-Борик","сеть","с Яя-Борик / - / -","аренда","договор","6-11-23","01.08.2023"]
["ВС",null,"Скважина","НС","д Дмитриевка / ул Набережная / 16а","концессионное соглашение","соглашение","2019/ЧМР","13.11.2019"]
["ВС",null,"Скважина","НС","д Курск-Смоленка / ул Советская / 34\"а\"","концессионное соглашение","соглашение","2019/ЧМР","13.11.2019"]
["ВС",null,"Скважина","НС","д Курск-Смоленка / ул Советская / 2\"а\"","концессионное соглашение","соглашение","2019/ЧМР","13.11.2019"]
["ВС",null,"Скважина","НС","д Орлово-Розово / ул Центральная 200м на восток от дома №65 / _","концессионное соглашение","соглашение","2019/ЧМР","13.11.2019"]
["ВС",null,"Скважина","НС","д Покровка / ул Зеленая / 14\"а\"","концессионное соглашение","соглашение","2019/ЧМР","13.11.2019"]
["ВС",null,"Скважина","НС","д Шестаково / ул Оренбургская / 2\"в\"","концессионное соглашение","соглашение","2019/ЧМР","13.11.2019"]
["ВС",null,"Скважина","НС","п 1-й / ул. Воронова / 8а","концессионное соглашение","соглашение","2019/ЧМР","13.11.2019"]
["ВС",null,"Скважина","НС","пгт Верх-Чебула / ул Губернаторская / 23\"а\"","концессионное соглашение","соглашение","2019/ЧМР","13.11.2019"]
["ВС",null,"Скважина","НС","пгт Верх-Чебула / ул. Советская / 8","концессионное соглашение","соглашение","2019/ЧМР","13.11.2019"]
["ВС",null,"Скважина","НС","пгт Верх-Чебула / ул. Пасова / 4а","концессионное соглашение","соглашение","2019/ЧМР","13.11.2019"]
["ВС",null,"Скважина","НС","с Алчедат / ул Октябрьская / 43\"в\"","концессионное соглашение","соглашение","2019/ЧМР","13.11.2019"]
["ВС",null,"Скважина","НС","с Николаевка / ул Осипова / 13\"а\"","концессионное соглашение","соглашение","2019/ЧМР","13.11.2019"]
["ВС",null,"Скважина","НС","с Усманка / ул Молодежная / 16","концессионное соглашение","соглашение","2019/ЧМР","13.11.2019"]
["ВС",null,"Скважина","НС","с Усманка / ул Молодежная / 5в","концессионное соглашение","соглашение","2019/ЧМР","13.11.2019"]
["ВС",null,"Скважина","НС","с Усманка / ул Молодежная / 5\"г\"","концессионное соглашение","соглашение","2019/ЧМР","13.11.2019"]
["ВС",null,"Скважина","НС","с Усть-Серта / ул 60 лет ВЛКСМ / 19\"а\"","концессионное соглашение","соглашение","2019/ЧМР","13.11.2019"]
["ВС",null,"Скважина","НС","с Усть-Серта / ул Кирова / 11\"а\"","концессионное соглашение","соглашение","2019/ЧМР","13.11.2019"]
["ВС",null,"Скважина","НС","с Усть-Серта / ул Сибирская / 26\"а\"","концессионное соглашение","соглашение","2019/ЧМР","13.11.2019"]
["ВС",null,"Скважина","НС","с Усть-Чебула / ул. Школьная / 1в","концессионное соглашение","соглашение","2019/ЧМР","13.11.2019"]
["ВС",null,"Скважина №1","НС","д Михайловка / ул Школьная / 1\"б\"","концессионное соглашение","соглашение","2019/ЧМР","13.11.2019"]
["ВС",null,"Скважина №1","НС","пгт Верх-Чебула / ул. 40 лет Победы / 1\"б\"","концессионное соглашение","соглашение","2019/ЧМР","13.11.2019"]
["ВС",null,"Скважина №1","НС","п Акация / ул.Мира / 1а","концессионное соглашение","соглашение","№7/ЯМО","28.09.2021"]
["ВС",null,"Скважина №1","НС","п Ленинский / ул.Юбилейная / 2а","концессионное соглашение","соглашение","№7/ЯМО","28.09.2021"]
["ВС",null,"Скважина №1           КМ-65","НС","пгт Яшкино / р.Яя / -","концессионное соглашение","соглашение","№7/ЯМО","28.09.2021"]
["ВС",null,"Скважина №1/2058","НС","с Колмогорово / ул.Мирная / 108а","концессионное соглашение","соглашение","№7/ЯМО","28.09.2021"]
["ВС",null,"Скважина №1/4076","НС","с Пача / ул.Ленина / 2б","концессионное соглашение","соглашение","№7/ЯМО","28.09.2021"]
["ВС",null,"Скважина №1/4077","НС","с Пача / ул.Ленина / 2в","концессионное соглашение","соглашение","№7/ЯМО","28.09.2021"]
["ВС",null,"Скважина №10","НС","п Акация / ул.Мира / 21","концессионное соглашение","соглашение","№7/ЯМО","28.09.2021"]
["ВС",null,"Скважина №11/4130","НС","пгт Яшкино / ул.Ленинская / 2а","концессионное соглашение","соглашение","№7/ЯМО","28.09.2021"]
["ВС",null,"Скважина №1174","НС","пгт Верх-Чебула / ул. 40 лет Победы / Ближе к двум домам по ул. Советская,1а","концессионное соглашение","соглашение","2019/ЧМР","13.11.2019"]
["ВС",null,"Скважина №12/4268","НС","с Поломошное / ул.Бениваленского / 41а","концессионное соглашение","соглашение","№7/ЯМО","28.09.2021"]
["ВС",null,"Скважина №12/4627","НС","пгт Яшкино / ул.Фестивальная / 7а","концессионное соглашение","соглашение","№7/ЯМО","28.09.2021"]
["ВС",null,"Скважина №13/2366","НС","с Поломошное / ул.70-лет Октября / 2б","концессионное соглашение","соглашение","№7/ЯМО","28.09.2021"]
["ВС",null,"Скважина №14/4290","НС","с Поломошное / пер.Школьный / 2б","концессионное соглашение","соглашение","№7/ЯМО","28.09.2021"]
["ВС",null,"Скважина №15/4692а","НС","п Акация / ул.Мира / 27","концессионное соглашение","соглашение","№7/ЯМО","28.09.2021"]
["ВС",null,"Скважина №16/433","НС","п.ст Литвиново / ул.Больничная / 7а","концессионное соглашение","соглашение","№7/ЯМО","28.09.2021"]
["ВС",null,"Скважина №2           КМ-66","НС","пгт Яшкино / р.Яя / -","концессионное соглашение","соглашение","№7/ЯМО","28.09.2021"]
["ВС",null,"Скважина №2 в пойме р. Кия","НС","с Чумай / ул Ленинская / 125","концессионное соглашение","соглашение","2019/ЧМР","13.11.2019"]
["ВС",null,"Скважина №2/3837","НС","с Красноселка / ул.Лесная / 1б","концессионное соглашение","соглашение","№7/ЯМО","28.09.2021"]
["ВС",null,"Скважина №2/4076","НС","с Колмогорово / ул.Мирная / 108б","концессионное соглашение","соглашение","№7/ЯМО","28.09.2021"]
["ВС",null,"Скважина №20/3671","НС","п.ст Литвиново / ул.Молодежная / 14а","концессионное соглашение","соглашение","№7/ЯМО","28.09.2021"]
["ВС",null,"Скважина №2382","НС","д Литвиново / ул.Центральная / 5а","концессионное соглашение","соглашение","№7/ЯМО","28.09.2021"]
["ВС",null,"Скважина №2а","НС","г Ленинск-Кузнецкий / в 800 м (слева) на северо-запад от 261 км автомобильной дороги Новосибирск-Ленинск-Кузнецкий-Кемерово-Юрга / б/н","концессионное соглашение","соглашение","1/Л-К","14.11.2019"]
["ВС",null,"Скважина №3/1777","НС","с Красноселка / ул.Лесная / 2б","концессионное соглашение","соглашение","№7/ЯМО","28.09.2021"]
["ВС",null,"Скважина №3/2865","НС","с Колмогорово / ул.Мирная / 63а","концессионное соглашение","соглашение","№7/ЯМО","28.09.2021"]
["ВС",null,"Скважина №3588","НС","д Емельяновка / ул. Центральная / за домом 28","аренда","договор","6-11-23","01.08.2023"]
["ВС",null,"Скважина №3661(1)","НС","д Зырянка / ул.Юбилейная / 6а","концессионное соглашение","соглашение","№7/ЯМО","28.09.2021"]
["ВС",null,"Скважина №3662(4750)","НС","д Нижняя Тайменка / ул.Центральная / 7а","концессионное соглашение","соглашение","№7/ЯМО","28.09.2021"]
["ВС",null,"Скважина №4027","НС","п Дубровка / ул.Мира / 28а","концессионное соглашение","соглашение","№7/ЯМО","28.09.2021"]
["ВС",null,"Скважина №429/2813","НС","п.ст Литвиново / ул.Октябрьская / 31а","концессионное соглашение","соглашение","№7/ЯМО","28.09.2021"]
["ВС",null,"Скважина №4а","НС","г Ленинск-Кузнецкий / в 950 м (справа) на северо-запад от 261 км автомобильной дороги Новосибирск-Ленинск-Кузнецкий-Кемерово-Юрга / б/н","концессионное соглашение","соглашение","1/Л-К","14.11.2019"]
["ВС",null,"Скважина №5","НС","д Нижняя Тайменка / ул.Кирпичная / 5а","концессионное соглашение","соглашение","№7/ЯМО","28.09.2021"]
["ВС",null,"Скважина №5","НС","пгт Яшкино / ул.Железнодорожная / 1а","концессионное соглашение","соглашение","№7/ЯМО","28.09.2021"]
["ВС",null,"Скважина №6/2865","НС","с Колмогорово / ул.Ленинская / 9а","концессионное соглашение","соглашение","№7/ЯМО","28.09.2021"]
["ВС",null,"Скважина №6/2865","НС","с Колмогорово / ул.Ленинская / 9б","концессионное соглашение","соглашение","№7/ЯМО","28.09.2021"]
["ВС",null,"Скважина №6а","НС","г Ленинск-Кузнецкий / в 1200 м на юг от водонапорной башни в пос.Озеровка по ул.Центральной / б/н","концессионное соглашение","соглашение","1/Л-К","14.11.2019"]
["ВС",null,"Скважина №7/9_54","НС","пгт Яшкино / пер. Базарный / 11а","концессионное соглашение","соглашение","№7/ЯМО","28.09.2021"]
["ВС",null,"Скважина №7а","НС","г Ленинск-Кузнецкий / за придорожной полосой автомобильной дороги Новосибирск-Ленинск-Кузнецкий-Кемерово-Юрга, 259 км+500м(справа) / корпус 9","концессионное соглашение","соглашение","1/Л-К","14.11.2019"]
["ВС",null,"Скважина №8","НС","д Крылово / ул.Набережная / 4а","концессионное соглашение","соглашение","№7/ЯМО","28.09.2021"]
["ВС",null,"Скважина №8/4422","НС","пгт Яшкино / ул.Коллективная / 34а","концессионное соглашение","соглашение","№7/ЯМО","28.09.2021"]
["ВС",null,"Скважина №9/4546","НС","пгт Яшкино / ул.Колхозная / 22а","концессионное соглашение","соглашение","№7/ЯМО","28.09.2021"]
["ВС",null,"Скважина Никитинская 534","НС","п Никитинский / ул. Никитинская / 2\"б\"","концессионное соглашение","соглашение","1/Л-К","14.11.2019"]
["ВС",null,"Скважина Никитинская 602","НС","п Никитинский / ул. Никитинская / 2\"в\" сооружение 1","концессионное соглашение","соглашение","1/Л-К","14.11.2019"]
["ВС",null,"Скважина б/н","НС","д Арышево / - / -","аренда","договор","6-11-23","01.08.2023"]
["ВС",null,"Скважина б/н","НС","д Данковка / ул. Молодежная / -","аренда","договор","6-11-23","01.08.2023"]
["ВС",null,"Скважина б/н","НС","д Марьевка / ул. Федорова / 12а","аренда","договор","6-11-23","01.08.2023"]
["ВС",null,"Скважина б/н","НС","д Марьевка / ул. Школьная / 19а","аренда","договор","6-11-23","01.08.2023"]
["ВС",null,"Скважина б/н","НС","д Ольговка / - / -","аренда","договор","6-11-23","01.08.2023"]
["ВС",null,"Скважина б/н","НС","д Сергеевка / - / -","аренда","договор","6-11-23","01.08.2023"]
["ВС",null,"Скважина б/н","НС","д Соболинка / ул. Таежная / около дома №55","аренда","договор","6-11-23","01.08.2023"]
["ВС",null,"Скважина б/н","НС","п Безлесный / - / -","аренда","договор","6-11-23","01.08.2023"]
["ВС",null,"Скважина б/н","НС","п Воскресенка (Суровка) / ул. Весенняя / -","аренда","договор","6-11-23","01.08.2023"]
["ВС",null,"Скважина б/н","НС","п Майский / входило в состав сельского поселения Безлесное Яйского муниципального района / - / -","аренда","договор","6-11-23","01.08.2023"]
["ВС",null,"Скважина б/н","НС","п Новостройка / - / -","аренда","договор","6-11-23","01.08.2023"]
["ВС",null,"Скважина б/н","НС","п Турат / ул. Речная / 2","аренда","договор","6-11-23","01.08.2023"]
["ВС",null,"Скважина б/н","НС","п Турат / ул. Лесная / 5","аренда","договор","6-11-23","01.08.2023"]
["ВС",null,"Скважина б/н","НС","п Чиндатский / ул. Возрождения / около дома №13","аренда","договор","6-11-23","01.08.2023"]
["ВС",null,"Скважина б/н","НС","п.ст Судженка / пер. Садовый / 6","аренда","договор","6-11-23","01.08.2023"]
["ВС",null,"Скважина б/н","НС","п.ст Судженка / ул. Механическая / 44","аренда","договор","6-11-23","01.08.2023"]
["ВС",null,"Скважина б/н","НС","с Бекет / бывший скотный двор / -","аренда","договор","6-11-23","01.08.2023"]
["ВС",null,"Скважина б/н","НС","с Вознесенка / ул. Молодежная / около дома №2","аренда","договор","6-11-23","01.08.2023"]
["ВС",null,"Скважина б/н","НС","с Вознесенка / ул. Центральная / 80 метров от дома №18","аренда","договор","6-11-23","01.08.2023"]
["ВС",null,"Скважина б/н","НС","с Ишим / ул. Декабристов, на въезде в с. Ишим / -","аренда","договор","6-11-23","01.08.2023"]
["ВС",null,"Скважина б/н","НС","с Кайла / ул. Центральная / 10а","аренда","договор","6-11-23","01.08.2023"]
["ВС",null,"Скважина б/н","НС","с Кайла / ул. Красная Горка / -","аренда","договор","6-11-23","01.08.2023"]
["ВС",null,"Скважина б/н","НС","с Мальцево / - / -","аренда","договор","6-11-23","01.08.2023"]
["ВС",null,"Скважина б/н","НС","с Новониколаевка / ул. Школьная / за домом №6","аренда","договор","6-11-23","01.08.2023"]
["ВС",null,"Скважина б/н","НС","с Новониколаевка / ул. Школьная / напротив дома №11","аренда","договор","6-11-23","01.08.2023"]
["ВС",null,"Скважина б/н","НС","с Новониколаевка / ул. Садовая / за домом №1б","аренда","договор","6-11-23","01.08.2023"]
["ВС",null,"Скважина б/н","НС","с Судженка / ул. Советская / 94а","аренда","договор","6-11-23","01.08.2023"]
["ВС",null,"Скважина б/н","НС","с Судженка / ул. Заречная / за домом №45","аренда","договор","6-11-23","01.08.2023"]
["ВС",null,"Скважина б/н","НС","с Улановка / ул. Ленина, территория КФХ Цыганков / -","аренда","договор","6-11-23","01.08.2023"]
["ВС",null,"Скважина б/н","НС","с Улановка / ул. Советская, на въезде в с. Улановка / -","аренда","договор","6-11-23","01.08.2023"]
["ВС",null,"Скважина б/н","НС","с Яя-Борик / ул. Центральная / около дома № 1В","аренда","договор","6-11-23","01.08.2023"]
["ВС",null,"Скважина б/н","НС","д Балахнино / ул.Центральная / 1а","концессионное соглашение","соглашение","№7/ЯМО","28.09.2021"]
["ВС",null,"Скважина б/н","НС","д Ботьево / ул.Школьная / 13а","концессионное соглашение","соглашение","№7/ЯМО","28.09.2021"]
["ВС",null,"Скважина б/н","НС","д Ботьево / ул.Строительная / 24","концессионное соглашение","соглашение","№7/ЯМО","28.09.2021"]
["ВС",null,"Скважина б/н","НС","д Ботьево / ул.Новая / 15","концессионное соглашение","соглашение","№7/ЯМО","28.09.2021"]
["ВС",null,"Скважина б/н","НС","д Дауровка / ул.Центральная / 15а","концессионное соглашение","соглашение","№7/ЯМО","28.09.2021"]
["ВС",null,"Скважина б/н","НС","д Каленово / ул.Мирная / 2а","концессионное соглашение","соглашение","№7/ЯМО","28.09.2021"]
["ВС",null,"Скважина б/н","НС","д Корчуганово / ул.Клубная / 2и","концессионное соглашение","соглашение","№7/ЯМО","28.09.2021"]
["ВС",null,"Скважина б/н","НС","д Кулаково / ул.Животноводов / 1а","концессионное соглашение","соглашение","№7/ЯМО","28.09.2021"]
["ВС",null,"Скважина б/н","НС","д Мелково / ул.Речная / 8а","концессионное соглашение","соглашение","№7/ЯМО","28.09.2021"]
["ВС",null,"Скважина б/н","НС","д Морковкино / ул.Молодежная / 1а","концессионное соглашение","соглашение","№7/ЯМО","28.09.2021"]
["ВС",null,"Скважина б/н","НС","д Морковкино / Бывшая деревня Ивановка ул.Лесная / 1г","концессионное соглашение","соглашение","№7/ЯМО","28.09.2021"]
["ВС",null,"Скважина б/н","НС","д Саломатово / ул.Весенняя / 2а","концессионное соглашение","соглашение","№7/ЯМО","28.09.2021"]
["ВС",null,"Скважина б/н","НС","д Северная / ул.Молодежная / 12","концессионное соглашение","соглашение","№7/ЯМО","28.09.2021"]
["ВС",null,"Скважина б/н","НС","д Северная / ул.Верхняя / 12б","концессионное соглашение","соглашение","№7/ЯМО","28.09.2021"]
["ВС",null,"Скважина б/н","НС","д Сосновый Острог / ул.Весенняя / 1а","концессионное соглашение","соглашение","№7/ЯМО","28.09.2021"]
["ВС",null,"Скважина б/н","НС","д Усть-Сосновка / ул.Центральная / 8а","концессионное соглашение","соглашение","№7/ЯМО","28.09.2021"]
["ВС",null,"Скважина б/н","НС","д Юрты-Константиновы / ул.Мира / 49","концессионное соглашение","соглашение","№7/ЯМО","28.09.2021"]
["ВС",null,"Скважина б/н","НС","д Юрты-Константиновы / ул. Братьев Сидельниковых / 1а","концессионное соглашение","соглашение","№7/ЯМО","28.09.2021"]
["ВС",null,"Скважина б/н","НС","п Октябрьский / ул.Октябрьская / 20","концессионное соглашение","соглашение","№7/ЯМО","28.09.2021"]
["ВС",null,"Скважина б/н","НС","п Шахтер / ул.Лесная / 9а","концессионное соглашение","соглашение","№7/ЯМО","28.09.2021"]
["ВС",null,"Скважина б/н","НС","п Шахтер / ул.Строительная / 4а","концессионное соглашение","соглашение","№7/ЯМО","28.09.2021"]
["ВС",null,"Скважина б/н","НС","п Яшкинский / ул.Спортивная / 2а","концессионное соглашение","соглашение","№7/ЯМО","28.09.2021"]
["ВС",null,"Скважина б/н","НС","п Яшкинский / ул.Окрайняя / 24","концессионное соглашение","соглашение","№7/ЯМО","28.09.2021"]
["ВС",null,"Скважина б/н","НС","п Яшкинский / ул.65 лет Октября / 31","концессионное соглашение","соглашение","№7/ЯМО","28.09.2021"]
["ВС",null,"Скважина б/н","НС","п.ст Литвиново / ул.Строителей (АБЗ) / 2б","концессионное соглашение","соглашение","№7/ЯМО","28.09.2021"]
["ВС",null,"Скважина б/н","НС","п.ст Литвиново / ул.Железнодорожная / 17","концессионное соглашение","соглашение","№7/ЯМО","28.09.2021"]
["ВС",null,"Скважина б/н","НС","п.ст Хопкино / ул.Железнодорожная / 33а","концессионное соглашение","соглашение","№7/ЯМО","28.09.2021"]
["ВС",null,"Скважина б/н","НС","пгт Яшкино / ул.Заречная / 16а","концессионное соглашение","соглашение","№7/ЯМО","28.09.202"]
["ВС",null,"Скважина б/н","НС","пгт Яшкино / ул.Солнечная / 4а","концессионное соглашение","соглашение","№7/ЯМО","28.09.2021"]
["ВС",null,"Скважина б/н","НС","пгт Яшкино / ул.Шоссейная / 23б","концессионное соглашение","соглашение","№7/ЯМО","28.09.2021"]
["ВС",null,"Скважина б/н","НС","пгт Яшкино / ул.Лесоводов / 29а","концессионное соглашение","соглашение","№7/ЯМО","28.09.2021"]
["ВС",null,"Скважина б/н","НС","пгт Яшкино / ул.Советская / 136в","концессионное соглашение","соглашение","№7/ЯМО","28.09.2021"]
["ВС",null,"Скважина б/н","НС","пгт Яшкино / ул.Сибирская / 2","концессионное соглашение","соглашение","№7/ЯМО","28.09.2021"]
["ВС",null,"Скважина б/н","НС","пгт Яшкино / ул.Советская / 136г","концессионное соглашение","соглашение","№7/ЯМО","28.09.2021"]
["ВС",null,"Скважина б/н","НС","с Красноселка / ул.Новая / 2а","концессионное соглашение","соглашение","№7/ЯМО","28.09.2021"]
["ВС",null,"Скважина б/н","НС","с Нижнеяшкино / ул.Комарова / 12","концессионное соглашение","соглашение","№7/ЯМО","28.09.2021"]
["ВС",null,"Скважина б/н","НС","с Нижнеяшкино / - / -","концессионное соглашение","соглашение","№7/ЯМО","28.09.2021"]
["ВС",null,"Скважина б/н","НС","с Нижнеяшкино / ул.Коммунистическая / -","концессионное соглашение","соглашение","№7/ЯМО","28.09.2021"]
["ВС",null,"Скважина б/н","НС","с Пача / ул.Ленина / 2г","концессионное соглашение","соглашение","№7/ЯМО","28.09.2021"]
["ВС",null,"Скважина б/н","НС","с Пача / ул.Ленина / 1в","концессионное соглашение","соглашение","№7/ЯМО","28.09.2021"]
["ВС",null,"Скважина б/н","НС","с Пача / ул.Лесная / 2в","концессионное соглашение","соглашение","№7/ЯМО","28.09.2021"]
["ВС",null,"Скважина б/н","НС","с Пашково / ул.Зеленая / 6а","концессионное соглашение","соглашение","№7/ЯМО","28.09.2021"]
["ВС",null,"Скважина б/н","НС","с Пашково / ул.Роза-Люксембург / 18а","концессионное соглашение","соглашение","№7/ЯМО","28.09.2021"]
["ВС",null,"Скважина б/н","НС","с Пашково / пер.Кедровый / 6а","концессионное соглашение","соглашение","№7/ЯМО","28.09.2021"]
["ВС",null,"Скважина б/н","НС","с Пашково / пер.Мирный / 7а","концессионное соглашение","соглашение","№7/ЯМО","28.09.2021"]
["ВС",null,"Скважина б/н","НС","с Пашково / ул.Леонова / 43","концессионное соглашение","соглашение","№7/ЯМО","28.09.2021"]
["ВС",null,"Скважина б/н","НС","с Пашково / ул.Леонова / 4а","концессионное соглашение","соглашение","№7/ЯМО","28.09.2021"]
["ВС",null,"Скважина б/н","НС","с Пашково / ул.Коммунистическая / 13а","концессионное соглашение","соглашение","№7/ЯМО","28.09.2021"]
["ВС",null,"Скважина б/н","НС","с Поломошное / ул.Центральная / 42","концессионное соглашение","соглашение","№7/ЯМО","28.09.2021"]
["ВС",null,"Скважина б/н","НС","с Таловка / ул.Тайгинская / -","концессионное соглашение","соглашение","№7/ЯМО","28.09.2021"]
["ВС",null,"Скважина б/н","НС","с Таловка / ул.Молодежная / -","концессионное соглашение","соглашение","№7/ЯМО","28.09.2021"]
["ВС",null,"Скважина б/н","НС","с Таловка / ул.Новая / -","концессионное соглашение","соглашение","№7/ЯМО","28.09.2021"]
["ВС",null,"Скважина б/н","НС","ст Тутальская / ул.Линейная / 39а","концессионное соглашение","соглашение","№7/ЯМО","28.09.2021"]
["ВС",null,"Скважина м-н Южный","НС","пгт Верх-Чебула / мкр Южный / 20\"к\"","концессионное соглашение","соглашение","2019/ЧМР","13.11.2019"]
["ВС",null,"Скважиная (резервная)","НС","с Алчедат / ул Юбилейная / 34\"а\"","концессионное соглашение","соглашение","2019/ЧМР","13.11.2019"]
["ВС",null,"Станция подготовки питьевой воды п. Петровский [нет]","ОС","г Кемерово / п. Петровский / б/н","концессионное соглашение","договор","2","28.12.2018"]
["ВС",null,"Ягуновский водозабор [нет]","НС","г Кемерово / 1 км южнее г Кемерово и 1 км восточнее автодороги Кемерово-Промышленная / б/н","концессионное соглашение","договор","2","28.12.2018"]
["ВС",null,"Ягуновский водозабор [нет]","ОС","г Кемерово / 1 км южнее г. Кемерово и 1 км восточнее автодороги Кемерово-Промышленная / б/н","концессионное соглашение","договор","2","28.12.2018"]
["ВС",null,"Ягуновский водозабор НС-2 подъема [нет]","сеть","г Кемерово / 1 км южнее г. Кемерово и 1 км восточнее автодороги Кемерово-Промышленная / б/н","концессионное соглашение","договор","2","28.12.2018"]
["ВС",null,"Ягуновский водозабор, НС-2 подъема [нет]","НС","г Кемерово / 1 км южнее г. Кемерово и 1 км восточнее автодороги Кемерово-Промышленная / б/н","концессионное соглашение","договор","2","28.12.2018"]
["ВС",null,"водозабор д. Петровка [нет]","НС","г Кемерово / п. Петровка / ул. Красина","концессионное соглашение","договор","2","28.12.2018"]
["ВС",null,"насосная станция","НС","г Ленинск-Кузнецкий / ул. Розы Люксембург / 47\"б\"","концессионное соглашение","соглашение","1/Л-К","14.11.2019"]
["ВС",null,"насосная станция  №17","НС","г Ленинск-Кузнецкий / пр.Ленина / 86\"б\"","концессионное соглашение","соглашение","1/Л-К","14.11.2019"]
["ВС",null,"насосная станция Подъем №2","НС","г Ленинск-Кузнецкий / пр.Кирова / 20а","концессионное соглашение","соглашение","1/Л-К","14.11.2019"]
["ВС",null,"нфс","НС","пгт Яшкино / ул.Молодежная / 11а","концессионное соглашение","соглашение","№7/ЯМО","28.09.2021"]
["ВС",null,"п. Барзас","НС","г Березовский / ул. Мира, пер. Восточный / нет","аренда","договор","б/н","20.06.2002"]
["ВС",null,"п. Барзас, ст. Барзас","сеть","г Березовский / г. Березовский / нет","аренда","договор","б/н","20.06.2002"]
["ВС",null,"п. Октябрьский","сеть","г Березовский / г. Березовский / нет","аренда","договор","б/н","20.06.2002"]
["ВС",null,"п. Октябрьский (техническая вода)","сеть","г Березовский / г. Березовский / нет","аренда","договор","б/н","20.06.2002"]
["ВС",null,"п.ш. \"Березовская\"","сеть","г Березовский / г. Березовский / нет","аренда","договор","б/н","20.06.2002"]
["ВС",null,"п.ш. \"Южная\"","сеть","г Березовский / г. Березовский / нет","аренда","договор","б/н","20.06.2002"]
["ВС",null,"сети водоснабжения","сеть","д Дмитриевка / д Дмитриевка / _","концессионное соглашение","соглашение","2019/ЧМР","13.11.2019"]
["ВС",null,"сети водоснабжения","сеть","д Михайловка / ул Школьная / 1\"б\"","концессионное соглашение","соглашение","2019/ЧМР","13.11.2019"]
["ВС",null,"сети водоснабжения","сеть","д Орлово-Розово / д Орлово-Розово / _","концессионное соглашение","соглашение","2019/ЧМР","13.11.2019"]
["ВС",null,"сети водоснабжения","сеть","д Покровка / д Покровка / _","концессионное соглашение","соглашение","2019/ЧМР","13.11.2019"]
["ВС",null,"сети водоснабжения","сеть","п 1-й / п 1-й / _","концессионное соглашение","соглашение","2019/ЧМР","13.11.2019"]
["ВС",null,"сети водоснабжения","сеть","п Новоивановский / ул Трактовая / 3а","концессионное соглашение","соглашение","2019/ЧМР","13.11.2019"]
["ВС",null,"сети водоснабжения","сеть","п Новоивановский 2-й / ул Весенняя / 11н","концессионное соглашение","соглашение","2019/ЧМР","13.11.2019"]
["ВС",null,"сети водоснабжения","сеть","п Новоивановский 3-й / ул Крымская / 1н","концессионное соглашение","соглашение","2019/ЧМР","13.11.2019"]
["ВС",null,"сети водоснабжения","сеть","п Новоивановский 4-й / ул Трактовая / 1ж","концессионное соглашение","соглашение","2019/ЧМР","13.11.2019"]
["ВС",null,"сети водоснабжения","сеть","пгт Верх-Чебула / от скважины №1231 по ул. 40 лет Победы / _","концессионное соглашение","соглашение","2019/ЧМР","13.11.2019"]
["ВС",null,"сети водоснабжения","сеть","пгт Верх-Чебула / пгт Верх-Чебула / _","концессионное соглашение","соглашение","2019/ЧМР","13.11.2019"]
["ВС",null,"сети водоснабжения","сеть","с Алчедат / с Алчедат / _","концессионное соглашение","соглашение","2019/ЧМР","13.11.2019"]
["ВС",null,"сети водоснабжения","сеть","с Николаевка / с Николаевка / _","концессионное соглашение","соглашение","2019/ЧМР","13.11.2019"]
["ВС",null,"сети водоснабжения","сеть","с Усманка / от скважины по ул.Молодежная,16 в районе  котельной детского сада №13 / _","концессионное соглашение","соглашение","2019/ЧМР","13.11.2019"]
["ВС",null,"сети водоснабжения","сеть","г Ленинск-Кузнецкий / г. Ленинск-Кузнецкий / -","концессионное соглашение","соглашение","1/Л-К","14.11.2019"]
["ВС",null,"сети водоснабжения","сеть","г Полысаево / г. Полысаево / -","концессионное соглашение","соглашение","3","14.11.2019"]
["ВС",null,"сети водоснабжения (техническая вода)","сеть","п Новоивановский 2-й / - / -","концессионное соглашение","соглашение","2019/ЧМР","13.11.2019"]
["ВС",null,"сети водоснабжения (техническая вода)","сеть","п Новоивановский 3-й / - / -","концессионное соглашение","соглашение","2019/ЧМР","13.11.2019"]
["ВС",null,"сети водоснабжения (техническая вода)","сеть","п Новоивановский 4-й / - / -","концессионное соглашение","соглашение","2019/ЧМР","13.11.2019"]
["ВС",null,"сеть водоснабжения","сеть","д Курск-Смоленка / д Курск-Смоленка / _","концессионное соглашение","соглашение","2019/ЧМР","13.11.2019"]
["ВС",null,"сеть водоснабжения","сеть","д Шестаково / ул Школьная / _","концессионное соглашение","соглашение","2019/ЧМР","13.11.2019"]
["ВС",null,"сеть водоснабжения","сеть","с Усманка / от скважины по ул.Молодежная,16 в районе  центральной котельной  №12 / _","концессионное соглашение","соглашение","2019/ЧМР","13.11.2019"]
["ВС",null,"сеть водоснабжения","сеть","с Усть-Серта / с Усть-Серта / _","концессионное соглашение","соглашение","2019/ЧМР","13.11.2019"]
["ВС",null,"сеть водоснабжения","сеть","с Усть-Чебула / с Усть-Чебула / _","концессионное соглашение","соглашение","2019/ЧМР","13.11.2019"]
["ВС",null,"сеть водоснабжения","сеть","с Чумай / с Чумай / _","концессионное соглашение","соглашение","2019/ЧМР","13.11.2019"]
["ВС",null,"скважина №13","НС","п Акация / ул.Мира / 23","концессионное соглашение","соглашение","№7/ЯМО","28.09.2021"]
["ВС",null,"скважина №13","НС","пгт Яшкино / ул.Дружбы народов / 13а","концессионное соглашение","соглашение","№7/ЯМО","28.09.2021"]
["ВС",null,"скважина №14","НС","п Акация / ул.Мира / 25","концессионное соглашение","соглашение","№7/ЯМО","28.09.2021"]
["ВС",null,"скважина №14","НС","пгт Яшкино / ул.Энтузиастов / 26а","концессионное соглашение","соглашение","№7/ЯМО","28.09.2021"]
["ВС",null,"скважина №2","НС","д Михайловка / ул Молодежная / 1\"а\"","концессионное соглашение","соглашение","2019/ЧМР","13.11.2019"]
["ВС",null,"скважина №2","НС","п Ленинский / ул.Юбилейная / 2а","концессионное соглашение","соглашение","№7/ЯМО","28.09.2021"]
["ВС",null,"скважина №2","НС","п Ленинский / ул.Гагарина / 2а","концессионное соглашение","соглашение","№7/ЯМО","28.09.2021"]
["ВС",null,"скважина №2","НС","пгт Яшкино / ул.Рабочая / 14б","концессионное соглашение","соглашение","№7/ЯМО","28.09.202"]
["ВС",null,"скважина №2","НС","с Пача / ул.Ленина / 2г","концессионное соглашение","соглашение","№7/ЯМО","28.09.2021"]
["ВС",null,"скважина №3","НС","д Зырянка / ул.Центральная / 14а","концессионное соглашение","соглашение","№7/ЯМО","28.09.2021"]
["ВС",null,"скважина №6 д.Власково","НС","д Власково / ул.Нагорная / 11а","концессионное соглашение","соглашение","№7/ЯМО","28.09.2021"]
["ВС",null,"скважина №7 д.Власково","НС","д Власково / ул.Центральная / 2а","концессионное соглашение","соглашение","№7/ЯМО","28.09.2021"]
["ВС",null,"ст. Барзас","НС","г Березовский / ул. Станция Барзас / нет","аренда","договор","б/н","20.06.2002"]
["ВС",null,"станция повышения давления","НС","пгт Верх-Чебула / ул Ленина / 160а","концессионное соглашение","соглашение","2019/ЧМР","13.11.2019"]
["ВО",null,"ГНС","КНС","г Кемерово / ул. Лесокомбинатовская / югозападнее дома №36","аренда","договор","6-14-14","01.01.2014"]
["ВО",null,"ГНС","КНС","г Ленинск-Кузнецкий / ул. Широкая / 33","концессионное соглашение","соглашение","1/Л-К","14.11.2019"]
["ВО",null,"ГНС","КНС","г Полысаево / ул. Свердлова / 19а","концессионное соглашение","соглашение","3","14.11.2019"]
["ВО",null,"ГОС","ОС","г Березовский / ул. На площадке Очистные сооружения / б/н","аренда","договор","без номера","20.06.2002"]
["ВО",null,"КНС","КНС","г Полысаево / ул. Молодогвардейцев / 32 стр.1","концессионное соглашение","соглашение","3","14.11.2019"]
["ВО",null,"КНС \"ГАИ\"","КНС","г Ленинск-Кузнецкий / ул. Топкинская / 2\"б\"","концессионное соглашение","соглашение","1/Л-К","14.11.2019"]
["ВО",null,"КНС \"Зелёный остров\"","КНС","г Кемерово / Зелёный остров, ул. Хрустальная / 72","безвозмездное пользование","договор","б/н","27.10.2010"]
["ВО",null,"КНС \"КСК\"","КНС","г Ленинск-Кузнецкий / ул. Тверская / 70","концессионное соглашение","соглашение","1/Л-К","14.11.2019"]
["ВО",null,"КНС (Мартемьянова)","КНС","г Кемерово / ул. Мартемьянова / б/н","концессионное соглашение","договор","2","28.12.2018"]
["ВО",null,"КНС (на территории НПО \"Прогресс\")","КНС","г Кемерово / территория НПО \"Прогресс\" / б/н","концессионное соглашение","договор","2","28.12.2018"]
["ВО",null,"КНС (п. Комиссарово)","КНС","г Кемерово / п. Комиссарово / б/н","концессионное соглашение","договор","2","28.12.2018"]
["ВО",null,"КНС (ул. Волгоградская, 44) (ИТК-40)","КНС с сетями","г Кемерово / Ленинский р-он, ул. Волгоградская / 44","концессионное соглашение","соглашение","2","28.12.2018"]
["ВО",null,"КНС (ул. Кедровская) [нет]","КНС","г Кемерово / ул. Таёжная / №10","концессионное соглашение","договор","2","28.12.2018"]
["ВО",null,"КНС 1","КНС","г Кемерово / пр-т Советский / №70","концессионное соглашение","договор","2","28.12.2018"]
["ВО",null,"КНС 1 \"Лесная поляна\"","КНС","г Кемерово / город-спутник \"Лесная поляна\" / б/н","концессионное соглашение","соглашение","2","28.12.2018"]
["ВО",null,"КНС 1 А \"Лесная поляна\"","КНС","г Кемерово / город-спутник \"Лесная поляна\" / б/н","концессионное соглашение","соглашение","2","28.12.2018"]
["ВО",null,"КНС 1 Б \"Лесная поляна\"","КНС","г Кемерово / город-спутник \"Лесная поляна\" / б/н","концессионное соглашение","соглашение","2","28.12.2018"]
["ВО",null,"КНС 13 квартала","КНС","г Полысаево / На северо-востоке в 218 метрах от угла дома №30 по ул. Молодогвардейцев / б/н","концессионное соглашение","соглашение","3","14.11.2019"]
["ВО",null,"КНС 2 (Рудник)","КНС","г Кемерово / ул. Узкоколейная / №1 А","концессионное соглашение","договор","2","28.12.2018"]
["ВО",null,"КНС 2 (Ягуновка)","КНС","г Кемерово / п. Комиссарово, ул. Центральная / б/н","концессионное соглашение","договор","2","28.12.2018"]
["ВО",null,"КНС 2/6","КНС","г Кемерово / ул. 3-я Заречная / №54","аренда","договор","6-14-14","01.01.2014"]
["ВО",null,"КНС 3 (Рудник)","КНС","г Кемерово / ул. О. Кошевого / б/н","концессионное соглашение","договор","2","28.12.2018"]
["ВО",null,"КНС 3 (Ягуновка), законсервирована","КНС","г Кемерово / п. Пионер, ул. Ирбитская / б/н","концессионное соглашение","договор","2","28.12.2018"]
["ВО",null,"КНС 4 (Рудник)","КНС","г Кемерово / ул. Ногинская / № 10 А","концессионное соглашение","договор","2","28.12.2018"]
["ВО",null,"КНС №1","КНС","пгт Верх-Чебула / ул. Восточная / б/н","концессионное соглашение","соглашение","2019/ЧМР","13.11.2019"]
["ВО",null,"КНС №1","КНС","г Ленинск-Кузнецкий / ул. Пушкина / 2\"в\"","концессионное соглашение","соглашение","1/Л-К","14.11.2019"]
["ВО",null,"КНС №2","КНС","пгт Верх-Чебула / ул. Октябрьская / б/н","концессионное соглашение","соглашение","2019/ЧМР","13.11.2019"]
["ВО",null,"КНС №2              кв. Профсоюзный","КНС","г Ленинск-Кузнецкий / ул. Пирогова / 9\"6\"","концессионное соглашение","соглашение","1/Л-К","14.11.2019"]
["ВО",null,"КНС №3","КНС","г Ленинск-Кузнецкий / ул. Чекалина / 9\"б\"","концессионное соглашение","соглашение","1/Л-К","14.11.2019"]
["ВО",null,"КНС №5","КНС","г Ленинск-Кузнецкий / ул. Абая / 3\"а\"","концессионное соглашение","соглашение","1/Л-К","14.11.2019"]
["ВО",null,"КНС №6","КНС","г Ленинск-Кузнецкий / ул. Суворова / 270 \"б\"","концессионное соглашение","соглашение","1/Л-К","14.11.2019"]
["ВО",null,"КНС №7","КНС","г Ленинск-Кузнецкий / ул. Вокзальная / 28\"б\"","концессионное соглашение","соглашение","1/Л-К","14.11.2019"]
["ВО",null,"КНС ТЦ \"Спутник\"","КНС","г Полысаево / ул. Крупской / б/н","концессионное соглашение","соглашение","3","14.11.2019"]
["ВО",null,"КНС квартала \"Днепровский\"","КНС","г Ленинск-Кузнецкий / На северо-запад в 58 метрах от не жилого здания по ул. Юргинская / 4/3","концессионное соглашение","соглашение","1/Л-К","14.11.2019"]
["ВО",null,"КНС квартала \"Кемеровский\"","КНС","г Ленинск-Кузнецкий / ул. Абрамцева / б/н","концессионное соглашение","соглашение","1/Л-К","14.11.2019"]
["ВО",null,"КНС по ул.Васильева","КНС","г Ленинск-Кузнецкий / ул. Васильева / 12","концессионное соглашение","соглашение","1/Л-К","14.11.2019"]
["ВО",null,"КНС с.Колмогорово","КНС","с Колмогорово / - / -","концессионное соглашение","соглашение","№7/ЯМО","28.09.2021"]
["ВО",null,"КНС ул. 65 лет Кузбассу","КНС","г Полысаево / На площадке, ограниченной улицами: ул. Луначарского-ул. Копровая; ул. Бажова-ул. Крупской / б/н","концессионное соглашение","соглашение","3","14.11.2019"]
["ВО",null,"КНС ул. Восточная","КНС","пгт Яя / ул. Восточная / -","аренда","договор","6-11-23","01.08.2023"]
["ВО",null,"КНС ул. Ленинградская","КНС","пгт Яя / ул. Ленинградская / -","аренда","договор","6-11-23","01.08.2023"]
["ВО",null,"КНС ул. Победы","КНС","г Полысаево / ул. Победы / б/н","концессионное соглашение","соглашение","3","14.11.2019"]
["ВО",null,"КНС ул. Чехова","КНС","пгт Яя / ул. Чехова / -","аренда","договор","6-11-23","01.08.2023"]
["ВО",null,"КНС ул. Школьная","КНС","пгт Яя / ул. Школьная / -","аренда","договор","6-11-23","01.08.2023"]
["ВО",null,"КНС ш. Кирова","КНС","г Ленинск-Кузнецкий / ул. Кирсанова / 3\"в\"","концессионное соглашение","соглашение","1/Л-К","14.11.2019"]
["ВО",null,"КНС шахты им. Ярославского","КНС","г Ленинск-Кузнецкий / ул. Нефтебазы / 1\"б\"","концессионное соглашение","соглашение","1/Л-К","14.11.2019"]
["ВО",null,"КНС-1","КНС","пгт Яшкино / ул.Ворошилова / 3\"б\"","концессионное соглашение","соглашение","№7/ЯМО","28.09.2021"]
["ВО",null,"КНС-1 ж.р. Лесная поляна","КНС","г Кемерово / город Кемерово, ж.р. Лесная поляна, б-р Осенний / здание КНС 1","собственность","договор","КНС-1-НКЛ/2020","15.05.2020"]
["ВО",null,"КНС-1 хоз-быт Кедровка","КНС","г Кемерово / ж.р. Кедровка, ул. Подгорная / б/н","концессионное соглашение","соглашение","2","28.12.2018"]
["ВО",null,"КНС-2","КНС","пгт Яшкино / В 500м на северо-восток от жилого д.44 по ул.Ленинская / -","концессионное соглашение","соглашение","№7/ЯМО","28.09.2021"]
["ВО",null,"КНС-2 ПНИ ж.р. Кедровка","КНС","г Кемерово / ж.р. Кедровка ул. Уньга / б/н","концессионное соглашение","соглашение","2","28.12.2018"]
["ВО",null,"КНС-2 ж.р. Лесная поляна","КНС","г Кемерово / город Кемерово, ж.р. Лесная поляна, б-р Осенний / здание КНС 2","собственность","договор","КНС-2/2020","15.05.2020"]
["ВО",null,"КНС-3","КНС","пгт Яшкино / ул.Сосновая / 2\"а\"","концессионное соглашение","соглашение","№7/ЯМО","28.09.2021"]
["ВО",null,"КНС-3 ж.р. Промышленновский","КНС","г Кемерово / ж.р. Промышленновский, ул. Промшоссе / в р-не доиа №66","концессионное соглашение","соглашение","2","28.12.2018"]
["ВО",null,"КНС-4","КНС","пгт Яшкино / в 300м на северо-восток от жилого дома 13 по ул.Полевая / -","концессионное соглашение","соглашение","№7/ЯМО","28.09.2021"]
["ВО",null,"КНС-4 (ОСК-1)","КНС","г Кемерово / территория ОСК-1 / б/н","аренда","договор","6-14-14","01.01.2014"]
["ВО",null,"КНС-4 ул. Беломорская (ж.р. Промышленновский)","КНС","г Кемерово / ж.р. Промышленновский, ул. Беломорская / б/н","концессионное соглашение","соглашение","2","28.12.2018"]
["ВО",null,"Камера гашения по ул. Волгоградская, 45 канализационного коллектора Ду-1000мм [камера гашения по ул. Волгоградская ,45]","сеть","г Кемерово / ул. Волгоградская / 45","концессионное соглашение","соглашение","2","28.12.2018"]
["ВО",null,"Канализационная насосная станция №1","КНС","г Березовский / пр-кт. Ленина / 28","аренда","договор","без номера","20.06.2002"]
["ВО",null,"Канализационная насосная станция №2","КНС","г Березовский / ул. Промышленная / 9","аренда","договор","без номера","20.06.2002"]
["ВО",null,"Канализационная насосная станция №3","КНС","г Березовский / б-р. Молодежный / 11","аренда","договор","без номера","20.06.2002"]
["ВО",null,"Канализационная насосная станция №4","КНС","г Березовский / ул. Энтузиастов / б/н","аренда","договор","без номера","20.06.2002"]
["ВО",null,"Канализационная насосная станция №6","КНС","г Березовский / ул. Ленина / 9а","аренда","договор","без номера","20.06.2002"]
["ВО",null,"Канализационная насосная станция №7","КНС","г Березовский / ул. Школьная / б/н","аренда","договор","без номера","20.06.2002"]
["ВО",null,"Канализационная насосная станция №8","КНС","г Березовский / ул. Фрунзе / б/н","аренда","договор","без номера","20.06.2002"]
["ВО",null,"Канализационный колодец с перекачным насосом","КНС","г Березовский / ул. Строителей / 6","аренда","договор","без номера","20.06.2002"]
["ВО",null,"ОСК-1 (Левобережные)","ОС","г Кемерово / заводский р-он, северовосток левобережной части / б/н","аренда","договор","6-14-14","01.01.2014"]
["ВО",null,"ОСК-1 (Левобережные)","сеть","г Кемерово / заводский р-он, северовосток левобережной части / б/н","концессионное соглашение","соглашение","2","28.12.2018"]
["ВО",null,"ОСК-2 (Правобережные)","ОС","г Кемерово / Кировский р-он, ул. 40 лет Октября / б/н","концессионное соглашение","договор","2","28.12.2018"]
["ВО",null,"ОСК-2 (Правобережные)","сеть","г Кемерово / Кировский р-он, ул. 40 лет Октября / б/н","концессионное соглашение","соглашение","2","28.12.2018"]
["ВО",null,"ОСК-3 (Кедровка)","ОС","г Кемерово / ж.р. Кедровка, ул. Чесноковская / б/н","концессионное соглашение","договор","2","28.12.2018"]
["ВО",null,"ОСК-3 (Кедровка)","сеть","г Кемерово / ж.р. Кедровка, ул. Чесноковская / б/н","концессионное соглашение","соглашение","2","28.12.2018"]
["ВО",null,"Очистные сооружения","ОС","пгт Верх-Чебула / ул. Восточная / б/н","концессионное соглашение","соглашение","2019/ЧМР","13.11.2019"]
["ВО",null,"Очистные сооружения","ОС","г Полысаево / ул. Садовая / 1","концессионное соглашение","соглашение","3","14.11.2019"]
["ВО",null,"Очистные сооружения (КОС)","ОС","пгт Яя / - / -","аренда","договор","6-11-23","01.08.2023"]
["ВО",null,"Очистные сооружения города","ОС","г Ленинск-Кузнецкий / ул. Широкая / 41","концессионное соглашение","соглашение","1/Л-К","14.11.2019"]
["ВО",null,"Очистные сооружения п. Никитинский","ОС","г Ленинск-Кузнецкий / ул.Никитинская / 2 \"а\"","концессионное соглашение","соглашение","1/Л-К","14.11.2019"]
["ВО",null,"ПОС п.ш. \"Березовская\"","ОС","г Березовский / ул. Ленина / б/н","аренда","договор","без номера","20.06.2002"]
["ВО",null,"ПОС п.ш. \"Южная\"","ОС","г Березовский / ул. А.Лужбина / б/н","аренда","договор","без номера","20.06.2002"]
["ВО",null,"Сети водоотведения","сеть","пгт Верх-Чебула / пгт Верх-Чебула / б/н","концессионное соглашение","соглашение","2019/ЧМР","13.11.2019"]
["ВО",null,"Сети водоотведения","сеть","г Ленинск-Кузнецкий / г. Ленинск-Кузнецкий / б/н","концессионное соглашение","соглашение","1/Л-К","14.11.2019"]
["ВО",null,"Сети водоотведения","сеть","г Полысаево / г. Полысаево / б/н","концессионное соглашение","соглашение","3","14.11.2019"]
["ВО",null,"Сети водоотведения (транспортировка)","сеть","г Полысаево / г. Полысаево / б/н","концессионное соглашение","соглашение","3","14.11.2019"]
["ВО",null,"Сети канализации д.Ботьево","сеть","д Ботьево / - / -","концессионное соглашение","соглашение","№7/ЯМО","28.09.2021"]
["ВО",null,"Сети канализации п. Акация","сеть","п Акация / - / -","концессионное соглашение","соглашение","№7/ЯМО","28.09.2021"]
["ВО",null,"Сети канализации п. Дубровка","сеть","п Дубровка / - / -","концессионное соглашение","соглашение","№7/ЯМО","28.09.2021"]
["ВО",null,"Сети канализации п. Яшкинский","сеть","п Яшкинский / - / -","концессионное соглашение","соглашение","№7/ЯМО","28.09.2021"]
["ВО",null,"Сети канализации п.Ленинский","сеть","п Ленинский / - / -","концессионное соглашение","соглашение","№7/ЯМО","28.09.2021"]
["ВО",null,"Сети канализации п.ст.Литвиново","сеть","п.ст Литвиново / - / -","концессионное соглашение","соглашение","№7/ЯМО","28.09.2021"]
["ВО",null,"Сети канализации пгт. Яя","сеть","пгт Яя / - / -","аренда","договор","6-11-23","01.08.2023"]
["ВО",null,"Сети канализации пгт.Яшкино","сеть","пгт Яшкино / - / -","концессионное соглашение","соглашение","№7/ЯМО","28.09.2021"]
["ВО",null,"Сети канализации с. Пашково","сеть","с Пашково / - / -","концессионное соглашение","соглашение","№7/ЯМО","28.09.2021"]
["ВО",null,"Сети канализации с.Колмогорово","сеть","с Колмогорово / - / -","концессионное соглашение","соглашение","№7/ЯМО","28.09.2021"]
["ВО",null,"Сети канализации с.Пача","сеть","с Пача / - / -","концессионное соглашение","соглашение","№7/ЯМО","28.09.2021"]
["ВО",null,"Сети канализации с.Поломошное","сеть","с Поломошное / - / -","концессионное соглашение","соглашение","№7/ЯМО","28.09.2021"]
["ВО",null,"кнс №4","КНС","г Ленинск-Кузнецкий / ул. Шилина / 9\"б\"","концессионное соглашение","соглашение","1/Л-К","14.11.2019"]
["ВО",null,"п. Октябрьский","сеть","г Березовский / г. Березовский / б/н","аренда","договор","без номера","20.06.2002"]
["ВО",null,"п.ш. \"Березовская\"","сеть","г Березовский / г. Березовский / б/н","аренда","договор","без номера","20.06.2002"]
["ВО",null,"п.ш. \"Южная\"","сеть","г Березовский / г. Березовский / б/н","аренда","договор","без номера","20.06.2002"]

{"sheet":"DICTIONARIES","index":23,"n_rows":96,"n_cols":3,"rows_kept":96,"cut":false,"hidden":true,"merged":[]}
["OPF_VALUE","SUBSIDIARY_LIST","DPR_LIST"]
["1 10 51 | Полные товарищества","Кемеровская ГРЭС"]
["1 10 64 | Товарищества на вере (коммандитные товарищества)","Кемеровская ТЭЦ","1-го водоподъёма г. Новокузнецк"]
["1 22 47 | Публичные акционерные общества","Филиал \"Новосибирский\"","1-го водоподъёма г. Прокопьевск"]
["1 22 67 | Непубличные акционерные общества",null,"Оказание услуг на территории: Беловский муниципальный район (ОКТМО: 32601000) - эксплуатация имущества по договору аренды"]
["1 23 00 | Общества с ограниченной ответственностью",null,"Оказание услуг на территории: Беловский муниципальный район (ОКТМО: 32601000) - эксплуатация имущества по концессионному соглашению"]
["1 30 00 | Хозяйственные партнерства",null,"Оказание услуг на территории: Кемеровский муниципальный округ (ОКТМО: 32507000) - д Сухово, п Металлплощадка"]
["1 41 53 | Сельскохозяйственные артели (колхозы)",null,"Оказание услуг на территории: Крапивинский муниципальный округ (ОКТМО: 32510000) - за исключением пгт Крапивинский, пгт Зеленогорский, с Борисово"]
["1 41 54 | Рыболовецкие артели (колхозы)",null,"Оказание услуг на территории: Крапивинский муниципальный округ (ОКТМО: 32510000) - пгт Крапивинский, пгт Зеленогорский, с Борисово"]
["1 41 55 | Кооперативные хозяйства (коопхозы)",null,"Оказание услуг на территории: Крапивинский муниципальный район (ОКТМО: 32610000)"]
["1 42 00 | Производственные кооперативы (кроме сельскохозяйственных производственных кооперативов)",null,"Оказание услуг на территории: Крапивинский муниципальный район (ОКТМО: 32610000) - пгт Крапивинский, пгт Зеленогорский, с Борисово"]
["1 53 00 | Крестьянские (фермерские) хозяйства",null,"Оказание услуг на территории: Крапивинский муниципальный район (ОКТМО: 32610000) - пгт Крапивинский, пгт Зеленогорский, с Борисово (за исключением ул. Санаторная, № 1, № 3, № 9, ГАУ КО \"Санаторий Борисовский\", ул. Юбилейная, № 16, ул. Кирова, № 79, ул. Геологов, № 1а)"]
["1 90 00 | Прочие юридические лица, являющиеся коммерческими организациями",null,"Оказание услуг на территории: Крапивинский муниципальный район (ОКТМО: 32610000) - с Борисово (ул. Санаторная, № 1, № 3, № 9, ГАУ КО \"Санаторий Борисовский\", ул. Юбилейная, № 16, ул. Кирова, № 79, ул. Геологов, № 1а)"]
["2 01 01 | Гаражные и гаражно-строительные кооперативы",null,"Оказание услуг на территории: Мариинский муниципальный район (ОКТМО: 32616000) - имущество, переданное по концессионному соглашению"]
["2 01 02 | Жилищные или жилищно-строительные кооперативы",null,"Оказание услуг на территории: Прокопьевский муниципальный округ (ОКТМО: 32522000) - п Большая Талда"]
["2 01 03 | Жилищные накопительные кооперативы",null,"Оказание услуг на территории: Прокопьевский муниципальный округ (ОКТМО: 32522000) - п Калачево"]
["2 01 04 | Кредитные потребительские кооперативы",null,"Оказание услуг на территории: Прокопьевский муниципальный округ (ОКТМО: 32522000) - п Ясная Поляна"]
["2 01 05 | Кредитные потребительские кооперативы граждан",null,"Оказание услуг на территории: Прокопьевский муниципальный округ (ОКТМО: 32522000) - пгт Краснобродский"]
["2 01 06 | Кредитные кооперативы второго уровня",null,"Оказание услуг на территории: Прокопьевский муниципальный округ (ОКТМО: 32522000) - с Большая Талда"]
["2 01 07 | Потребительские общества",null,"Оказание услуг на территории: Прокопьевский муниципальный район (ОКТМО: 32622000) - Большеталдинское, Калачевское, Сафоновское, Терентьевское (с Большая Талда, с Малая Талда, с Тихоновка, с Терентьевское, с Серп и Молот)"]
["2 01 08 | Общества взаимного страхования",null,"Оказание услуг на территории: Прокопьевский муниципальный район (ОКТМО: 32622000) - Бурлаковское, Каменно-Ключевское, Кузбассское, Михайловское, Терентьевское (п Кольчигиз, п Чапаевский, п Ускатский), Трудармейское"]
["2 01 09 | Сельскохозяйственные потребительские перерабатывающие кооперативы",null,"Оказание услуг на территории: Прокопьевский муниципальный район (ОКТМО: 32622000) - сельское поселение Яснополянское"]
["2 01 10 | Сельскохозяйственные потребительские сбытовые (торговые) кооперативы",null,"Оказание услуг на территории: Промышленновский муниципальный район (ОКТМО: 32625000) - пгт Промышленная"]
["2 01 11 | Сельскохозяйственные потребительские обслуживающие кооперативы",null,"Оказание услуг на территории: Топкинский муниципальный округ (ОКТМО: 32531000) - ГЛД Топкинская, квартал 43"]
["2 01 12 | Сельскохозяйственные потребительские снабженческие кооперативы",null,"Оказание услуг на территории: Топкинский муниципальный округ (ОКТМО: 32531000) - г Топки"]
["2 01 15 | Сельскохозяйственные потребительские животноводческие кооперативы",null,"Оказание услуг на территории: Топкинский муниципальный округ (ОКТМО: 32531000) - населенные пункты, за исключением ГЛД Топкинская"]
["2 01 16 | Сельскохозяйственные потребительские растениеводческие кооперативы",null,"Оказание услуг на территории: Топкинский муниципальный район (ОКТМО: 32631000) - Топкинская Роща"]
["2 01 21 | Фонды проката",null,"Оказание услуг на территории: Топкинский муниципальный район (ОКТМО: 32631000) - сельские поселения"]
["2 02 01 | Политические партии",null,"Оказание услуг на территории: Яшкинский муниципальный округ (ОКТМО: 32546000) - имущество, переданное по договору аренды"]
["2 02 02 | Профсоюзные организации",null,"Оказание услуг на территории: Яшкинский муниципальный округ (ОКТМО: 32546000) - имущество, переданное по концессионному соглашению"]
["2 02 10 | Общественные движения",null,"Оказание услуг на территории: город Березовский (ОКТМО: 32710000) - г Березовский"]
["2 02 11 | Органы общественной самодеятельности",null,"Оказание услуг на территории: город Березовский (ОКТМО: 32710000) - г Ленинск-Кузнецкий, г Полысаево"]
["2 02 17 | Территориальные общественные самоуправления",null,"Оказание услуг на территории: город Кемерово (ОКТМО: 32701000) - г Кемерово"]
["2 06 01 | Ассоциации (союзы) экономического взаимодействия субъектов Российской Федерации",null,"Оказание услуг на территории: город Кемерово (ОКТМО: 32701000) - жилые районы Кедровка, Промышленновский"]
["2 06 03 | Советы муниципальных образований субъектов Российской Федерации",null,"Оказание услуг на территории: город Ленинск-Кузнецкий (ОКТМО: 32719000) - г Ленинск-Кузнецкий"]
["2 06 04 | Союзы (ассоциации) кредитных кооперативов",null,"Оказание услуг на территории: город Ленинск-Кузнецкий (ОКТМО: 32719000) - г Ленинск-Кузнецкий, г Полысаево"]
["2 06 05 | Союзы (ассоциации) кооперативов",null,"Оказание услуг на территории: город Новокузнецк (ОКТМО: 32731000) - посёлок Абагур-Лесной"]
["2 06 06 | Союзы (ассоциации) общественных объединений",null,"Оказание услуг на территории: город Полысаево (ОКТМО: 32732000) - г Ленинск-Кузнецкий, г Полысаево"]
["2 06 07 | Союзы (ассоциации) общин малочисленных народов",null,"Оказание услуг на территории: город Полысаево (ОКТМО: 32732000) - г Полысаево"]
["2 06 08 | Союзы потребительских обществ",null,"Оказание услуг на территории: город Юрга (ОКТМО: 32749000) - питьевая вода для АО \"ГУ ЖКХ\""]
["2 06 09 | Адвокатские палаты",null,"питьевая вода 3-го водоподъёма ЭЦ"]
["2 06 10 | Нотариальные палаты",null,"питьевая вода цеха ВС и ВО"]
["2 06 11 | Торгово-промышленные палаты",null,"питьевая вода через систему водоснабжения цеха ВС и ВО"]
["2 06 12 | Объединения работодателей",null,"техническая вода 2-го водоподъема ЭЦ"]
["2 06 13 | Объединения фермерских хозяйств",null,"техническая вода цеха ВС и ВО"]
["2 06 14 | Некоммерческие партнерства",null,"техническая осветленная вода цеха ВС и ВО"]
["2 06 15 | Адвокатские бюро",null,"Оказание услуг на территории: Беловский муниципальный район (ОКТМО: 32601000) - имущество, переданное по договору аренды"]
["2 06 16 | Коллегии адвокатов",null,"Оказание услуг на территории: Беловский муниципальный район (ОКТМО: 32601000) - имущество, переданное по концессионному соглашению"]
["2 06 19 | Саморегулируемые организации",null,"Оказание услуг на территории: Мариинский муниципальный район (ОКТМО: 32616000) - водоотведение через очистные сооружения, находящихся по адресу: г Мариинск, ул. Дзержинского, 9"]
["2 06 20 | Объединения (ассоциации и союзы) благотворительных организаций",null,"Оказание услуг на территории: Мариинский муниципальный район (ОКТМО: 32616000) - г Мариинск, ул. Дзержинского, 9"]
["2 07 02 | Садоводческие или огороднические некоммерческие товарищества",null,"Оказание услуг на территории: Мариинский муниципальный район (ОКТМО: 32616000) - за исключением водоотведения через очистные сооружения, находящихся по адресу: г Мариинск, ул. Дзержинского, 9"]
["2 07 16 | Товарищества собственников жилья",null,"Оказание услуг на территории: Новокузнецкий муниципальный район (ОКТМО: 32619000) - п Степной"]
["2 11 00 | Казачьи общества, внесенные в государственный реестр казачьих обществ в Российской Федерации",null,"Оказание услуг на территории: Прокопьевский муниципальный район (ОКТМО: 32622000) - Большеталдинское, Калачевское, Сафоновское, Терентьевское (с Большая Талда, с Малая Талда, с Тихоновка, с Терентьевское)"]
["2 12 00 | Общины коренных малочисленных народов Российской Федерации",null,"Оказание услуг на территории: Прокопьевский муниципальный район (ОКТМО: 32622000) - Бурлаковское, Каменно-Ключевское, Кузбассское, Михайловское, Терентьевское (п Кольчигиз, п Чапаевский, п Ускатский)"]
["3 00 01 | Представительства юридических лиц",null,"Оказание услуг на территории: Топкинский муниципальный округ (ОКТМО: 32531000) - населенные пункты, за исключением ГЛД Топкинская, квартал 43"]
["3 00 02 | Филиалы юридических лиц",null,"Оказание услуг на территории: Яшкинский муниципальный район (ОКТМО: 32646000) - пгт Яшкино"]
["3 00 03 | Обособленные подразделения юридических лиц",null,"Оказание услуг на территории: Яшкинский муниципальный район (ОКТМО: 32646000) - сельские поселения"]
["3 00 04 | Структурные подразделения обособленных подразделений юридических лиц",null,"Оказание услуг на территории: город Калтан (ОКТМО: 32715000) - г Калтан"]
["3 00 05 | Паевые инвестиционные фонды",null,"Оказание услуг на территории: город Кемерово (ОКТМО: 32701000) - водоотведение сточных вод, отводимых потребителями в камеру гашения по ул. Волгоградской, 45 канализационного коллектора ДУ-1000 мм"]
["3 00 06 | Простые товарищества",null,"Оказание услуг на территории: город Кемерово (ОКТМО: 32701000) - г Кемерово, кроме ул. Волгоградская"]
["3 00 08 | Районные суды, городские суды, межрайонные суды (районные суды)",null,"Оказание услуг на территории: город Кемерово (ОКТМО: 32701000) - г Кемерово, ул. Волгоградская"]
["4 00 01 | Межправительственные международные организации",null,"Оказание услуг на территории: город Новокузнецк (ОКТМО: 32731000) - водоотведение промышленно-ливневых сточных вод цеха ВС и ВО"]
["4 00 02 | Неправительственные международные организации",null,"Оказание услуг на территории: город Осинники (ОКТМО: 32734000) - г Осинники"]
["5 01 01 | Главы крестьянских (фермерских) хозяйств",null,"Оказание услуг на территории: город Полысаево (ОКТМО: 32732000) - транспортировка"]
["5 01 02 | Индивидуальные предприниматели",null,"Оказание услуг на территории: город Юрга (ОКТМО: 32749000) - водоотведение для АО \"ГУ ЖКХ\""]
["5 02 01 | Адвокаты, учредившие адвокатский кабинет",null,"водоотведение промышленно-ливневых сточных сточных вод выпусков № 2, 3 ЭЦ"]
["5 02 02 | Нотариусы, занимающиеся частной практикой",null,"водоотведение сточных вод через систему водоотведения ЭЦ"]
["6 51 41 | Федеральные казенные предприятия",null,"водоотведение сточных вод через систему водоотведения цеха ВС и ВО"]
["6 51 42 | Казенные предприятия субъектов Российской Федерации"]
["6 51 43 | Муниципальные казенные предприятия"]
["6 52 41 | Федеральные государственные унитарные предприятия"]
["6 52 42 | Государственные унитарные предприятия субъектов Российской Федерации"]
["6 52 43 | Муниципальные унитарные предприятия"]
["7 04 01 | Благотворительные фонды"]
["7 04 02 | Негосударственные пенсионные фонды"]
["7 04 03 | Общественные фонды"]
["7 04 04 | Экологические фонды"]
["7 14 00 | Автономные некоммерческие организации"]
["7 15 00 | Религиозные организации"]
["7 16 01 | Государственные корпорации"]
["7 16 02 | Государственные компании"]
["7 16 10 | Отделения иностранных некоммерческих неправительственных организаций"]
["7 51 01 | Федеральные государственные автономные учреждения"]
["7 51 03 | Федеральные государственные бюджетные учреждения"]
["7 51 04 | Федеральные государственные казенные учреждения"]
["7 51 05 | Государственные внебюджетные фонды Российской Федерации"]
["7 52 01 | Государственные автономные учреждения субъектов Российской Федерации"]
["7 52 03 | Государственные бюджетные учреждения субъектов Российской Федерации"]
["7 52 04 | Государственные казенные учреждения субъектов Российской Федерации"]
["7 53 00 | Государственные академии наук"]
["7 54 01 | Муниципальные автономные учреждения"]
["7 54 03 | Муниципальные бюджетные учреждения"]
["7 54 04 | Муниципальные казенные учреждения"]
["7 55 00 | Частные учреждения"]
["7 55 02 | Благотворительные учреждения"]
["7 55 05 | Общественные учреждения"]

{"sheet":"modfrmDPR","index":24,"n_rows":0,"n_cols":0,"rows_kept":0,"cut":false,"hidden":true,"merged":[]}

{"sheet":"modfrmSelectTemplate","index":25,"n_rows":0,"n_cols":0,"rows_kept":0,"cut":false,"hidden":true,"merged":[]}

{"sheet":"REESTR_MO","index":26,"n_rows":240,"n_cols":5,"rows_kept":240,"cut":false,"hidden":true,"merged":[]}
["MR_NAME","MO_NAME","OKTMO_NAME","MR_LIST"]
["Беловский муниципальный округ","Беловский муниципальный округ","32501000","Беловский муниципальный округ","MO_LIST_1"]
["Беловский муниципальный район","Беловский муниципальный район","32601000","Беловский муниципальный район","MO_LIST_2"]
["Беловский муниципальный район","Сельское поселение Беловского муниципального района/Бековское","32601402","Гурьевский муниципальный округ","MO_LIST_3"]
["Беловский муниципальный район","Сельское поселение Беловского муниципального района/Евтинское","32601412","Гурьевский муниципальный район","MO_LIST_4"]
["Беловский муниципальный район","Сельское поселение Беловского муниципального района/Менчерепское","32601432","Ижморский муниципальный округ","MO_LIST_5"]
["Беловский муниципальный район","Сельское поселение Беловского муниципального района/Моховское","32601436","Ижморский муниципальный район","MO_LIST_6"]
["Беловский муниципальный район","Сельское поселение Беловского муниципального района/Новобачатское","32601414","Кемеровский муниципальный округ","MO_LIST_7"]
["Беловский муниципальный район","Сельское поселение Беловского муниципального района/Пермяковское","32601444","Кемеровский муниципальный район","MO_LIST_8"]
["Беловский муниципальный район","Сельское поселение Беловского муниципального района/Старобачатское","32601451","Крапивинский муниципальный округ","MO_LIST_9"]
["Беловский муниципальный район","Сельское поселение Беловского муниципального района/Старопестеревское","32601452","Крапивинский муниципальный район","MO_LIST_10"]
["Гурьевский муниципальный округ","Гурьевский муниципальный округ","32502000","Ленинск-Кузнецкий муниципальный округ","MO_LIST_11"]
["Гурьевский муниципальный район","Городское поселение Гурьевского муниципального района/город Гурьевск","32602101","Ленинск-Кузнецкий муниципальный район","MO_LIST_12"]
["Гурьевский муниципальный район","Городское поселение Гурьевского муниципального района/город Салаир","32602104","Мариинский муниципальный округ","MO_LIST_13"]
["Гурьевский муниципальный район","Гурьевский муниципальный район","32602000","Мариинский муниципальный район","MO_LIST_14"]
["Гурьевский муниципальный район","Сельское поселение Гурьевского муниципального района/Горскинское","32602404","Новокузнецкий  муниципальный округ","MO_LIST_15"]
["Гурьевский муниципальный район","Сельское поселение Гурьевского муниципального района/Малосалаирское","32602420","Новокузнецкий муниципальный район","MO_LIST_16"]
["Гурьевский муниципальный район","Сельское поселение Гурьевского муниципального района/Новопестеревское","32602428","Прокопьевский муниципальный округ","MO_LIST_17"]
["Гурьевский муниципальный район","Сельское поселение Гурьевского муниципального района/Раздольное","32602430","Прокопьевский муниципальный район","MO_LIST_18"]
["Гурьевский муниципальный район","Сельское поселение Гурьевского муниципального района/Сосновское","32602435","Промышленновский муниципальный округ","MO_LIST_19"]
["Гурьевский муниципальный район","Сельское поселение Гурьевского муниципального района/Ур-Бедаревское","32602450","Промышленновский муниципальный район","MO_LIST_20"]
["Гурьевский муниципальный район","Сельское поселение Гурьевского муниципального района/Урское","32602455","Таштагольский муниципальный район","MO_LIST_21"]
["Ижморский муниципальный округ","Ижморский муниципальный округ","32504000","Тисульский муниципальный округ","MO_LIST_22"]
["Ижморский муниципальный район","Городское поселение Ижморского муниципального района/п.г.т. Ижморский","32604151","Тисульский муниципальный район","MO_LIST_23"]
["Ижморский муниципальный район","Ижморский муниципальный район","32604000","Топкинский муниципальный округ","MO_LIST_24"]
["Ижморский муниципальный район","Сельское поселение Ижморского муниципального района/Колыонское","32604416","Топкинский муниципальный район","MO_LIST_25"]
["Ижморский муниципальный район","Сельское поселение Ижморского муниципального района/Красноярское","32604420","Тяжинский муниципальный округ","MO_LIST_26"]
["Ижморский муниципальный район","Сельское поселение Ижморского муниципального района/Постниковское","32604424","Тяжинский муниципальный район","MO_LIST_27"]
["Ижморский муниципальный район","Сельское поселение Ижморского муниципального района/Святославское","32604428","Чебулинский муниципальный округ","MO_LIST_28"]
["Ижморский муниципальный район","Сельское поселение Ижморского муниципального района/Симбирское","32604432","Чебулинский муниципальный район","MO_LIST_29"]
["Ижморский муниципальный район","Сельское поселение Ижморского муниципального района/Троицкое","32604436","Юргинский муниципальный округ","MO_LIST_30"]
["Кемеровский муниципальный округ","Кемеровский муниципальный округ","32507000","Юргинский муниципальный район","MO_LIST_31"]
["Кемеровский муниципальный район","Кемеровский муниципальный район","32607000","Яйский муниципальный округ","MO_LIST_32"]
["Кемеровский муниципальный район","Сельское поселение Кемеровского муниципального района/Арсентьевское","32607404","Яйский муниципальный район","MO_LIST_33"]
["Кемеровский муниципальный район","Сельское поселение Кемеровского муниципального района/Береговое","32607408","Яшкинский муниципальный округ","MO_LIST_34"]
["Кемеровский муниципальный район","Сельское поселение Кемеровского муниципального района/Березовское","32607412","Яшкинский муниципальный район","MO_LIST_35"]
["Кемеровский муниципальный район","Сельское поселение Кемеровского муниципального района/Елыкаевское","32607424","город Анжеро-Судженск","MO_LIST_36"]
["Кемеровский муниципальный район","Сельское поселение Кемеровского муниципального района/Звездное","32607426","город Белово","MO_LIST_37"]
["Кемеровский муниципальный район","Сельское поселение Кемеровского муниципального района/Суховское","32607441","город Березовский","MO_LIST_38"]
["Кемеровский муниципальный район","Сельское поселение Кемеровского муниципального района/Щегловское","32607416","город Калтан","MO_LIST_39"]
["Кемеровский муниципальный район","Сельское поселение Кемеровского муниципального района/Ягуновское","32607444","город Кемерово","MO_LIST_40"]
["Кемеровский муниципальный район","Сельское поселение Кемеровского муниципального района/Ясногорское","32607428","город Киселевск","MO_LIST_41"]
["Крапивинский муниципальный округ","Крапивинский муниципальный округ","32510000","город Ленинск-Кузнецкий","MO_LIST_42"]
["Крапивинский муниципальный район","Городское поселение Крапивинского муниципального района/п.г.т. Зеленогорский","32610153","город Междуреченск","MO_LIST_43"]
["Крапивинский муниципальный район","Городское поселение Крапивинского муниципального района/п.г.т. Крапивинский","32610151","город Мыски","MO_LIST_44"]
["Крапивинский муниципальный район","Крапивинский муниципальный район","32610000","город Новокузнецк","MO_LIST_45"]
["Крапивинский муниципальный район","Сельское поселение Крапивинского муниципального района/Банновское","32610404","город Осинники","MO_LIST_46"]
["Крапивинский муниципальный район","Сельское поселение Крапивинского муниципального района/Барачатское","32610408","город Полысаево","MO_LIST_47"]
["Крапивинский муниципальный район","Сельское поселение Крапивинского муниципального района/Борисовское","32610412","город Прокопьевск","MO_LIST_48"]
["Крапивинский муниципальный район","Сельское поселение Крапивинского муниципального района/Зеленовское","32610416","город Тайга","MO_LIST_49"]
["Крапивинский муниципальный район","Сельское поселение Крапивинского муниципального района/Каменское","32610420","город Юрга","MO_LIST_50"]
["Крапивинский муниципальный район","Сельское поселение Крапивинского муниципального района/Крапивинское","32610424","поселок городского типа Краснобродский","MO_LIST_51"]
["Крапивинский муниципальный район","Сельское поселение Крапивинского муниципального района/Мельковское","32610428"]
["Крапивинский муниципальный район","Сельское поселение Крапивинского муниципального района/Тарадановское","32610436"]
["Крапивинский муниципальный район","Сельское поселение Крапивинского муниципального района/Шевелевское","32610446"]
["Ленинск-Кузнецкий муниципальный округ","Ленинск-Кузнецкий муниципальный округ","32513000"]
["Ленинск-Кузнецкий муниципальный район","Ленинск-Кузнецкий муниципальный район","32613000"]
["Ленинск-Кузнецкий муниципальный район","Сельское поселение Ленинск-Кузнецкого муниципального района/Горняцкое","32613412"]
["Ленинск-Кузнецкий муниципальный район","Сельское поселение Ленинск-Кузнецкого муниципального района/Демьяновское","32613416"]
["Ленинск-Кузнецкий муниципальный район","Сельское поселение Ленинск-Кузнецкого муниципального района/Драченинское","32613420"]
["Ленинск-Кузнецкий муниципальный район","Сельское поселение Ленинск-Кузнецкого муниципального района/Краснинское","32613432"]
["Ленинск-Кузнецкий муниципальный район","Сельское поселение Ленинск-Кузнецкого муниципального района/Подгорновское","32613448"]
["Ленинск-Кузнецкий муниципальный район","Сельское поселение Ленинск-Кузнецкого муниципального района/Чкаловское","32613452"]
["Ленинск-Кузнецкий муниципальный район","Сельское поселение Ленинск-Кузнецкого муниципального района/Чусовитинское","32613456"]
["Ленинск-Кузнецкий муниципальный район","Сельское поселение Ленинск-Кузнецкого муниципального района/Шабановское","32613460"]
["Мариинский муниципальный округ","Мариинский муниципальный округ","32516000"]
["Мариинский муниципальный район","Городское поселение Мариинского муниципального района/город Мариинск","32616101"]
["Мариинский муниципальный район","Мариинский муниципальный район","32616000"]
["Мариинский муниципальный район","Сельское поселение Мариинского муниципального района/Белогородское","32616404"]
["Мариинский муниципальный район","Сельское поселение Мариинского муниципального района/Благовещенское","32616408"]
["Мариинский муниципальный район","Сельское поселение Мариинского муниципального района/Большеантибесское","32616412"]
["Мариинский муниципальный район","Сельское поселение Мариинского муниципального района/Калининское","32616414"]
["Мариинский муниципальный район","Сельское поселение Мариинского муниципального района/Кийское","32616415"]
["Мариинский муниципальный район","Сельское поселение Мариинского муниципального района/Красноорловское","32616416"]
["Мариинский муниципальный район","Сельское поселение Мариинского муниципального района/Лебяжье","32616420"]
["Мариинский муниципальный район","Сельское поселение Мариинского муниципального района/Малопесчанское","32616424"]
["Мариинский муниципальный район","Сельское поселение Мариинского муниципального района/Николаевское","32616428"]
["Мариинский муниципальный район","Сельское поселение Мариинского муниципального района/Первомайское","32616440"]
["Мариинский муниципальный район","Сельское поселение Мариинского муниципального района/Сусловское","32616444"]
["Мариинский муниципальный район","Сельское поселение Мариинского муниципального района/Таежно-Михайловское","32616448"]
["Новокузнецкий  муниципальный округ","Новокузнецкий  муниципальный округ","32519000"]
["Новокузнецкий муниципальный район","Безруковское","32619408"]
["Новокузнецкий муниципальный район","Бунгурское","32619416"]
["Новокузнецкий муниципальный район","Еланское","32619420"]
["Новокузнецкий муниципальный район","Ильинское","32619424"]
["Новокузнецкий муниципальный район","Куртуковское","32619434"]
["Новокузнецкий муниципальный район","Металлургское","32619440"]
["Новокузнецкий муниципальный район","Новокузнецкий муниципальный район","32619000"]
["Новокузнецкий муниципальный район","Орловское","32619446"]
["Новокузнецкий муниципальный район","Сары-Чумышское","32619450"]
["Новокузнецкий муниципальный район","Сельское поселение Новокузнецкого муниципального района/Загорское","32619422"]
["Новокузнецкий муниципальный район","Сельское поселение Новокузнецкого муниципального района/Загорское","32619428"]
["Новокузнецкий муниципальный район","Сельское поселение Новокузнецкого муниципального района/Красулинское","32619432"]
["Новокузнецкий муниципальный район","Сельское поселение Новокузнецкого муниципального района/Кузедеевское","32619433"]
["Новокузнецкий муниципальный район","Сельское поселение Новокузнецкого муниципального района/Сосновское","32619460"]
["Новокузнецкий муниципальный район","Сельское поселение Новокузнецкого муниципального района/Терсинское","32619468"]
["Новокузнецкий муниципальный район","Сельское поселение Новокузнецкого муниципального района/Терсинское","32619470"]
["Новокузнецкий муниципальный район","Сельское поселение Новокузнецкого муниципального района/Центральное","32619404"]
["Новокузнецкий муниципальный район","Сельское поселение Новокузнецкого муниципального района/Центральное","32619473"]
["Новокузнецкий муниципальный район","Сидоровское","32619456"]
["Прокопьевский муниципальный округ","Прокопьевский муниципальный округ","32522000"]
["Прокопьевский муниципальный район","Прокопьевский муниципальный район","32622000"]
["Прокопьевский муниципальный район","Сельское поселение Прокопьевского муниципального района/Большеталдинское","32622404"]
["Прокопьевский муниципальный район","Сельское поселение Прокопьевского муниципального района/Бурлаковское","32622408"]
["Прокопьевский муниципальный район","Сельское поселение Прокопьевского муниципального района/Калачевское","32622420"]
["Прокопьевский муниципальный район","Сельское поселение Прокопьевского муниципального района/Каменно-Ключевское","32622424"]
["Прокопьевский муниципальный район","Сельское поселение Прокопьевского муниципального района/Кузбасское","32622436"]
["Прокопьевский муниципальный район","Сельское поселение Прокопьевского муниципального района/Михайловское","32622444"]
["Прокопьевский муниципальный район","Сельское поселение Прокопьевского муниципального района/Сафоновское","32622448"]
["Прокопьевский муниципальный район","Сельское поселение Прокопьевского муниципального района/Терентьевское","32622452"]
["Прокопьевский муниципальный район","Сельское поселение Прокопьевского муниципального района/Трудармейское","32622454"]
["Прокопьевский муниципальный район","Сельское поселение Прокопьевского муниципального района/Яснополянское","32622460"]
["Промышленновский муниципальный округ","Промышленновский муниципальный округ","32525000"]
["Промышленновский муниципальный район","Городское поселение Промышленновского муниципального района/п.г.т. Промышленная","32625151"]
["Промышленновский муниципальный район","Промышленновский муниципальный район","32625000"]
["Промышленновский муниципальный район","Сельское поселение Промышленновского муниципальног района/Вагановское","32625408"]
["Промышленновский муниципальный район","Сельское поселение Промышленновского муниципального района/Калинкинское","32625414"]
["Промышленновский муниципальный район","Сельское поселение Промышленновского муниципального района/Лебедевское","32625416"]
["Промышленновский муниципальный район","Сельское поселение Промышленновского муниципального района/Окунёвское","32625424"]
["Промышленновский муниципальный район","Сельское поселение Промышленновского муниципального района/Падунское","32625432"]
["Промышленновский муниципальный район","Сельское поселение Промышленновского муниципального района/Плотниковское","32625428"]
["Промышленновский муниципальный район","Сельское поселение Промышленновского муниципального района/Пушкинское","32625436"]
["Промышленновский муниципальный район","Сельское поселение Промышленновского муниципального района/Тарабаринское","32625440"]
["Промышленновский муниципальный район","Сельское поселение Промышленновского муниципального района/Тарасовское","32625444"]
["Промышленновский муниципальный район","Сельское поселение Промышленновского муниципального района/Титовское","32625448"]
["Таштагольский муниципальный район","Городское поселение Таштагольского муниципального района/город Таштагол","32627101"]
["Таштагольский муниципальный район","Городское поселение Таштагольского муниципального района/п.г.т. Каз","32627154"]
["Таштагольский муниципальный район","Городское поселение Таштагольского муниципального района/п.г.т. Мундыбаш","32627157"]
["Таштагольский муниципальный район","Городское поселение Таштагольского муниципального района/п.г.т. Спасск","32627162"]
["Таштагольский муниципальный район","Городское поселение Таштагольского муниципального района/п.г.т. Темиртау","32627165"]
["Таштагольский муниципальный район","Городское поселение Таштагольского муниципального района/п.г.т. Шерегеш","32627175"]
["Таштагольский муниципальный район","Сельское поселение Таштагольского муниципального района/Каларское","32627413"]
["Таштагольский муниципальный район","Сельское поселение Таштагольского муниципального района/Коуринское","32627417"]
["Таштагольский муниципальный район","Сельское поселение Таштагольского муниципального района/Кызыл-Шорское","32627420"]
["Таштагольский муниципальный район","Сельское поселение Таштагольского муниципального района/Усть-Кабырзинское","32627438"]
["Таштагольский муниципальный район","Таштагольский муниципальный район","32627000"]
["Тисульский муниципальный округ","Тисульский муниципальный округ","32528000"]
["Тисульский муниципальный район","Городское поселение Тисульского муниципального района/п.г.т. Белогорск","32628154"]
["Тисульский муниципальный район","Городское поселение Тисульского муниципального района/п.г.т. Тисуль","32628151"]
["Тисульский муниципальный район","Городское поселение Тисульского муниципального района/п.г.т.Комсомольск","32628160"]
["Тисульский муниципальный район","Сельское поселение Тисульского муниципального района/Берикульское","32628402"]
["Тисульский муниципальный район","Сельское поселение Тисульского муниципального района/Большебарандатское","32628408"]
["Тисульский муниципальный район","Сельское поселение Тисульского муниципального района/Куликовское","32628412"]
["Тисульский муниципальный район","Сельское поселение Тисульского муниципального района/Листвянское","32628415"]
["Тисульский муниципальный район","Сельское поселение Тисульского муниципального района/Полуторниковское","32628420"]
["Тисульский муниципальный район","Сельское поселение Тисульского муниципального района/Серебряковское","32628418"]
["Тисульский муниципальный район","Сельское поселение Тисульского муниципального района/Тамбарское","32628424"]
["Тисульский муниципальный район","Сельское поселение Тисульского муниципального района/Третьяковское","32628428"]
["Тисульский муниципальный район","Сельское поселение Тисульского муниципального района/Утинское","32628436"]
["Тисульский муниципальный район","Сельское поселение Тисульского муниципального района/Центральное","32628440"]
["Тисульский муниципальный район","Тисульский муниципальный район","32628000"]
["Топкинский муниципальный округ","Топкинский муниципальный округ","32531000"]
["Топкинский муниципальный район","Городское поселение Топкинского муниципального района/город Топки","32631101"]
["Топкинский муниципальный район","Сельское поселение Топкинского муниципального района/Верх-Падунское","32631404"]
["Топкинский муниципальный район","Сельское поселение Топкинского муниципального района/Зарубинское","32631412"]
["Топкинский муниципальный район","Сельское поселение Топкинского муниципального района/Лукошкинское","32631416"]
["Топкинский муниципальный район","Сельское поселение Топкинского муниципального района/Осиногривское","32631420"]
["Топкинский муниципальный район","Сельское поселение Топкинского муниципального района/Соломинское","32631424"]
["Топкинский муниципальный район","Сельское поселение Топкинского муниципального района/Топкинское","32631428"]
["Топкинский муниципальный район","Сельское поселение Топкинского муниципального района/Усть-Сосновское","32631432"]
["Топкинский муниципальный район","Сельское поселение Топкинского муниципального района/Хорошеборское","32631436"]
["Топкинский муниципальный район","Сельское поселение Топкинского муниципального района/Черемичкинское","32631440"]
["Топкинский муниципальный район","Сельское поселение Топкинского муниципального района/Шишинское","32631444"]
["Топкинский муниципальный район","Сельское поселение Топкинского муниципального района/Юрьевское","32631448"]
["Топкинский муниципальный район","Топкинский муниципальный район","32631000"]
["Тяжинский муниципальный округ","Тяжинский муниципальный округ","32534000"]
["Тяжинский муниципальный район","Городское поселение Тяжинского муниципального района/п.г.т. Итатский","32634154"]
["Тяжинский муниципальный район","Городское поселение Тяжинского муниципального района/п.г.т. Тяжинский","32634151"]
["Тяжинский муниципальный район","Сельское поселение Тяжинского муниципального района/Акимо-Анненское","32634412"]
["Тяжинский муниципальный район","Сельское поселение Тяжинского муниципального района/Кубитетское","32634404"]
["Тяжинский муниципальный район","Сельское поселение Тяжинского муниципального района/Листвянское","32634408"]
["Тяжинский муниципальный район","Сельское поселение Тяжинского муниципального района/Нововосточное","32634424"]
["Тяжинский муниципальный район","Сельское поселение Тяжинского муниципального района/Новоподзорновское","32634414"]
["Тяжинский муниципальный район","Сельское поселение Тяжинского муниципального района/Новопокровское","32634416"]
["Тяжинский муниципальный район","Сельское поселение Тяжинского муниципального района/Преображенское","32634420"]
["Тяжинский муниципальный район","Сельское поселение Тяжинского муниципального района/Ступишинское","32634428"]
["Тяжинский муниципальный район","Сельское поселение Тяжинского муниципального района/Тисульское","32634432"]
["Тяжинский муниципальный район","Сельское поселение Тяжинского муниципального района/Чулымское","32634436"]
["Тяжинский муниципальный район","Тяжинский муниципальный район","32634000"]
["Чебулинский муниципальный округ","Чебулинский муниципальный округ","32537000"]
["Чебулинский муниципальный район","Городское поселение Чебулинского муниципального района/п.г.т. Верх-Чебула","32637151"]
["Чебулинский муниципальный район","Сельское поселение Чебулинского муниципального района/Алчедатское","32637404"]
["Чебулинский муниципальный район","Сельское поселение Чебулинского муниципального района/Ивановское","32637412"]
["Чебулинский муниципальный район","Сельское поселение Чебулинского муниципального района/Усманское","32637420"]
["Чебулинский муниципальный район","Сельское поселение Чебулинского муниципального района/Усть-Сертинское","32637424"]
["Чебулинский муниципальный район","Сельское поселение Чебулинского муниципального района/Усть-Чебулинское","32637428"]
["Чебулинский муниципальный район","Сельское поселение Чебулинского муниципального района/Чумайское","32637432"]
["Чебулинский муниципальный район","Чебулинский муниципальный район","32637000"]
["Юргинский муниципальный округ","Юргинский муниципальный округ","32540000"]
["Юргинский муниципальный район","Сельское поселение Юргинского муниципального района/Арлюкское","32640404"]
["Юргинский муниципальный район","Сельское поселение Юргинского муниципального района/Зеледеевское","32640408"]
["Юргинский муниципальный район","Сельское поселение Юргинского муниципального района/Лебяжье-Асановское","32640412"]
["Юргинский муниципальный район","Сельское поселение Юргинского муниципального района/Мальцевское","32640416"]
["Юргинский муниципальный район","Сельское поселение Юргинского муниципального района/Новоромановское","32640420"]
["Юргинский муниципальный район","Сельское поселение Юргинского муниципального района/Попереченское","32640424"]
["Юргинский муниципальный район","Сельское поселение Юргинского муниципального района/Проскоковское","32640428"]
["Юргинский муниципальный район","Сельское поселение Юргинского муниципального района/Тальское","32640432"]
["Юргинский муниципальный район","Сельское поселение Юргинского муниципального района/Юргинское","32640436"]
["Юргинский муниципальный район","Юргинский муниципальный район","32640000"]
["Яйский муниципальный округ","Яйский муниципальный округ","32543000"]
["Яйский муниципальный район","Городское поселение Яйского муниципального района/ п.г.т. Яя","32643151"]
["Яйский муниципальный район","Сельское поселение Яйского муниципального района/Безлесное","32643404"]
["Яйский муниципальный район","Сельское поселение Яйского муниципального района/Бекетское","32643408"]
["Яйский муниципальный район","Сельское поселение Яйского муниципального района/Вознесенское","32643412"]
["Яйский муниципальный район","Сельское поселение Яйского муниципального района/Дачно-Троицкое","32643416"]
["Яйский муниципальный район","Сельское поселение Яйского муниципального района/Кайлинское","32643424"]
["Яйский муниципальный район","Сельское поселение Яйского муниципального района/Китатское","32643428"]
["Яйский муниципальный район","Сельское поселение Яйского муниципального района/Марьевское","32643432"]
["Яйский муниципальный район","Сельское поселение Яйского муниципального района/Судженское","32643436"]
["Яйский муниципальный район","Сельское поселение Яйского муниципального района/Улановское","32643440"]
["Яйский муниципальный район","Яйский муниципальный район","32643000"]
["Яшкинский муниципальный округ","Яшкинский муниципальный округ","32546000"]
["Яшкинский муниципальный район","Городское поселение Яшкинского муниципального района/п.г.т. Яшкино","32646151"]
["Яшкинский муниципальный район","Сельское поселение Яшкинского муниципального района/Акациевское","32646402"]
["Яшкинский муниципальный район","Сельское поселение Яшкинского муниципального района/Дубровинское","32646408"]
["Яшкинский муниципальный район","Сельское поселение Яшкинского муниципального района/Колмогоровское","32646414"]
["Яшкинский муниципальный район","Сельское поселение Яшкинского муниципального района/Ленинское","32646419"]
["Яшкинский муниципальный район","Сельское поселение Яшкинского муниципального района/Литвиновское","32646420"]
["Яшкинский муниципальный район","Сельское поселение Яшкинского муниципального района/Пачинское","32646424"]
["Яшкинский муниципальный район","Сельское поселение Яшкинского муниципального района/Пашковское","32646428"]
["Яшкинский муниципальный район","Сельское поселение Яшкинского муниципального района/Поломошинское","32646432"]
["Яшкинский муниципальный район","Сельское поселение Яшкинского муниципального района/Таловское","32646436"]
["Яшкинский муниципальный район","Сельское поселение Яшкинского муниципального района/Шахтерское","32646450"]
["Яшкинский муниципальный район","Яшкинский муниципальный район","32646000"]
["город Анжеро-Судженск","город Анжеро-Судженск","32704000"]
["город Белово","город Белово","32707000"]
["город Березовский","город Березовский","32710000"]
["город Калтан","город Калтан","32715000"]
["город Кемерово","город Кемерово","32701000"]
["город Киселевск","город Киселевск","32716000"]
["город Ленинск-Кузнецкий","город Ленинск-Кузнецкий","32719000"]
["город Междуреченск","город Междуреченск","32725000"]
["город Мыски","город Мыски","32728000"]
["город Новокузнецк","город Новокузнецк","32731000"]
["город Осинники","город Осинники","32734000"]
["город Полысаево","город Полысаево","32732000"]
["город Прокопьевск","город Прокопьевск","32737000"]
["город Тайга","город Тайга","32740000"]
["город Юрга","город Юрга","32749000"]
["поселок городского типа Краснобродский","поселок городского типа Краснобродский","32751000"]

{"sheet":"REESTR_ORG","index":27,"n_rows":302,"n_cols":10,"rows_kept":302,"cut":false,"hidden":true,"merged":[]}
["№","REGION_ID","REGION_NAME","RST_ORG_ID","ORG_NAME","INN_NAME","KPP_NAME","ORG_START_DATE","ORG_END_DATE"]
[1,"2655","Кемеровская область","26560525","АО \"ГУ ЖКХ\"","5116000922","511601001","13-05-2009 00:00:00",null,"VS"]
[2,"2655","Кемеровская область","30401246","АО \"ГУ ЖКХ\"","5116000922","540645001",null,null,"VS"]
[3,"2655","Кемеровская область","26356953","АО \"ЕВРАЗ ЗСМК\"","4218000951","421801001","30-11-1992 00:00:00",null,"VS"]
[4,"2655","Кемеровская область","28092960","АО \"КФ\" ОСП \"Юргинский ферросплавный завод\"","4216001565","422101001","19-02-2013 00:00:00",null,"VS"]
[5,"2655","Кемеровская область","27804990","АО \"Кемеровская генерация\"","4205243192","420501001","28-04-2012 00:00:00",null,"VS"]
[6,"2655","Кемеровская область","28048296","АО \"Кузбассэнерго\"","4200000333","420501001","30-12-1993 00:00:00",null,"VS"]
[7,"2655","Кемеровская область","27804826","АО \"Кузнецкая ТЭЦ\"","4205243178","420501001","28-04-2012 00:00:00",null,"VS"]
[8,"2655","Кемеровская область","26356963","АО \"ПО Водоканал\"","4223030694","422301001","06-11-2002 00:00:00",null,"VS"]
[9,"2655","Кемеровская область","26322889","АО \"РУСАЛ Новокузнецкий Алюминиевый Завод\"","4221000535","997550001","25-09-2002 00:00:00",null,"VS"]
[10,"2655","Кемеровская область","27820148","АО \"СУЭК-Кузбасс\"","4212024138","424950001","07-05-2007 00:00:00",null,"VS"]
[11,"2655","Кемеровская область","26427918","АО \"Славино\"","4238012426","423801001","17-12-2002 00:00:00","16-11-2022 00:00:00","VS"]
[12,"2655","Кемеровская область","26356905","АО \"Теплоэнерго\"","4205049011","420501001","30-04-2003 00:00:00",null,"VS"]
[13,"2655","Кемеровская область","26427149","АО \"Транснефть-Западная Сибирь\"","5502020634","546050001",null,null,"VS"]
[14,"2655","Кемеровская область","26356936","АО \"Энергетическая компания\"","4212127479","421201001","20-09-2004 00:00:00",null,"VS"]
[15,"2655","Кемеровская область","26567321","АО «Мариинский ЛВЗ»","4213003050","421301001","25-12-2002 00:00:00",null,"VS"]
[16,"2655","Кемеровская область","27295125","АО ЦОФ \"Берёзовская\"","4203001617","424950001","25-07-2002 00:00:00",null,"VS"]
[17,"2655","Кемеровская область","28976938","Анжеро-Судженская ЛПДС филиала \"Новосибирское РНУ\" АО \"Транснефть - Западная Сибирь\"","5502020634","424603001","15-06-1994 00:00:00",null,"VS"]
[18,"2655","Кемеровская область","26824672","Ачинская дистанция гражданских сооружений - СП КЖД - филиала ОАО \"РЖД\"","7708503727","421301001",null,null,"VS"]
[19,"2655","Кемеровская область","31359053","ИП Чайковский В.Л.","420300472840","отсутствует","17-10-2014 00:00:00",null,"VS"]
[20,"2655","Кемеровская область","28823439","Индивидуальный предприниматель Зубарева Евгения Анатольевна","420508603852","отсутствует","16-03-2009 00:00:00",null,"VS"]
[21,"2655","Кемеровская область","26322867","КАО \"Азот\"","4205000908","997550001","11-07-2001 00:00:00",null,"VS"]
[22,"2655","Кемеровская область","26824651","Красноярская дирекция по тепловодоснабжению","7708503727","246645014",null,null,"VS"]
[23,"2655","Кемеровская область","26824396","Кузбасский территориальный участок ЗСД по тепловодоснабжению - СП ЦД по тепловодоснабжению - филиал ОАО \"РЖД\"","7708503727","540775040",null,null,"VS"]
[24,"2655","Кемеровская область","31159489","МКП  \"Центральная ТЭЦ\"","4220039385","422001001","06-04-2009 00:00:00","01-01-2021 00:00:00","VS"]
[25,"2655","Кемеровская область","31232672","МКП \"ВКХ\"","4217191774","421701001","15-11-2018 00:00:00",null,"VS"]
[26,"2655","Кемеровская область","31387447","МКП \"Водоканал\" ТМР","4252015570","425201001","12-08-2019 00:00:00",null,"VS"]
[27,"2655","Кемеровская область","28751671","МКП \"Водоснаб НМР\"","4252003568","425201001","16-07-2012 00:00:00",null,"VS"]
[28,"2655","Кемеровская область","27978231","МКП \"ЖКХ\"","4230005515","423001001","18-09-2012 00:00:00",null,"VS"]
[29,"2655","Кемеровская область","30808700","МКП \"КОМФОРТ\"","4213011357","421301001","02-03-2016 00:00:00",null,"VS"]
[30,"2655","Кемеровская область","31319221","МКП \"КТВС НМР\"","4252015404","425201001","05-06-2019 00:00:00",null,"VS"]
[31,"2655","Кемеровская область","27819046","МКП \"КТС Новокузнецкого района\"","4252003487","425201001","26-06-2012 00:00:00",null,"VS"]
[32,"2655","Кемеровская область","28822005","МКП \"Полигон ТБО\"","4246018397","424601001","29-05-2013 00:00:00",null,"VS"]
[33,"2655","Кемеровская область","31087651","МКП \"Тепло\"","4230032501","423001001","27-02-2018 00:00:00",null,"VS"]
[34,"2655","Кемеровская область","31343443","МКП ММО \"Ресурс\"","4213012417","421301001","26-07-2019 00:00:00",null,"VS"]
[35,"2655","Кемеровская область","28221445","МП \"Водоканал\" Тайгинского городского округа","4246018157","424601001",null,null,"VS"]
[36,"2655","Кемеровская область","27542200","МП \"Жильё\"","4246000576","424601001","14-09-2011 00:00:00",null,"VS"]
[37,"2655","Кемеровская область","26486390","МП \"Исток\"","4211023572","421101001","13-03-2009 00:00:00",null,"VS"]
[38,"2655","Кемеровская область","27980182","МП \"ССК\"","4217146362","421701001","24-07-2012 00:00:00",null,"VS"]
[39,"2655","Кемеровская область","26505195","МП \"Тепло\"","4211023237","421101001","01-06-2009 00:00:00","22-09-2022 00:00:00","VS"]
[40,"2655","Кемеровская область","26530090","МУП \"Водоканал\"","4214031839","421401001","26-03-2010 00:00:00","07-09-2020 00:00:00","VS"]
[41,"2655","Кемеровская область","27977465","МУП \"Водоканал\"","4202043124","420201001","10-10-2012 00:00:00",null,"VS"]
[42,"2655","Кемеровская область","31310826","МУП \"Водоканал\"","4213012270","421301001","01-02-2019 00:00:00",null,"VS"]
[43,"2655","Кемеровская область","31159399","МУП \"Гарант\"","4213012128","421301001","29-12-2017 00:00:00","07-04-2023 00:00:00","VS"]
[44,"2655","Кемеровская область","31332720","МУП \"Гарант\" КГО","4202050210","420201001","04-12-2015 00:00:00",null,"VS"]
[45,"2655","Кемеровская область","28980595","МУП \"ЖКХ Мариинского муниципального района\"","4213011068","421301001","22-05-2015 00:00:00",null,"VS"]
[46,"2655","Кемеровская область","27826700","МУП \"Жилищно-коммунальное управление Кемеровского муниципального округа\"","4205242791","420501001","26-04-2012 00:00:00",null,"VS"]
[47,"2655","Кемеровская область","31308226","МУП \"ИЖКХ\" Ижморского муниципального округа\"","4246021336","424601001","01-06-2017 00:00:00",null,"VS"]
[48,"2655","Кемеровская область","31284269","МУП \"Комфорт\"","4230026593","423001001","29-06-2009 00:00:00",null,"VS"]
[49,"2655","Кемеровская область","31241680","МУП \"Междуреченский Водоканал\"","4214040174","421401001","26-10-2018 00:00:00",null,"VS"]
[50,"2655","Кемеровская область","28221676","МУП \"Сервис коммунальных систем\"","4213010226","421301001","13-03-2013 00:00:00","20-12-2021 00:00:00","VS"]
[51,"2655","Кемеровская область","31579664","МУП \"ТЖКХ\" Тисульского муниципального района\"","4213012375","421301001","10-07-2019 00:00:00",null,"VS"]
[52,"2655","Кемеровская область","31338382","МУП \"Тепловик\"","4246022315","424601001","25-04-2019 00:00:00",null,"VS"]
[53,"2655","Кемеровская область","28503043","МУП \"УК ЖКХ\"","4222014844","422201001","03-12-2013 00:00:00",null,"VS"]
[54,"2655","Кемеровская область","30824381","МУП \"Энерго-Сервис\"","4246019665","424601001","22-07-2016 00:00:00",null,"VS"]
[55,"2655","Кемеровская область","31218522","МУП \"ЯТО\" Яйского муниципального округа","4246022072","424601001","24-09-2018 00:00:00",null,"VS"]
[56,"2655","Кемеровская область","26322887","МУП «ЖКХ» Новокузнецкого района","4238015970","423801001","05-07-2004 00:00:00",null,"VS"]
[57,"2655","Кемеровская область","31003143","МУП Гурьевского муниципального района \"УК ЖКХ\"","4202047136","420201001","13-01-2014 00:00:00",null,"VS"]
[58,"2655","Кемеровская область","26357006","МУП ЖКУ \"Белогорск\"","4243015398","424301001","02-09-2003 00:00:00","26-05-2023 00:00:00","VS"]
[59,"2655","Кемеровская область","28954358","МУП КГО \"УКВС\"","4222015220","422201001","10-10-2014 00:00:00","02-11-2021 00:00:00","VS"]
[60,"2655","Кемеровская область","28511994","МУП ОГО \"Водоканал\"","4222014989","422201001","28-05-2014 00:00:00","20-09-2022 00:00:00","VS"]
[61,"2655","Кемеровская область","30435868","МУП ПМР \"Теплоком\"","4223095814","422301001","07-12-2015 00:00:00","01-03-2020 00:00:00","VS"]
[62,"2655","Кемеровская область","28254166","МУП ПМР \"Тепломир\"","4223060667","422301001","10-07-2013 00:00:00",null,"VS"]
[63,"2655","Кемеровская область","31159337","МУП бытового обслуживания","4244000281","421301001","17-07-1996 00:00:00","27-05-2019 00:00:00","VS"]
[64,"2655","Кемеровская область","28976969","Мариинская нефтеперекачивающая станция филиала \"Новосибирскок РНУ\" АО \"Транснефть - Западная Сибирь\"","5502020634","421303001","15-06-1994 00:00:00",null,"VS"]
[65,"2655","Кемеровская область","26472837","ОАО \"Ваганово\"","4240002697","424001001","03-09-2002 00:00:00",null,"VS"]
[66,"2655","Кемеровская область","26356896","ОАО \"Гурьевский металлургический завод\"","4204000253","421650001","12-05-1996 00:00:00",null,"VS"]
[67,"2655","Кемеровская область","26427858","ОАО \"ИжморВодСтрой\"","4246009988","424601001","28-05-2008 00:00:00","01-03-2020 00:00:00","VS"]
[68,"2655","Кемеровская область","26322895","ОАО «СКЭК»","4205153492","420501001","01-04-2008 00:00:00",null,"VS"]
[69,"2655","Кемеровская область","28119331","ООО \"АВК ПЛЮС\"","4205252430","420501001","05-03-2013 00:00:00",null,"VS"]
[70,"2655","Кемеровская область","26473644","ООО \"АВК\"","4246009378","424601001","19-02-2008 00:00:00","21-12-2020 00:00:00","VS"]
[71,"2655","Кемеровская область","26567329","ООО \"Агросервис\"","4238015106","421701001","22-11-2003 00:00:00",null,"VS"]
[72,"2655","Кемеровская область","26567354","ООО \"Благоустройство\"","4246006754","424601001","07-04-2006 00:00:00","27-10-2022 00:00:00","VS"]
[73,"2655","Кемеровская область","26428034","ООО \"ВКУ\"","4212427514","421201001","11-04-2005 00:00:00","01-03-2020 00:00:00","VS"]
[74,"2655","Кемеровская область","28817194","ООО \"ВКХ\"","4252005780","425201001","12-12-2013 00:00:00","01-01-2020 00:00:00","VS"]
[75,"2655","Кемеровская область","30988389","ООО \"ВОДОРЕСУРС\"","4253033332","425301001","31-03-2016 00:00:00",null,"VS"]
[76,"2655","Кемеровская область","27886900","ООО \"Веста плюс\"","4223057390","422301001","21-06-2012 00:00:00","01-03-2020 00:00:00","VS"]
[77,"2655","Кемеровская область","31356597","ООО \"ВодСнаб\"","4230030215","423001001","02-10-2015 00:00:00",null,"VS"]
[78,"2655","Кемеровская область","26567176","ООО \"Вода\"","4201008159","424601001","08-08-2002 00:00:00","22-05-2023 00:00:00","VS"]
[79,"2655","Кемеровская область","26427834","ООО \"Водоканал\"","4246009561","424601001","26-02-2008 00:00:00","29-06-2023 00:00:00","VS"]
[80,"2655","Кемеровская область","26427890","ООО \"Водоканал\"","4212027153","421201001","30-07-2008 00:00:00","31-07-2023 00:00:00","VS"]
[81,"2655","Кемеровская область","28869965","ООО \"Водоканал\"","4217166136","421701001","24-11-2014 00:00:00",null,"VS"]
[82,"2655","Кемеровская область","31215010","ООО \"Водоканал\"","4246021953","424601001","28-05-2018 00:00:00",null,"VS"]
[83,"2655","Кемеровская область","31336226","ООО \"Водоканал\"","4252012548","425201001","04-08-2016 00:00:00",null,"VS"]
[84,"2655","Кемеровская область","31022521","ООО \"Водоканал\"","4252014295","425201001","27-09-2017 00:00:00",null,"VS"]
[85,"2655","Кемеровская область","28452863","ООО \"Водоканал\"","4253018285","425301001","20-11-2013 00:00:00",null,"VS"]
[86,"2655","Кемеровская область","26427946","ООО \"Водопроводные сети\"","4213007304","421301001","26-03-2008 00:00:00","01-03-2020 00:00:00","VS"]
[87,"2655","Кемеровская область","27391966","ООО \"Водоснабжение\"","4252001828","425201001","28-07-2011 00:00:00","18-01-2023 00:00:00","VS"]
[88,"2655","Кемеровская область","27336388","ООО \"ГД санаторий имени \"60-летия Кузбасса\"","4218025530","421801001","15-04-2004 00:00:00","18-05-2022 00:00:00","VS"]
[89,"2655","Кемеровская область","30373418","ООО \"Горводоканал\"","4202050033","420201001","21-10-2015 00:00:00",null,"VS"]
[90,"2655","Кемеровская область","28136671","ООО \"Горводоканал\"","5406737355","540501001","20-03-2013 00:00:00",null,"VS"]
[91,"2655","Кемеровская область","31573961","ООО \"Гурьевск-Сталь\"","4202050643","420201001","01-04-2016 00:00:00",null,"VS"]
[92,"2655","Кемеровская область","26427930","ООО \"ЖКУ \"Надежда\"","4213004920","421301001","13-07-2004 00:00:00","20-12-2020 00:00:00","VS"]
[93,"2655","Кемеровская область","26476793","ООО \"ЖКХ Тамбар\"","4243006153","424301001","27-11-2007 00:00:00",null,"VS"]
[94,"2655","Кемеровская область","26356925","ООО \"ЖКХ с. Тараданово\"","4212004950","421201001","01-12-2005 00:00:00","01-03-2020 00:00:00","VS"]
[95,"2655","Кемеровская область","29645515","ООО \"ЗЖБК-Сервис+\"","4217164072","421701001","13-08-2014 00:00:00",null,"VS"]
[96,"2655","Кемеровская область","28509720","ООО \"Завод \"Горэкс-Светотехника\"","4223027701","771501001","09-10-2012 00:00:00",null,"VS"]
[97,"2655","Кемеровская область","26476936","ООО \"Ивановское ЖКХ\"","4213006678","421301001","05-02-2007 00:00:00","28-01-2021 00:00:00","VS"]
[98,"2655","Кемеровская область","30950350","ООО \"Ижморская ТСК\"","4246021343","424601001","07-06-2017 00:00:00",null,"VS"]
[99,"2655","Кемеровская область","30854705","ООО \"КВС\"","4223104956","422301001","17-08-2016 00:00:00",null,"VS"]
[100,"2655","Кемеровская область","31656254","ООО \"КК-ИНВЕСТ\"","1901133713","190101001","03-03-2017 00:00:00",null,"VS"]
[101,"2655","Кемеровская область","28270197","ООО \"КРК-Ижморский\"","4205267517","420501001","04-06-2013 00:00:00","19-06-2020 00:00:00","VS"]
[102,"2655","Кемеровская область","26427844","ООО \"КомСервис\"","4217065924","421701001","01-07-2004 00:00:00",null,"VS"]
[103,"2655","Кемеровская область","27658715","ООО \"Коммунальные сети горы Зелёной\"","4228007586","422801001","05-12-2002 00:00:00",null,"VS"]
[104,"2655","Кемеровская область","28221643","ООО \"Компания \"Энергопромсервис\"","4205250721","420501001","14-09-2012 00:00:00","11-12-2020 00:00:00","VS"]
[105,"2655","Кемеровская область","28977055","ООО \"Комресурс\"","4202049013","420201001","05-03-2015 00:00:00","07-08-2020 00:00:00","VS"]
[106,"2655","Кемеровская область","27841462","ООО \"Комфорт - сервис\"","4212032523","421201001","07-06-2011 00:00:00","01-03-2020 00:00:00","VS"]
[107,"2655","Кемеровская область","27822745","ООО \"Мариинский спиртовой комбинат\"","4213009781","421301001","28-05-2012 00:00:00","31-08-2020 00:00:00","VS"]
[108,"2655","Кемеровская область","31424033","ООО \"НТСК\"","5406993045","540601001",null,null,"VS"]
[109,"2655","Кемеровская область","31651536","ООО \"ПК \"Юргинский машзавод\"","4230033216","423001001","18-04-2019 00:00:00",null,"VS"]
[110,"2655","Кемеровская область","26653062","ООО \"ППС Колмогоровский\"","4246016953","424601001","11-05-2010 00:00:00","01-03-2020 00:00:00","VS"]
[111,"2655","Кемеровская область","26356931","ООО \"Панфиловец\"","4212021835","421201001","24-04-2002 00:00:00",null,"VS"]
[112,"2655","Кемеровская область","26473636","ООО \"Потенциал\"","4212029048","421201001",null,"01-03-2020 00:00:00","VS"]
[113,"2655","Кемеровская область","30848646","ООО \"Програнд\"","7702549732","420501001","11-01-2005 00:00:00",null,"VS"]
[114,"2655","Кемеровская область","26428026","ООО \"Промышленновские коммунальные системы\"","4240009967","424001001","25-12-2008 00:00:00",null,"VS"]
[115,"2655","Кемеровская область","30983894","ООО \"РЭСК\"","4202050940","420201001","24-06-2016 00:00:00",null,"VS"]
[116,"2655","Кемеровская область","28151808","ООО \"Ресурс-Гарант\"","4213010240","421301001","21-03-2013 00:00:00",null,"VS"]
[117,"2655","Кемеровская область","31541617","ООО \"СДС\"","4229006578","422901001","03-03-2005 00:00:00",null,"VS"]
[118,"2655","Кемеровская область","26356987","ООО \"СПК \"Чистогорский\"","4238013194","423801001",null,null,"VS"]
[119,"2655","Кемеровская область","31040886","ООО \"СТГК\"","4217182593","421701001","22-03-2017 00:00:00",null,"VS"]
[120,"2655","Кемеровская область","28112120","ООО \"Санаторный коммунальный комплекс\"","4223058869","422301001","29-11-2012 00:00:00","01-01-2019 00:00:00","VS"]
[121,"2655","Кемеровская область","26897760","ООО \"Сибирь-Водоканал 2\"","4202041053","420201001","17-03-2011 00:00:00","01-03-2020 00:00:00","VS"]
[122,"2655","Кемеровская область","28829450","ООО \"СтройТехАгро\"","4205247334","420501001","12-07-2012 00:00:00",null,"VS"]
[123,"2655","Кемеровская область","26356891","ООО \"ТВК\"","4202026697","420201001","02-09-2005 00:00:00",null,"VS"]
[124,"2655","Кемеровская область","28284204","ООО \"ТВК\"","4230006156","423001001","20-11-2012 00:00:00",null,"VS"]
[125,"2655","Кемеровская область","31241637","ООО \"ТВКХ\"","4205375960","424601001","14-12-2018 00:00:00",null,"VS"]
[126,"2655","Кемеровская область","27978219","ООО \"Тепло\"","4246008896","424601001","18-12-2007 00:00:00",null,"VS"]
[127,"2655","Кемеровская область","28819708","ООО \"Тепло\"","4252000648","425201001","15-11-2010 00:00:00",null,"VS"]
[128,"2655","Кемеровская область","26427956","ООО \"Тепло-Водо-Канал\"","4202035660","420201001","10-10-2008 00:00:00","27-03-2020 00:00:00","VS"]
[129,"2655","Кемеровская область","26356937","ООО \"Тепло-энергетические предприятия\"","4212427497","421201001","11-04-2005 00:00:00",null,"VS"]
[130,"2655","Кемеровская область","31221182","ООО \"Тепловик\"","4213012054","421301001","16-03-2018 00:00:00",null,"VS"]
[131,"2655","Кемеровская область","28982662","ООО \"Тепловик\"","4246019841","424601001","23-04-2015 00:00:00",null,"VS"]
[132,"2655","Кемеровская область","26427866","ООО \"Теплосервис\"","4202030485","420201001","25-01-2007 00:00:00","01-03-2020 00:00:00","VS"]
[133,"2655","Кемеровская область","27880847","ООО \"Теплоснаб\"","4230004328","423001001","15-06-2012 00:00:00","13-06-2023 00:00:00","VS"]
[134,"2655","Кемеровская область","30872315","ООО \"Теплоснаб\"","4205325631","420501001","04-04-2016 00:00:00",null,"VS"]
[135,"2655","Кемеровская область","27542212","ООО \"Техстрой\"","4212032682","421201001","01-07-2011 00:00:00","01-03-2020 00:00:00","VS"]
[136,"2655","Кемеровская область","26356983","ООО \"УК \"Энерготранс-Агро\"","4230021588","423001001","29-05-2006 00:00:00",null,"VS"]
[137,"2655","Кемеровская область","30352093","ООО \"УК ЖКХ\"","4228010469","422801001","11-12-2006 00:00:00","05-02-2021 00:00:00","VS"]
[138,"2655","Кемеровская область","26356899","ООО \"УКиТС\"","4204007393","420401001","24-09-2007 00:00:00",null,"VS"]
[139,"2655","Кемеровская область","26356932","ООО \"Шанс\"","4212025734","421201001","17-01-2008 00:00:00",null,"VS"]
[140,"2655","Кемеровская область","26356972","ООО \"Шерегеш-Энерго\"","4228008050","422801001","16-06-2003 00:00:00",null,"VS"]
[141,"2655","Кемеровская область","28270293","ООО \"ЭК\"","4202044463","420201001","21-09-2012 00:00:00",null,"VS"]
[142,"2655","Кемеровская область","30992391","ООО \"ЭнергоТранзит\"","5406603432","421701001","17-10-2017 00:00:00",null,"VS"]
[143,"2655","Кемеровская область","28873362","ООО \"Энергоресурс\"","4205284720","420501001","26-03-2014 00:00:00",null,"VS"]
[144,"2655","Кемеровская область","28976681","ООО \"Энергосервис г. Гурьевска\"","4202049045","420201001","19-03-2015 00:00:00",null,"VS"]
[145,"2655","Кемеровская область","31431661","ООО \"ЮЗК\"","2466232547","540401001",null,null,"VS"]
[146,"2655","Кемеровская область","26427828","ООО \"Юрга Водтранс\"","4230020538","423001001","01-12-2005 00:00:00",null,"VS"]
[147,"2655","Кемеровская область","26427908","ООО \"Ясная поляна\"","4223048846","422301001","11-03-2008 00:00:00","20-11-2020 00:00:00","VS"]
[148,"2655","Кемеровская область","26428030","ООО\"Водоснабжение\"","4202023801","420201001","14-11-2003 00:00:00",null,"VS"]
[149,"2655","Кемеровская область","31253284","ПАО \"Южный Кузбасс\"","4214000608","997550001",null,null,"VS"]
[150,"2655","Кемеровская область",null,"РЕГИОНАЛЬНАЯ ЭНЕРГЕТИЧЕСКАЯ КОМИССИЯ КУЗБАССА","4207044509","420501001",null,null,"VS"]
[151,"2655","Кемеровская область","30903763","ФГБУ \"ЦЖКУ\" МИНОБОРОНЫ РОССИИ","7729314745","770101001",null,null,"VS"]
[152,"2655","Кемеровская область","26356939","ФГКУ комбинат \"Алтай\" Росрезерва","4213001052","421301001","19-07-1994 00:00:00",null,"VS"]
[153,"2655","Кемеровская область","26427862","ФГУП \"ПО  Прогресс\"","4210000692","420501001","21-02-2003 00:00:00",null,"VS"]
[154,"2655","Кемеровская область","30984255","ФКУ КП-3 ГУФСИН России по Кемеровской области","4244001260","421301001","22-05-1995 00:00:00",null,"VS"]
[155,"2655","Кемеровская область","26987290","Филиал \"Новосибирский\" ОАО \"Славянка\"","7702707386","420543001","30-04-2009 00:00:00","10-02-2021 00:00:00","VS"]
[156,"2655","Кемеровская область","26520873","Филиал АО \"УК \"Кузбассразрезуголь\" \"Талдинский угольный разрез\"","4205049090","423802002","05-05-2003 00:00:00",null,"VS"]
[157,"2655","Кемеровская область","26987067","Филиал АО \"УК \"Кузбассразрезуголь\" - \"Моховский угольный разрез\"","4205049090","421202001","05-05-2003 00:00:00",null,"VS"]
[158,"2655","Кемеровская область","30914574","Филиал ФГБУ \"ЦЖКУ\" МИНОБОРОНЫ РОССИИ (по ЦВО)","7729314745","667043001",null,null,"VS"]
[1,"2655","Кемеровская область","26560525","АО \"ГУ ЖКХ\"","5116000922","511601001","13-05-2009 00:00:00",null,"VO"]
[2,"2655","Кемеровская область","30401246","АО \"ГУ ЖКХ\"","5116000922","540645001",null,null,"VO"]
[3,"2655","Кемеровская область","26356953","АО \"ЕВРАЗ ЗСМК\"","4218000951","421801001","30-11-1992 00:00:00",null,"VO"]
[4,"2655","Кемеровская область","26356915","АО \"Знамя\"","4211002950","421101001","21-06-1994 00:00:00",null,"VO"]
[5,"2655","Кемеровская область","27804990","АО \"Кемеровская генерация\"","4205243192","420501001","28-04-2012 00:00:00",null,"VO"]
[6,"2655","Кемеровская область","27857950","АО \"Кузбасская птицефабрика\"","4238019693","423801001","02-10-2006 00:00:00",null,"VO"]
[7,"2655","Кемеровская область","26356963","АО \"ПО Водоканал\"","4223030694","422301001","06-11-2002 00:00:00",null,"VO"]
[8,"2655","Кемеровская область","26322889","АО \"РУСАЛ Новокузнецкий Алюминиевый Завод\"","4221000535","997550001","25-09-2002 00:00:00",null,"VO"]
[9,"2655","Кемеровская область","27820148","АО \"СУЭК-Кузбасс\"","4212024138","424950001","07-05-2007 00:00:00",null,"VO"]
[10,"2655","Кемеровская область","26427149","АО \"Транснефть-Западная Сибирь\"","5502020634","546050001",null,null,"VO"]
[11,"2655","Кемеровская область","26356936","АО \"Энергетическая компания\"","4212127479","421201001","20-09-2004 00:00:00",null,"VO"]
[12,"2655","Кемеровская область","28976938","Анжеро-Судженская ЛПДС филиала \"Новосибирское РНУ\" АО \"Транснефть - Западная Сибирь\"","5502020634","424603001","15-06-1994 00:00:00",null,"VO"]
[13,"2655","Кемеровская область","31359053","ИП Чайковский В.Л.","420300472840","отсутствует","17-10-2014 00:00:00",null,"VO"]
[14,"2655","Кемеровская область","28823439","Индивидуальный предприниматель Зубарева Евгения Анатольевна","420508603852","отсутствует","16-03-2009 00:00:00",null,"VO"]
[15,"2655","Кемеровская область","26322867","КАО \"Азот\"","4205000908","997550001","11-07-2001 00:00:00",null,"VO"]
[16,"2655","Кемеровская область","26824396","Кузбасский территориальный участок ЗСД по тепловодоснабжению - СП ЦД по тепловодоснабжению - филиал ОАО \"РЖД\"","7708503727","540775040",null,null,"VO"]
[17,"2655","Кемеровская область","30365193","МБУ \"Кемдор\"","4205159600","420501001","27-06-2008 00:00:00",null,"VO"]
[18,"2655","Кемеровская область","31232672","МКП \"ВКХ\"","4217191774","421701001","15-11-2018 00:00:00",null,"VO"]
[19,"2655","Кемеровская область","28751671","МКП \"Водоснаб НМР\"","4252003568","425201001","16-07-2012 00:00:00",null,"VO"]
[20,"2655","Кемеровская область","27978231","МКП \"ЖКХ\"","4230005515","423001001","18-09-2012 00:00:00",null,"VO"]
[21,"2655","Кемеровская область","30808700","МКП \"КОМФОРТ\"","4213011357","421301001","02-03-2016 00:00:00",null,"VO"]
[22,"2655","Кемеровская область","31319221","МКП \"КТВС НМР\"","4252015404","425201001","05-06-2019 00:00:00",null,"VO"]
[23,"2655","Кемеровская область","27819046","МКП \"КТС Новокузнецкого района\"","4252003487","425201001","26-06-2012 00:00:00",null,"VO"]
[24,"2655","Кемеровская область","27953146","МКП \"Коммунальные системы\"","4246017964","424601001","01-11-2012 00:00:00","23-08-2023 00:00:00","VO"]
[25,"2655","Кемеровская область","30353027","МКП \"ТВК\"","4246019810","424601001","21-05-2015 00:00:00",null,"VO"]
[26,"2655","Кемеровская область","31087651","МКП \"Тепло\"","4230032501","423001001","27-02-2018 00:00:00",null,"VO"]
[27,"2655","Кемеровская область","31343443","МКП ММО \"Ресурс\"","4213012417","421301001","26-07-2019 00:00:00",null,"VO"]
[28,"2655","Кемеровская область","28221445","МП \"Водоканал\" Тайгинского городского округа","4246018157","424601001",null,null,"VO"]
[29,"2655","Кемеровская область","27542200","МП \"Жильё\"","4246000576","424601001","14-09-2011 00:00:00",null,"VO"]
[30,"2655","Кемеровская область","31329806","МП \"Кристалл\"","4223124159","422301001","27-05-2019 00:00:00",null,"VO"]
[31,"2655","Кемеровская область","27980182","МП \"ССК\"","4217146362","421701001","24-07-2012 00:00:00",null,"VO"]
[32,"2655","Кемеровская область","26530090","МУП \"Водоканал\"","4214031839","421401001","26-03-2010 00:00:00","07-09-2020 00:00:00","VO"]
[33,"2655","Кемеровская область","31310826","МУП \"Водоканал\"","4213012270","421301001","01-02-2019 00:00:00",null,"VO"]
[34,"2655","Кемеровская область","31159399","МУП \"Гарант\"","4213012128","421301001","29-12-2017 00:00:00","07-04-2023 00:00:00","VO"]
[35,"2655","Кемеровская область","31332720","МУП \"Гарант\" КГО","4202050210","420201001","04-12-2015 00:00:00",null,"VO"]
[36,"2655","Кемеровская область","28980595","МУП \"ЖКХ Мариинского муниципального района\"","4213011068","421301001","22-05-2015 00:00:00",null,"VO"]
[37,"2655","Кемеровская область","27826700","МУП \"Жилищно-коммунальное управление Кемеровского муниципального округа\"","4205242791","420501001","26-04-2012 00:00:00",null,"VO"]
[38,"2655","Кемеровская область","31308226","МУП \"ИЖКХ\" Ижморского муниципального округа\"","4246021336","424601001","01-06-2017 00:00:00",null,"VO"]
[39,"2655","Кемеровская область","31284269","МУП \"Комфорт\"","4230026593","423001001","29-06-2009 00:00:00",null,"VO"]
[40,"2655","Кемеровская область","31241680","МУП \"Междуреченский Водоканал\"","4214040174","421401001","26-10-2018 00:00:00",null,"VO"]
[41,"2655","Кемеровская область","28221676","МУП \"Сервис коммунальных систем\"","4213010226","421301001","13-03-2013 00:00:00","20-12-2021 00:00:00","VO"]
[42,"2655","Кемеровская область","31579664","МУП \"ТЖКХ\" Тисульского муниципального района\"","4213012375","421301001","10-07-2019 00:00:00",null,"VO"]
[43,"2655","Кемеровская область","28503043","МУП \"УК ЖКХ\"","4222014844","422201001","03-12-2013 00:00:00",null,"VO"]
[44,"2655","Кемеровская область","30824381","МУП \"Энерго-Сервис\"","4246019665","424601001","22-07-2016 00:00:00",null,"VO"]
[45,"2655","Кемеровская область","31218522","МУП \"ЯТО\" Яйского муниципального округа","4246022072","424601001","24-09-2018 00:00:00",null,"VO"]
[46,"2655","Кемеровская область","26322887","МУП «ЖКХ» Новокузнецкого района","4238015970","423801001","05-07-2004 00:00:00",null,"VO"]
[47,"2655","Кемеровская область","31003143","МУП Гурьевского муниципального района \"УК ЖКХ\"","4202047136","420201001","13-01-2014 00:00:00",null,"VO"]
[48,"2655","Кемеровская область","26357006","МУП ЖКУ \"Белогорск\"","4243015398","424301001","02-09-2003 00:00:00","26-05-2023 00:00:00","VO"]
[49,"2655","Кемеровская область","28954364","МУП КГО \"УКВО\"","4222015213","422201001","10-10-2014 00:00:00","29-03-2022 00:00:00","VO"]
[50,"2655","Кемеровская область","28954358","МУП КГО \"УКВС\"","4222015220","422201001","10-10-2014 00:00:00","02-11-2021 00:00:00","VO"]
[51,"2655","Кемеровская область","28511994","МУП ОГО \"Водоканал\"","4222014989","422201001","28-05-2014 00:00:00","20-09-2022 00:00:00","VO"]
[52,"2655","Кемеровская область","30435868","МУП ПМР \"Теплоком\"","4223095814","422301001","07-12-2015 00:00:00","01-03-2020 00:00:00","VO"]
[53,"2655","Кемеровская область","28254166","МУП ПМР \"Тепломир\"","4223060667","422301001","10-07-2013 00:00:00",null,"VO"]
[54,"2655","Кемеровская область","31159337","МУП бытового обслуживания","4244000281","421301001","17-07-1996 00:00:00","27-05-2019 00:00:00","VO"]
[55,"2655","Кемеровская область","28976969","Мариинская нефтеперекачивающая станция филиала \"Новосибирскок РНУ\" АО \"Транснефть - Западная Сибирь\"","5502020634","421303001","15-06-1994 00:00:00",null,"VO"]
[56,"2655","Кемеровская область","26356896","ОАО \"Гурьевский металлургический завод\"","4204000253","421650001","12-05-1996 00:00:00",null,"VO"]
[57,"2655","Кемеровская область","26427858","ОАО \"ИжморВодСтрой\"","4246009988","424601001","28-05-2008 00:00:00","01-03-2020 00:00:00","VO"]
[58,"2655","Кемеровская область","26567308","ОАО \"СУЭК-Кузбасс\" шахта Полысаевская","4212024138","424901001","07-05-2007 00:00:00",null,"VO"]
[59,"2655","Кемеровская область","26322895","ОАО «СКЭК»","4205153492","420501001","01-04-2008 00:00:00",null,"VO"]
[60,"2655","Кемеровская область","26473644","ООО \"АВК\"","4246009378","424601001","19-02-2008 00:00:00","21-12-2020 00:00:00","VO"]
[61,"2655","Кемеровская область","28954370","ООО \"Белсток\"","4202047785","420201001","28-04-2014 00:00:00",null,"VO"]
[62,"2655","Кемеровская область","26567354","ООО \"Благоустройство\"","4246006754","424601001","07-04-2006 00:00:00","27-10-2022 00:00:00","VO"]
[63,"2655","Кемеровская область","26428034","ООО \"ВКУ\"","4212427514","421201001","11-04-2005 00:00:00","01-03-2020 00:00:00","VO"]
[64,"2655","Кемеровская область","28817194","ООО \"ВКХ\"","4252005780","425201001","12-12-2013 00:00:00","01-01-2020 00:00:00","VO"]
[65,"2655","Кемеровская область","30988389","ООО \"ВОДОРЕСУРС\"","4253033332","425301001","31-03-2016 00:00:00",null,"VO"]
[66,"2655","Кемеровская область","27886900","ООО \"Веста плюс\"","4223057390","422301001","21-06-2012 00:00:00","01-03-2020 00:00:00","VO"]
[67,"2655","Кемеровская область","31356597","ООО \"ВодСнаб\"","4230030215","423001001","02-10-2015 00:00:00",null,"VO"]
[68,"2655","Кемеровская область","26567176","ООО \"Вода\"","4201008159","424601001","08-08-2002 00:00:00","22-05-2023 00:00:00","VO"]
[69,"2655","Кемеровская область","26427834","ООО \"Водоканал\"","4246009561","424601001","26-02-2008 00:00:00","29-06-2023 00:00:00","VO"]
[70,"2655","Кемеровская область","26427890","ООО \"Водоканал\"","4212027153","421201001","30-07-2008 00:00:00","31-07-2023 00:00:00","VO"]
[71,"2655","Кемеровская область","28869965","ООО \"Водоканал\"","4217166136","421701001","24-11-2014 00:00:00",null,"VO"]
[72,"2655","Кемеровская область","31215010","ООО \"Водоканал\"","4246021953","424601001","28-05-2018 00:00:00",null,"VO"]
[73,"2655","Кемеровская область","31336226","ООО \"Водоканал\"","4252012548","425201001","04-08-2016 00:00:00",null,"VO"]
[74,"2655","Кемеровская область","28452863","ООО \"Водоканал\"","4253018285","425301001","20-11-2013 00:00:00",null,"VO"]
[75,"2655","Кемеровская область","28113313","ООО \"Водокомплекс\"","5406734820","540501001","28-02-2013 00:00:00",null,"VO"]
[76,"2655","Кемеровская область","26427940","ООО \"Водоотведение\"","4252001810","425201001","01-01-2012 00:00:00","18-01-2023 00:00:00","VO"]
[77,"2655","Кемеровская область","26427946","ООО \"Водопроводные сети\"","4213007304","421301001","26-03-2008 00:00:00","01-03-2020 00:00:00","VO"]
[78,"2655","Кемеровская область","27336388","ООО \"ГД санаторий имени \"60-летия Кузбасса\"","4218025530","421801001","15-04-2004 00:00:00","18-05-2022 00:00:00","VO"]
[79,"2655","Кемеровская область","30373418","ООО \"Горводоканал\"","4202050033","420201001","21-10-2015 00:00:00",null,"VO"]
[80,"2655","Кемеровская область","28136671","ООО \"Горводоканал\"","5406737355","540501001","20-03-2013 00:00:00",null,"VO"]
[81,"2655","Кемеровская область","31573961","ООО \"Гурьевск-Сталь\"","4202050643","420201001","01-04-2016 00:00:00",null,"VO"]
[82,"2655","Кемеровская область","26427930","ООО \"ЖКУ \"Надежда\"","4213004920","421301001","13-07-2004 00:00:00","20-12-2020 00:00:00","VO"]
[83,"2655","Кемеровская область","29645515","ООО \"ЗЖБК-Сервис+\"","4217164072","421701001","13-08-2014 00:00:00",null,"VO"]
[84,"2655","Кемеровская область","28509720","ООО \"Завод \"Горэкс-Светотехника\"","4223027701","771501001","09-10-2012 00:00:00",null,"VO"]
[85,"2655","Кемеровская область","30950350","ООО \"Ижморская ТСК\"","4246021343","424601001","07-06-2017 00:00:00",null,"VO"]
[86,"2655","Кемеровская область","26428082","ООО \"Инженерный центр\"","4205058070","420501001","03-12-2003 00:00:00",null,"VO"]
[87,"2655","Кемеровская область","28270197","ООО \"КРК-Ижморский\"","4205267517","420501001","04-06-2013 00:00:00","19-06-2020 00:00:00","VO"]
[88,"2655","Кемеровская область","30439108","ООО \"КХ\"","4223096575","422301001","09-02-2016 00:00:00",null,"VO"]
[89,"2655","Кемеровская область","27658715","ООО \"Коммунальные сети горы Зелёной\"","4228007586","422801001","05-12-2002 00:00:00",null,"VO"]
[90,"2655","Кемеровская область","28221643","ООО \"Компания \"Энергопромсервис\"","4205250721","420501001","14-09-2012 00:00:00","11-12-2020 00:00:00","VO"]
[91,"2655","Кемеровская область","28977055","ООО \"Комресурс\"","4202049013","420201001","05-03-2015 00:00:00","07-08-2020 00:00:00","VO"]
[92,"2655","Кемеровская область","27822745","ООО \"Мариинский спиртовой комбинат\"","4213009781","421301001","28-05-2012 00:00:00","31-08-2020 00:00:00","VO"]
[93,"2655","Кемеровская область","27838991","ООО \"ОФ \"Прокопьевскуголь\"","4223036696","422301001","21-07-2004 00:00:00",null,"VO"]
[94,"2655","Кемеровская область","26653062","ООО \"ППС Колмогоровский\"","4246016953","424601001","11-05-2010 00:00:00","01-03-2020 00:00:00","VO"]
[95,"2655","Кемеровская область","26356931","ООО \"Панфиловец\"","4212021835","421201001","24-04-2002 00:00:00",null,"VO"]
[96,"2655","Кемеровская область","26473636","ООО \"Потенциал\"","4212029048","421201001",null,"01-03-2020 00:00:00","VO"]
[97,"2655","Кемеровская область","30848646","ООО \"Програнд\"","7702549732","420501001","11-01-2005 00:00:00",null,"VO"]
[98,"2655","Кемеровская область","26428026","ООО \"Промышленновские коммунальные системы\"","4240009967","424001001","25-12-2008 00:00:00",null,"VO"]
[99,"2655","Кемеровская область","30872369","ООО \"РСО УК Заповедная\"","4250011154","425001001","22-08-2016 00:00:00",null,"VO"]
[100,"2655","Кемеровская область","30983894","ООО \"РЭСК\"","4202050940","420201001","24-06-2016 00:00:00",null,"VO"]
[101,"2655","Кемеровская область","28151808","ООО \"Ресурс-Гарант\"","4213010240","421301001","21-03-2013 00:00:00",null,"VO"]
[102,"2655","Кемеровская область","31541617","ООО \"СДС\"","4229006578","422901001","03-03-2005 00:00:00",null,"VO"]
[103,"2655","Кемеровская область","31456803","ООО \"СЕТИ-КОМ\"","4246022410","424601001","12-07-2019 00:00:00",null,"VO"]
[104,"2655","Кемеровская область","26356987","ООО \"СПК \"Чистогорский\"","4238013194","423801001",null,null,"VO"]
[105,"2655","Кемеровская область","31040886","ООО \"СТГК\"","4217182593","421701001","22-03-2017 00:00:00",null,"VO"]
[106,"2655","Кемеровская область","27951927","ООО \"Сервис услуги\"","4213009774","540501001","12-11-2012 00:00:00","11-03-2020 00:00:00","VO"]
[107,"2655","Кемеровская область","26897760","ООО \"Сибирь-Водоканал 2\"","4202041053","420201001","17-03-2011 00:00:00","01-03-2020 00:00:00","VO"]
[108,"2655","Кемеровская область","26356891","ООО \"ТВК\"","4202026697","420201001","02-09-2005 00:00:00",null,"VO"]
[109,"2655","Кемеровская область","28284204","ООО \"ТВК\"","4230006156","423001001","20-11-2012 00:00:00",null,"VO"]
[110,"2655","Кемеровская область","31241637","ООО \"ТВКХ\"","4205375960","424601001","14-12-2018 00:00:00",null,"VO"]
[111,"2655","Кемеровская область","27978219","ООО \"Тепло\"","4246008896","424601001","18-12-2007 00:00:00",null,"VO"]
[112,"2655","Кемеровская область","28819708","ООО \"Тепло\"","4252000648","425201001","15-11-2010 00:00:00",null,"VO"]
[113,"2655","Кемеровская область","26427956","ООО \"Тепло-Водо-Канал\"","4202035660","420201001","10-10-2008 00:00:00","27-03-2020 00:00:00","VO"]
[114,"2655","Кемеровская область","26356937","ООО \"Тепло-энергетические предприятия\"","4212427497","421201001","11-04-2005 00:00:00",null,"VO"]
[115,"2655","Кемеровская область","26427866","ООО \"Теплосервис\"","4202030485","420201001","25-01-2007 00:00:00","01-03-2020 00:00:00","VO"]
[116,"2655","Кемеровская область","27880847","ООО \"Теплоснаб\"","4230004328","423001001","15-06-2012 00:00:00","13-06-2023 00:00:00","VO"]
[117,"2655","Кемеровская область","30872315","ООО \"Теплоснаб\"","4205325631","420501001","04-04-2016 00:00:00",null,"VO"]
[118,"2655","Кемеровская область","27542212","ООО \"Техстрой\"","4212032682","421201001","01-07-2011 00:00:00","01-03-2020 00:00:00","VO"]
[119,"2655","Кемеровская область","26356983","ООО \"УК \"Энерготранс-Агро\"","4230021588","423001001","29-05-2006 00:00:00",null,"VO"]
[120,"2655","Кемеровская область","30352093","ООО \"УК ЖКХ\"","4228010469","422801001","11-12-2006 00:00:00","05-02-2021 00:00:00","VO"]
[121,"2655","Кемеровская область","26356899","ООО \"УКиТС\"","4204007393","420401001","24-09-2007 00:00:00",null,"VO"]
[122,"2655","Кемеровская область","26755694","ООО \"Управление канализационного хозяйства\"","4211024431","421101001","14-09-2010 00:00:00","22-07-2022 00:00:00","VO"]
[123,"2655","Кемеровская область","27969207","ООО \"Центральная ТЭЦ\"","4217148426","421701001","12-10-2012 00:00:00","25-07-2022 00:00:00","VO"]
[124,"2655","Кемеровская область","30837604","ООО \"Шалым\"","4228010412","422801001","07-12-2006 00:00:00",null,"VO"]
[125,"2655","Кемеровская область","26356932","ООО \"Шанс\"","4212025734","421201001","17-01-2008 00:00:00",null,"VO"]
[126,"2655","Кемеровская область","26356972","ООО \"Шерегеш-Энерго\"","4228008050","422801001","16-06-2003 00:00:00",null,"VO"]
[127,"2655","Кемеровская область","28270293","ООО \"ЭК\"","4202044463","420201001","21-09-2012 00:00:00",null,"VO"]
[128,"2655","Кемеровская область","28873362","ООО \"Энергоресурс\"","4205284720","420501001","26-03-2014 00:00:00",null,"VO"]
[129,"2655","Кемеровская область","28976681","ООО \"Энергосервис г. Гурьевска\"","4202049045","420201001","19-03-2015 00:00:00",null,"VO"]
[130,"2655","Кемеровская область","26427828","ООО \"Юрга Водтранс\"","4230020538","423001001","01-12-2005 00:00:00",null,"VO"]
[131,"2655","Кемеровская область","26356982","ООО \"Юргинский машиностроительный завод\"","4230020425","423001001","20-10-2005 00:00:00",null,"VO"]
[132,"2655","Кемеровская область","26427908","ООО \"Ясная поляна\"","4223048846","422301001","11-03-2008 00:00:00","20-11-2020 00:00:00","VO"]
[133,"2655","Кемеровская область","26428076","ООО\"БелГОС\"","4202023230","420201001","03-07-2003 00:00:00",null,"VO"]
[134,"2655","Кемеровская область","26428030","ООО\"Водоснабжение\"","4202023801","420201001","14-11-2003 00:00:00",null,"VO"]
[135,"2655","Кемеровская область","31253284","ПАО \"Южный Кузбасс\"","4214000608","997550001",null,null,"VO"]
[136,"2655","Кемеровская область",null,"РЕГИОНАЛЬНАЯ ЭНЕРГЕТИЧЕСКАЯ КОМИССИЯ КУЗБАССА","4207044509","420501001",null,null,"VO"]
[137,"2655","Кемеровская область","30903763","ФГБУ \"ЦЖКУ\" МИНОБОРОНЫ РОССИИ","7729314745","770101001",null,null,"VO"]
[138,"2655","Кемеровская область","26356914","ФГКУ комбинат \"Малахит\"","4209023208","420501001","30-11-1995 00:00:00",null,"VO"]
[139,"2655","Кемеровская область","26427862","ФГУП \"ПО  Прогресс\"","4210000692","420501001","21-02-2003 00:00:00",null,"VO"]
[140,"2655","Кемеровская область","26987290","Филиал \"Новосибирский\" ОАО \"Славянка\"","7702707386","420543001","30-04-2009 00:00:00","10-02-2021 00:00:00","VO"]
[141,"2655","Кемеровская область","26520873","Филиал АО \"УК \"Кузбассразрезуголь\" \"Талдинский угольный разрез\"","4205049090","423802002","05-05-2003 00:00:00",null,"VO"]
[142,"2655","Кемеровская область","26987067","Филиал АО \"УК \"Кузбассразрезуголь\" - \"Моховский угольный разрез\"","4205049090","421202001","05-05-2003 00:00:00",null,"VO"]
[143,"2655","Кемеровская область","30914574","Филиал ФГБУ \"ЦЖКУ\" МИНОБОРОНЫ РОССИИ (по ЦВО)","7729314745","667043001",null,null,"VO"]

{"sheet":"REESTR_TARIFF","index":28,"n_rows":42,"n_cols":11,"rows_kept":42,"cut":false,"hidden":true,"merged":[]}
["TEMPLATE_LGL_ID","TEMPLATE_PRD","TEMPLATE_STATUS","TEMPLATE_DATE","TARIFF_ID","TARIFF_VID","TARIFF_TIP","TARIFF_VDET","TARIFF_VTOV","TARIFF_DOP","TARIFF_MO_LIST"]
[null,null,null,null,"ВО.42.26322895.0001","<нет шаблона>"]
[null,null,null,null,"ВО.42.26322895.0002","<нет шаблона>"]
[null,null,null,null,"ВО.42.26322895.0003","<нет шаблона>"]
[null,null,null,null,"ВО.42.26322895.0004","<нет шаблона>"]
[null,null,null,null,"ВО.42.26322895.0005","<нет шаблона>"]
[null,null,null,null,"ВО.42.26322895.0006","<нет шаблона>"]
[null,null,null,null,"ВО.42.26322895.0007","<нет шаблона>"]
[null,null,null,null,"ВО.42.26322895.0008","<нет шаблона>"]
[null,null,null,null,"ВО.42.26322895.0009","<нет шаблона>"]
[null,null,null,null,"ВО.42.26322895.0010","<нет шаблона>"]
[null,null,null,null,"ВО.42.26322895.0011","<нет шаблона>"]
[null,null,null,null,"ВО.42.26322895.0012","<нет шаблона>"]
[null,null,null,null,"ВО.42.26322895.0013","<нет шаблона>"]
[null,null,null,null,"ВО.42.26322895.0014","<нет шаблона>"]
[null,null,null,null,"ВО.42.26322895.0015","<нет шаблона>"]
[null,null,null,null,"ВО.42.26322895.0016","<нет шаблона>"]
[null,null,null,null,"ВО.42.26322895.0017","<нет шаблона>"]
[null,null,null,null,"ВО.42.26322895.0018","<нет шаблона>"]
[null,null,null,null,"ВО.42.26322895.0019","<нет шаблона>"]
[null,null,null,null,"ВО.42.26322895.0020","<нет шаблона>"]
[null,null,null,null,"ВО.42.26322895.0021","<нет шаблона>"]
[null,null,null,null,"ХВС.42.26322895.0001","<нет шаблона>"]
[null,null,null,null,"ХВС.42.26322895.0002","<нет шаблона>"]
[null,null,null,null,"ХВС.42.26322895.0003","<нет шаблона>"]
[null,null,null,null,"ХВС.42.26322895.0004","<нет шаблона>"]
[null,null,null,null,"ХВС.42.26322895.0005","<нет шаблона>"]
[null,null,null,null,"ХВС.42.26322895.0006","<нет шаблона>"]
[null,null,null,null,"ХВС.42.26322895.0007","<нет шаблона>"]
[null,null,null,null,"ХВС.42.26322895.0008","<нет шаблона>"]
[null,null,null,null,"ХВС.42.26322895.0009","<нет шаблона>"]
[null,null,null,null,"ХВС.42.26322895.0010","<нет шаблона>"]
[null,null,null,null,"ХВС.42.26322895.0011","<нет шаблона>"]
[null,null,null,null,"ХВС.42.26322895.0012","<нет шаблона>"]
[null,null,null,null,"ХВС.42.26322895.0013","<нет шаблона>"]
[null,null,null,null,"ХВС.42.26322895.0014","<нет шаблона>"]
[null,null,null,null,"ХВС.42.26322895.0015","<нет шаблона>"]
[null,null,null,null,"ХВС.42.26322895.0016","<нет шаблона>"]
[null,null,null,null,"ХВС.42.26322895.0017","<нет шаблона>"]
[null,null,null,null,"ХВС.42.26322895.0018","<нет шаблона>"]
[null,null,null,null,"ХВС.42.26322895.0019","<нет шаблона>"]
[null,null,null,null,"ХВС.42.26322895.0020","<нет шаблона>"]

{"sheet":"modfrmRegion","index":29,"n_rows":0,"n_cols":0,"rows_kept":0,"cut":false,"hidden":true,"merged":[]}

{"sheet":"modfrmSelectTariff","index":30,"n_rows":0,"n_cols":0,"rows_kept":0,"cut":false,"hidden":true,"merged":[]}

{"sheet":"modCheckCyan","index":31,"n_rows":30,"n_cols":1,"rows_kept":30,"cut":false,"hidden":true,"merged":[]}
[{"$f":"IF('Общие сведения'!$H$8=\"\",1,0)","v":0}]
[{"$f":"IF('Общие сведения'!$H$26=\"\",1,0)","v":0}]
[{"$f":"IF('Общие сведения'!$H$27=\"\",1,0)","v":0}]
[{"$f":"IF('Общие сведения'!$H$28=\"\",1,0)","v":0}]
[{"$f":"IF('Общие сведения'!$H$29=\"\",1,0)","v":0}]
[{"$f":"IF('Общие сведения'!$H$30=\"\",1,0)","v":0}]
[{"$f":"IF('Общие сведения'!$H$31=\"\",1,0)","v":0}]
[{"$f":"IF('Общие сведения'!$H$32=\"\",1,0)","v":0}]
[{"$f":"IF('Общие сведения'!$H$34=\"\",1,0)","v":0}]
[{"$f":"IF('Общие сведения'!$H$35=\"\",1,0)","v":0}]
[{"$f":"IF('Общие сведения'!$H$36=\"\",1,0)","v":0}]
[{"$f":"IF('Общие сведения'!$H$37=\"\",1,0)","v":0}]
[{"$f":"IF('Общие сведения'!$H$38=\"\",1,0)","v":0}]
[{"$f":"IF('Общие сведения'!$H$39=\"\",1,0)","v":0}]
[{"$f":"IF('Общие сведения'!$H$47=\"\",1,0)","v":0}]
[{"$f":"IF('Общие сведения'!$H$48=\"\",1,0)","v":0}]
[{"$f":"IF('Общие сведения'!$H$55=\"\",1,0)","v":0}]
[{"$f":"IF('Общие сведения'!$H$85=\"\",1,0)","v":0}]
[{"$f":"IF('Общие сведения'!$H$112=\"\",1,0)","v":0}]
[{"$f":"IF('Общие сведения'!$H$57=\"\",1,0)","v":0}]
[{"$f":"IF('Общие сведения'!$H$59=\"\",1,0)","v":0}]
[{"$f":"IF('Общие сведения'!$H$88=\"\",1,0)","v":0}]
[{"$f":"IF('Общие сведения'!$H$86=\"\",1,0)","v":0}]
[{"$f":"IF('Общие сведения'!$H$92=\"\",1,0)","v":0}]
[{"$f":"IF('Общие сведения'!$H$95=\"\",1,0)","v":0}]
[{"$f":"IF('Список территорий'!$M$16=\"\",1,0)","v":0}]
[{"$f":"IF('Список территорий'!$N$16=\"\",1,0)","v":0}]
[{"$f":"IF('Список объектов'!$M$19=\"\",1,0)","v":0}]
[{"$f":"IF('Список объектов'!$N$19=\"\",1,0)","v":0}]
[{"$f":"IF('Условные метры'!$M$20=\"\",1,0)","v":0}]

{"sheet":"modfrmActivity","index":32,"n_rows":0,"n_cols":0,"rows_kept":0,"cut":false,"hidden":true,"merged":[]}

{"sheet":"modfrmCheckUpdates","index":33,"n_rows":0,"n_cols":0,"rows_kept":0,"cut":false,"hidden":true,"merged":[]}

{"sheet":"modProv","index":34,"n_rows":0,"n_cols":0,"rows_kept":0,"cut":false,"hidden":true,"merged":[]}

{"sheet":"modUpdTemplMain","index":35,"n_rows":0,"n_cols":0,"rows_kept":0,"cut":false,"hidden":true,"merged":[]}

{"sheet":"modThisWorkbook","index":36,"n_rows":0,"n_cols":0,"rows_kept":0,"cut":false,"hidden":true,"merged":[]}

{"sheet":"modInstruction","index":37,"n_rows":0,"n_cols":0,"rows_kept":0,"cut":false,"hidden":true,"merged":[]}

{"sheet":"AllSheetsInThisWorkbook","index":38,"n_rows":32,"n_cols":2,"rows_kept":32,"cut":false,"hidden":true,"merged":[]}
["Расчетные листы","Скрытые листы"]
["Инструкция","et_union"]
["Лог обновления","TEHSHEET"]
["Пояснения","modProvGeneralProc"]
["Общие сведения","modPreload"]
["Список территорий","REESTR_OBJECT"]
["Список объектов","DICTIONARIES"]
["Баланс","modfrmReestrSource"]
["Условные метры","modfrmDPR"]
["Амортизация (аналог)","modfrmSelectTemplate"]
["ГО","REESTR_MO"]
["Расчёт тарифа","REESTR_ORG"]
["Комментарии","REESTR_TARIFF"]
["Проверка","modfrmRegion"]
[null,"modfrmSelectTariff"]
[null,"modHTTP"]
[null,"modCheckCyan"]
[null,"modfrmActivity"]
[null,"modfrmCheckUpdates"]
[null,"modProv"]
[null,"modUpdTemplMain"]
[null,"modList00"]
[null,"modThisWorkbook"]
[null,"modInstruction"]
[null,"AllSheetsInThisWorkbook"]
[null,"modHyp"]
[null,"modfrmReestr"]
[null,"modReestr"]
[null,"modList01"]
[null,"modList02"]
[null,"modList04"]
[null,"modList06"]

{"sheet":"modHyp","index":39,"n_rows":0,"n_cols":0,"rows_kept":0,"cut":false,"hidden":true,"merged":[]}

{"sheet":"modfrmReestr","index":40,"n_rows":0,"n_cols":0,"rows_kept":0,"cut":false,"hidden":true,"merged":[]}

{"sheet":"modList01","index":41,"n_rows":0,"n_cols":0,"rows_kept":0,"cut":false,"hidden":true,"merged":[]}

{"sheet":"modList04","index":42,"n_rows":0,"n_cols":0,"rows_kept":0,"cut":false,"hidden":true,"merged":[]}

{"sheet":"modList06","index":43,"n_rows":0,"n_cols":0,"rows_kept":0,"cut":false,"hidden":true,"merged":[]}